{"text_format":"3","workbook":"xlsx","n_sheets":4,"sheets":["Seguimiento de las puntuaciones","Su resultado","Configuración","Cálculos"],"not_rendered":{"defined_names":3,"comments":1},"read":"whole","date_system":"1900"}

{"sheet":"Seguimiento de las puntuaciones","index":0,"n_rows":14,"n_cols":6,"rows_kept":14}
[null,"Escriba aquí sus puntuaciones"]
[]
[null,null,"Asignatura","Tipo","Descripción","Puntuación"]
[null,null,"Francés moderno","Deberes","Historia de la Segunda Guerra Mundial",{"v":0.8,"d":"80%"}]
[null,null,"Programación avanzada en Java","Examen parcial",null,{"v":0.75,"d":"75%"}]
[null,null,"Español","Deberes",null,{"v":0.5,"d":"50%"}]
[null,null,"Física teórica","Deberes",null,{"v":0.95,"d":"95%"}]
[null,null,"Francés moderno","Deberes","Historia de la Primera Guerra Mundial",{"v":0.9,"d":"90%"}]
[null,null,"Francés moderno","Deberes","Páginas 30 - 41",{"v":0.8,"d":"80%"}]
[null,null,"Redacción","Redacción","Texto argumentativo",{"v":0.95,"d":"95%"}]
[null,null,"Matemáticas 1","Deberes","Páginas 21 y 26",{"v":0.8,"d":"80%"}]
[null,null,"Matemáticas 2","Deberes","Páginas 15 y 18",{"v":0.85,"d":"85%"}]
[null,null,"Matemáticas 1","Deberes","Páginas 34 - 36",{"v":0.8,"d":"80%"}]
[null,null,"Matemáticas 2","Concurso",null,{"v":0.95,"d":"95%"}]

{"sheet":"Su resultado","index":1,"n_rows":31,"n_cols":8,"rows_kept":31}
[null,"Su resultado"]
[]
[null,null,"Totales"]
[null,null,{"$f":"\"Horas: \"&SUM(tblAsignaturas[Créditos académicos])","v":"Horas: 24"},{"$f":"AVERAGE(D7:D31)","v":{"v":0.8104761904761906,"d":"81%"}},{"$f":"AVERAGE(E7:E31)","v":{"v":2.7142857142857144,"d":"2.71"}},{"$f":"SUM(F7:F31)","v":{"v":2.625,"d":"2.63"}},{"$f":"IFERROR(HLOOKUP(D4,lstAsignaciónPuntuaciones,2),\"\")","v":"Notable -"}]
[]
[null,null,"Asignaturas","%","Nota media","Nota media (p)","Calificación","Resultado global"]
[null,null,{"$f":"Cálculos!C6","v":"Francés moderno"},{"$f":"Cálculos!AL6","v":{"v":0.8333333333333334,"d":"83%"}},{"$f":"Cálculos!AM6","v":{"v":3,"d":"3.00"}},{"$f":"IFERROR(E7*Configuración!D9/SUM(tblAsignaturas[Créditos académicos]),\"\")","v":{"v":0.375,"d":"0.38"}},{"$f":"Cálculos!AN6","v":"Notable"}]
[null,null,{"$f":"Cálculos!C7","v":"Física teórica"},{"$f":"Cálculos!AL7","v":{"v":0.95,"d":"95%"}},{"$f":"Cálculos!AM7","v":{"v":4,"d":"4.00"}},{"$f":"IFERROR(E8*Configuración!D10/SUM(tblAsignaturas[Créditos académicos]),\"\")","v":{"v":0.5,"d":"0.50"}},{"$f":"Cálculos!AN7","v":"Sobresaliente"}]
[null,null,{"$f":"Cálculos!C8","v":"Matemáticas 1"},{"$f":"Cálculos!AL8","v":{"v":0.8000000000000002,"d":"80%"}},{"$f":"Cálculos!AM8","v":2.67},{"$f":"IFERROR(E9*Configuración!D11/SUM(tblAsignaturas[Créditos académicos]),\"\")","v":{"v":0.445,"d":"0.45"}},{"$f":"Cálculos!AN8","v":"Notable -"}]
[null,null,{"$f":"Cálculos!C9","v":"Matemáticas 2"},{"$f":"Cálculos!AL9","v":{"v":0.89,"d":"89%"}},{"$f":"Cálculos!AM9","v":3.33},{"$f":"IFERROR(E10*Configuración!D12/SUM(tblAsignaturas[Créditos académicos]),\"\")","v":{"v":0.555,"d":"0.56"}},{"$f":"Cálculos!AN9","v":"Notable +"}]
[null,null,{"$f":"Cálculos!C10","v":"Programación avanzada en Java"},{"$f":"Cálculos!AL10","v":{"v":0.7500000000000001,"d":"75%"}},{"$f":"Cálculos!AM10","v":{"v":2,"d":"2.00"}},{"$f":"IFERROR(E11*Configuración!D13/SUM(tblAsignaturas[Créditos académicos]),\"\")","v":{"v":0.4166666666666667,"d":"0.42"}},{"$f":"Cálculos!AN10","v":"Aprobado"}]
[null,null,{"$f":"Cálculos!C11","v":"Español"},{"$f":"Cálculos!AL11","v":{"v":0.5,"d":"50%"}},{"$f":"Cálculos!AM11","v":{"v":0,"d":"0.00"}},{"$f":"IFERROR(E12*Configuración!D14/SUM(tblAsignaturas[Créditos académicos]),\"\")","v":{"v":0,"d":"0.00"}},{"$f":"Cálculos!AN11","v":"Suspenso"}]
[null,null,{"$f":"Cálculos!C12","v":"Redacción"},{"$f":"Cálculos!AL12","v":{"v":0.95,"d":"95%"}},{"$f":"Cálculos!AM12","v":{"v":4,"d":"4.00"}},{"$f":"IFERROR(E13*Configuración!D15/SUM(tblAsignaturas[Créditos académicos]),\"\")","v":{"v":0.3333333333333333,"d":"0.33"}},{"$f":"Cálculos!AN12","v":"Sobresaliente"}]
[null,null,{"$f":"Cálculos!C13","v":""},{"$f":"Cálculos!AL13","v":""},{"$f":"Cálculos!AM13","v":""},{"$f":"IFERROR(E14*Configuración!D16/SUM(tblAsignaturas[Créditos académicos]),\"\")","v":""},{"$f":"Cálculos!AN13","v":""}]
[null,null,{"$f":"Cálculos!C14","v":""},{"$f":"Cálculos!AL14","v":""},{"$f":"Cálculos!AM14","v":""},{"$f":"IFERROR(E15*Configuración!D17/SUM(tblAsignaturas[Créditos académicos]),\"\")","v":""},{"$f":"Cálculos!AN14","v":""}]
[null,null,{"$f":"Cálculos!C15","v":""},{"$f":"Cálculos!AL15","v":""},{"$f":"Cálculos!AM15","v":""},{"$f":"IFERROR(E16*Configuración!D18/SUM(tblAsignaturas[Créditos académicos]),\"\")","v":""},{"$f":"Cálculos!AN15","v":""}]
[null,null,{"$f":"Cálculos!C16","v":""},{"$f":"Cálculos!AL16","v":""},{"$f":"Cálculos!AM16","v":""},{"$f":"IFERROR(E17*Configuración!D19/SUM(tblAsignaturas[Créditos académicos]),\"\")","v":""},{"$f":"Cálculos!AN16","v":""}]
[null,null,{"$f":"Cálculos!C17","v":""},{"$f":"Cálculos!AL17","v":""},{"$f":"Cálculos!AM17","v":""},{"$f":"IFERROR(E18*Configuración!D20/SUM(tblAsignaturas[Créditos académicos]),\"\")","v":""},{"$f":"Cálculos!AN17","v":""}]
[null,null,{"$f":"Cálculos!C18","v":""},{"$f":"Cálculos!AL18","v":""},{"$f":"Cálculos!AM18","v":""},{"$f":"IFERROR(E19*Configuración!D21/SUM(tblAsignaturas[Créditos académicos]),\"\")","v":""},{"$f":"Cálculos!AN18","v":""}]
[null,null,{"$f":"Cálculos!C19","v":""},{"$f":"Cálculos!AL19","v":""},{"$f":"Cálculos!AM19","v":""},{"$f":"IFERROR(E20*Configuración!D22/SUM(tblAsignaturas[Créditos académicos]),\"\")","v":""},{"$f":"Cálculos!AN19","v":""}]
[null,null,{"$f":"Cálculos!C20","v":""},{"$f":"Cálculos!AL20","v":""},{"$f":"Cálculos!AM20","v":""},{"$f":"IFERROR(E21*Configuración!D23/SUM(tblAsignaturas[Créditos académicos]),\"\")","v":""},{"$f":"Cálculos!AN20","v":""}]
[null,null,{"$f":"Cálculos!C21","v":""},{"$f":"Cálculos!AL21","v":""},{"$f":"Cálculos!AM21","v":""},{"$f":"IFERROR(E22*Configuración!D24/SUM(tblAsignaturas[Créditos académicos]),\"\")","v":""},{"$f":"Cálculos!AN21","v":""}]
[null,null,{"$f":"Cálculos!C22","v":""},{"$f":"Cálculos!AL22","v":""},{"$f":"Cálculos!AM22","v":""},{"$f":"IFERROR(E23*Configuración!D25/SUM(tblAsignaturas[Créditos académicos]),\"\")","v":""},{"$f":"Cálculos!AN22","v":""}]
[null,null,{"$f":"Cálculos!C23","v":""},{"$f":"Cálculos!AL23","v":""},{"$f":"Cálculos!AM23","v":""},{"$f":"IFERROR(E24*Configuración!D26/SUM(tblAsignaturas[Créditos académicos]),\"\")","v":""},{"$f":"Cálculos!AN23","v":""}]
[null,null,{"$f":"Cálculos!C24","v":""},{"$f":"Cálculos!AL24","v":""},{"$f":"Cálculos!AM24","v":""},{"$f":"IFERROR(E25*Configuración!D27/SUM(tblAsignaturas[Créditos académicos]),\"\")","v":""},{"$f":"Cálculos!AN24","v":""}]
[null,null,{"$f":"Cálculos!C25","v":""},{"$f":"Cálculos!AL25","v":""},{"$f":"Cálculos!AM25","v":""},{"$f":"IFERROR(E26*Configuración!D28/SUM(tblAsignaturas[Créditos académicos]),\"\")","v":""},{"$f":"Cálculos!AN25","v":""}]
[null,null,{"$f":"Cálculos!C26","v":""},{"$f":"Cálculos!AL26","v":""},{"$f":"Cálculos!AM26","v":""},{"$f":"IFERROR(E27*Configuración!D29/SUM(tblAsignaturas[Créditos académicos]),\"\")","v":""},{"$f":"Cálculos!AN26","v":""}]
[null,null,{"$f":"Cálculos!C27","v":""},{"$f":"Cálculos!AL27","v":""},{"$f":"Cálculos!AM27","v":""},{"$f":"IFERROR(E28*Configuración!D30/SUM(tblAsignaturas[Créditos académicos]),\"\")","v":""},{"$f":"Cálculos!AN27","v":""}]
[null,null,{"$f":"Cálculos!C28","v":""},{"$f":"Cálculos!AL28","v":""},{"$f":"Cálculos!AM28","v":""},{"$f":"IFERROR(E29*Configuración!D31/SUM(tblAsignaturas[Créditos académicos]),\"\")","v":""},{"$f":"Cálculos!AN28","v":""}]
[null,null,{"$f":"Cálculos!C29","v":""},{"$f":"Cálculos!AL29","v":""},{"$f":"Cálculos!AM29","v":""},{"$f":"IFERROR(E30*Configuración!D32/SUM(tblAsignaturas[Créditos académicos]),\"\")","v":""},{"$f":"Cálculos!AN29","v":""}]
[null,null,{"$f":"Cálculos!C30","v":""},{"$f":"Cálculos!AL30","v":""},{"$f":"Cálculos!AM30","v":""},{"$f":"IFERROR(E31*Configuración!D33/SUM(tblAsignaturas[Créditos académicos]),\"\")","v":""},{"$f":"Cálculos!AN30","v":""}]

{"sheet":"Configuración","index":2,"n_rows":15,"n_cols":16,"rows_kept":15,"merged":[[5,2,5,15]]}
[null,"Configuración"]
[null,null,"Asignación de puntuaciones y notas medias"]
[null,null,"Porcentaje",{"v":0,"d":"0%"},{"v":0.6,"d":"60%"},{"v":0.63,"d":"63%"},{"v":0.67,"d":"67%"},{"v":0.7,"d":"70%"},{"v":0.73,"d":"73%"},{"v":0.77,"d":"77%"},{"v":0.8,"d":"80%"},{"v":0.83,"d":"83%"},{"v":0.87,"d":"87%"},{"v":0.9,"d":"90%"},{"v":0.93,"d":"93%"},{"v":0.97,"d":"97%"}]
[null,null,"Calificación","Suspenso","Aprobado -","Aprobado","Aprobado +","Aprobado -","Aprobado","Aprobado +","Notable -","Notable","Notable +","Sobresaliente -","Sobresaliente","Matrícula de Honor"]
[null,null,"Nota media",0,0.67,1,1.33,1.67,2,2.33,2.67,3,3.33,3.67,4,4]
[]
[null,null,"Puntuaciones ponderadas relativas a un máximo de 25 asignaturas"]
[null,null,"Asignaturas que está cursando","Créditos académicos","Deberes","Redacción","Concurso","Proyecto","Examen parcial","Examen final","Otros","% total"]
[null,null,"Francés moderno",{"v":3,"d":"3.0"},{"v":0.1,"d":"10%"},{"v":0.15,"d":"15%"},{"v":0.15,"d":"15%"},{"v":0.1,"d":"10%"},{"v":0.2,"d":"20%"},{"v":0.3,"d":"30%"},null,{"$f":"SUM(tblAsignaturas[[#This Row],[Deberes]:[Otros]])","v":{"v":1,"d":"100%"}}]
[null,null,"Física teórica",{"v":3,"d":"3.0"},{"v":0.15,"d":"15%"},{"v":0.15,"d":"15%"},{"v":0.1,"d":"10%"},{"v":0.1,"d":"10%"},{"v":0.15,"d":"15%"},{"v":0.3,"d":"30%"},{"v":0.05,"d":"5%"},{"$f":"SUM(tblAsignaturas[[#This Row],[Deberes]:[Otros]])","v":{"v":1,"d":"100%"}}]
[null,null,"Matemáticas 1",{"v":4,"d":"4.0"},{"v":0.1,"d":"10%"},{"v":0.15,"d":"15%"},{"v":0.15,"d":"15%"},{"v":0.1,"d":"10%"},{"v":0.2,"d":"20%"},{"v":0.3,"d":"30%"},null,{"$f":"SUM(tblAsignaturas[[#This Row],[Deberes]:[Otros]])","v":{"v":1,"d":"100%"}}]
[null,null,"Matemáticas 2",{"v":4,"d":"4.0"},{"v":0.15,"d":"15%"},{"v":0.15,"d":"15%"},{"v":0.1,"d":"10%"},{"v":0.1,"d":"10%"},{"v":0.15,"d":"15%"},{"v":0.3,"d":"30%"},{"v":0.05,"d":"5%"},{"$f":"SUM(tblAsignaturas[[#This Row],[Deberes]:[Otros]])","v":{"v":1,"d":"100%"}}]
[null,null,"Programación avanzada en Java",{"v":5,"d":"5.0"},{"v":0.15,"d":"15%"},{"v":0.15,"d":"15%"},{"v":0.1,"d":"10%"},{"v":0.1,"d":"10%"},{"v":0.2,"d":"20%"},{"v":0.3,"d":"30%"},null,{"$f":"SUM(tblAsignaturas[[#This Row],[Deberes]:[Otros]])","v":{"v":1,"d":"100%"}}]
[null,null,"Español",{"v":3,"d":"3.0"},{"v":0.1,"d":"10%"},{"v":0.15,"d":"15%"},{"v":0.17,"d":"17%"},{"v":0.13,"d":"13%"},{"v":0.2,"d":"20%"},{"v":0.2,"d":"20%"},{"v":0.05,"d":"5%"},{"$f":"SUM(tblAsignaturas[[#This Row],[Deberes]:[Otros]])","v":{"v":1,"d":"100%"}}]
[null,null,"Redacción",{"v":2,"d":"2.0"},{"v":0.15,"d":"15%"},{"v":0.15,"d":"15%"},{"v":0.12,"d":"12%"},{"v":0.15,"d":"15%"},{"v":0.15,"d":"15%"},{"v":0.25,"d":"25%"},{"v":0.03,"d":"3%"},{"$f":"SUM(tblAsignaturas[[#This Row],[Deberes]:[Otros]])","v":{"v":1,"d":"100%"}}]

{"sheet":"Cálculos","index":3,"n_rows":657,"n_cols":40,"rows_kept":657,"hidden":true}
[null,"Cálculos"]
[null,null,"Esta hoja de cálculo, que le permite calcular las notas y la nota media, debe quedar oculta. Cualquier cambio que realice en ella puede ocasionar errores."]
[]
[null,null,"Lista de asignaturas actuales","Resultados (sobre 1)",{"$nulls":24},"Cálculo de las notas"]
[null,null,"Asignatura",1,2,3,4,5,6,7,8,9,10,11,12,13,14,15,16,17,18,19,20,21,22,23,24,25,{"$f":"tblAsignaturas[[#Headers],[Deberes]]","v":"Deberes"},{"$f":"tblAsignaturas[[#Headers],[Redacción]]","v":"Redacción"},{"$f":"tblAsignaturas[[#Headers],[Concurso]]","v":"Concurso"},{"$f":"tblAsignaturas[[#Headers],[Proyecto]]","v":"Proyecto"},{"$f":"tblAsignaturas[[#Headers],[Examen parcial]]","v":"Examen parcial"},{"$f":"tblAsignaturas[[#Headers],[Examen final]]","v":"Examen final"},{"$f":"tblAsignaturas[[#Headers],[Otros]]","v":"Otros"},"Total","Total de puntos posibles","% total","Calificación numérica","Calificación"]
[null,null,{"$f":"IF(Configuración!C9=\"\",\"\",Configuración!C9)","v":"Francés moderno"},{"$f":"IFERROR(INDEX(tblPuntuacionesAsignatura[],MATCH($C6:$C30&D$5:AB$5,Cálculos!$C$33:$C$657,0),4),\"\")","v":{"v":0.8,"d":"80%"}},{"v":0.9,"d":"90%"},{"v":0.8,"d":"80%"},"","","","","","","","","","","","","","","","","","","","","","",{"$f":"IFERROR(AVERAGEIFS(tblPuntuacionesAsignatura[Puntuación],tblPuntuacionesAsignatura[Asignatura],Cálculos!$C6,tblPuntuacionesAsignatura[Tipo],Cálculos!AC$5)*Configuración!E9,\"\")","v":0.08333333333333334},{"$f":"IFERROR(AVERAGEIFS(tblPuntuacionesAsignatura[Puntuación],tblPuntuacionesAsignatura[Asignatura],Cálculos!$C6,tblPuntuacionesAsignatura[Tipo],Cálculos!AD$5)*Configuración!F9,\"\")","v":""},{"$f":"IFERROR(AVERAGEIFS(tblPuntuacionesAsignatura[Puntuación],tblPuntuacionesAsignatura[Asignatura],Cálculos!$C6,tblPuntuacionesAsignatura[Tipo],Cálculos!AE$5)*Configuración!G9,\"\")","v":""},{"$f":"IFERROR(AVERAGEIFS(tblPuntuacionesAsignatura[Puntuación],tblPuntuacionesAsignatura[Asignatura],Cálculos!$C6,tblPuntuacionesAsignatura[Tipo],Cálculos!AF$5)*Configuración!H9,\"\")","v":""},{"$f":"IFERROR(AVERAGEIFS(tblPuntuacionesAsignatura[Puntuación],tblPuntuacionesAsignatura[Asignatura],Cálculos!$C6,tblPuntuacionesAsignatura[Tipo],Cálculos!AG$5)*Configuración!I9,\"\")","v":""},{"$f":"IFERROR(AVERAGEIFS(tblPuntuacionesAsignatura[Puntuación],tblPuntuacionesAsignatura[Asignatura],Cálculos!$C6,tblPuntuacionesAsignatura[Tipo],Cálculos!AH$5)*Configuración!J9,\"\")","v":""},{"$f":"IFERROR(AVERAGEIFS(tblPuntuacionesAsignatura[Puntuación],tblPuntuacionesAsignatura[Asignatura],Cálculos!$C6,tblPuntuacionesAsignatura[Tipo],Cálculos!AI$5)*Configuración!K9,\"\")","v":""},{"$f":"SUM(AC6:AI6)","v":0.08333333333333334},{"$f":"SUMIFS(Configuración!E9:K9,Cálculos!AC6:AI6,\">0\")","v":0.1},{"$f":"IFERROR(AJ6/AK6,\"\")","v":{"v":0.8333333333333334,"d":"83%"}},{"$f":"IFERROR(HLOOKUP(AL6,lstAsignaciónPuntuaciones,3),\"\")","v":3},{"$f":"IFERROR(HLOOKUP(AL6,lstAsignaciónPuntuaciones,2),\"\")","v":"Notable"}]
[null,null,{"$f":"IF(Configuración!C10=\"\",\"\",Configuración!C10)","v":"Física teórica"},{"v":0.95,"d":"95%"},"","","","","","","","","","","","","","","","","","","","","","","","",{"$f":"IFERROR(AVERAGEIFS(tblPuntuacionesAsignatura[Puntuación],tblPuntuacionesAsignatura[Asignatura],Cálculos!$C7,tblPuntuacionesAsignatura[Tipo],Cálculos!AC$5)*Configuración!E10,\"\")","v":0.1425},{"$f":"IFERROR(AVERAGEIFS(tblPuntuacionesAsignatura[Puntuación],tblPuntuacionesAsignatura[Asignatura],Cálculos!$C7,tblPuntuacionesAsignatura[Tipo],Cálculos!AD$5)*Configuración!F10,\"\")","v":""},{"$f":"IFERROR(AVERAGEIFS(tblPuntuacionesAsignatura[Puntuación],tblPuntuacionesAsignatura[Asignatura],Cálculos!$C7,tblPuntuacionesAsignatura[Tipo],Cálculos!AE$5)*Configuración!G10,\"\")","v":""},{"$f":"IFERROR(AVERAGEIFS(tblPuntuacionesAsignatura[Puntuación],tblPuntuacionesAsignatura[Asignatura],Cálculos!$C7,tblPuntuacionesAsignatura[Tipo],Cálculos!AF$5)*Configuración!H10,\"\")","v":""},{"$f":"IFERROR(AVERAGEIFS(tblPuntuacionesAsignatura[Puntuación],tblPuntuacionesAsignatura[Asignatura],Cálculos!$C7,tblPuntuacionesAsignatura[Tipo],Cálculos!AG$5)*Configuración!I10,\"\")","v":""},{"$f":"IFERROR(AVERAGEIFS(tblPuntuacionesAsignatura[Puntuación],tblPuntuacionesAsignatura[Asignatura],Cálculos!$C7,tblPuntuacionesAsignatura[Tipo],Cálculos!AH$5)*Configuración!J10,\"\")","v":""},{"$f":"IFERROR(AVERAGEIFS(tblPuntuacionesAsignatura[Puntuación],tblPuntuacionesAsignatura[Asignatura],Cálculos!$C7,tblPuntuacionesAsignatura[Tipo],Cálculos!AI$5)*Configuración!K10,\"\")","v":""},{"$f":"SUM(AC7:AI7)","v":0.1425},{"$f":"SUMIFS(Configuración!E10:K10,Cálculos!AC7:AI7,\">0\")","v":0.15},{"$f":"IFERROR(AJ7/AK7,\"\")","v":{"v":0.95,"d":"95%"}},4,"Sobresaliente"]
[null,null,{"$f":"IF(Configuración!C11=\"\",\"\",Configuración!C11)","v":"Matemáticas 1"},{"v":0.8,"d":"80%"},{"v":0.8,"d":"80%"},"","","","","","","","","","","","","","","","","","","","","","","",{"$f":"IFERROR(AVERAGEIFS(tblPuntuacionesAsignatura[Puntuación],tblPuntuacionesAsignatura[Asignatura],Cálculos!$C8,tblPuntuacionesAsignatura[Tipo],Cálculos!AC$5)*Configuración!E11,\"\")","v":0.08000000000000002},{"$f":"IFERROR(AVERAGEIFS(tblPuntuacionesAsignatura[Puntuación],tblPuntuacionesAsignatura[Asignatura],Cálculos!$C8,tblPuntuacionesAsignatura[Tipo],Cálculos!AD$5)*Configuración!F11,\"\")","v":""},{"$f":"IFERROR(AVERAGEIFS(tblPuntuacionesAsignatura[Puntuación],tblPuntuacionesAsignatura[Asignatura],Cálculos!$C8,tblPuntuacionesAsignatura[Tipo],Cálculos!AE$5)*Configuración!G11,\"\")","v":""},{"$f":"IFERROR(AVERAGEIFS(tblPuntuacionesAsignatura[Puntuación],tblPuntuacionesAsignatura[Asignatura],Cálculos!$C8,tblPuntuacionesAsignatura[Tipo],Cálculos!AF$5)*Configuración!H11,\"\")","v":""},{"$f":"IFERROR(AVERAGEIFS(tblPuntuacionesAsignatura[Puntuación],tblPuntuacionesAsignatura[Asignatura],Cálculos!$C8,tblPuntuacionesAsignatura[Tipo],Cálculos!AG$5)*Configuración!I11,\"\")","v":""},{"$f":"IFERROR(AVERAGEIFS(tblPuntuacionesAsignatura[Puntuación],tblPuntuacionesAsignatura[Asignatura],Cálculos!$C8,tblPuntuacionesAsignatura[Tipo],Cálculos!AH$5)*Configuración!J11,\"\")","v":""},{"$f":"IFERROR(AVERAGEIFS(tblPuntuacionesAsignatura[Puntuación],tblPuntuacionesAsignatura[Asignatura],Cálculos!$C8,tblPuntuacionesAsignatura[Tipo],Cálculos!AI$5)*Configuración!K11,\"\")","v":""},0.08000000000000002,{"$f":"SUMIFS(Configuración!E11:K11,Cálculos!AC8:AI8,\">0\")","v":0.1},{"v":0.8000000000000002,"d":"80%"},2.67,"Notable -"]
[null,null,{"$f":"IF(Configuración!C12=\"\",\"\",Configuración!C12)","v":"Matemáticas 2"},{"v":0.85,"d":"85%"},{"v":0.95,"d":"95%"},"","","","","","","","","","","","","","","","","","","","","","","",{"$f":"IFERROR(AVERAGEIFS(tblPuntuacionesAsignatura[Puntuación],tblPuntuacionesAsignatura[Asignatura],Cálculos!$C9,tblPuntuacionesAsignatura[Tipo],Cálculos!AC$5)*Configuración!E12,\"\")","v":0.1275},{"$f":"IFERROR(AVERAGEIFS(tblPuntuacionesAsignatura[Puntuación],tblPuntuacionesAsignatura[Asignatura],Cálculos!$C9,tblPuntuacionesAsignatura[Tipo],Cálculos!AD$5)*Configuración!F12,\"\")","v":""},{"$f":"IFERROR(AVERAGEIFS(tblPuntuacionesAsignatura[Puntuación],tblPuntuacionesAsignatura[Asignatura],Cálculos!$C9,tblPuntuacionesAsignatura[Tipo],Cálculos!AE$5)*Configuración!G12,\"\")","v":0.095},{"$f":"IFERROR(AVERAGEIFS(tblPuntuacionesAsignatura[Puntuación],tblPuntuacionesAsignatura[Asignatura],Cálculos!$C9,tblPuntuacionesAsignatura[Tipo],Cálculos!AF$5)*Configuración!H12,\"\")","v":""},{"$f":"IFERROR(AVERAGEIFS(tblPuntuacionesAsignatura[Puntuación],tblPuntuacionesAsignatura[Asignatura],Cálculos!$C9,tblPuntuacionesAsignatura[Tipo],Cálculos!AG$5)*Configuración!I12,\"\")","v":""},{"$f":"IFERROR(AVERAGEIFS(tblPuntuacionesAsignatura[Puntuación],tblPuntuacionesAsignatura[Asignatura],Cálculos!$C9,tblPuntuacionesAsignatura[Tipo],Cálculos!AH$5)*Configuración!J12,\"\")","v":""},{"$f":"IFERROR(AVERAGEIFS(tblPuntuacionesAsignatura[Puntuación],tblPuntuacionesAsignatura[Asignatura],Cálculos!$C9,tblPuntuacionesAsignatura[Tipo],Cálculos!AI$5)*Configuración!K12,\"\")","v":""},0.2225,{"$f":"SUMIFS(Configuración!E12:K12,Cálculos!AC9:AI9,\">0\")","v":0.25},{"v":0.89,"d":"89%"},3.33,"Notable +"]
[null,null,{"$f":"IF(Configuración!C13=\"\",\"\",Configuración!C13)","v":"Programación avanzada en Java"},{"v":0.75,"d":"75%"},"","","","","","","","","","","","","","","","","","","","","","","","",{"$f":"IFERROR(AVERAGEIFS(tblPuntuacionesAsignatura[Puntuación],tblPuntuacionesAsignatura[Asignatura],Cálculos!$C10,tblPuntuacionesAsignatura[Tipo],Cálculos!AC$5)*Configuración!E13,\"\")","v":""},{"$f":"IFERROR(AVERAGEIFS(tblPuntuacionesAsignatura[Puntuación],tblPuntuacionesAsignatura[Asignatura],Cálculos!$C10,tblPuntuacionesAsignatura[Tipo],Cálculos!AD$5)*Configuración!F13,\"\")","v":""},{"$f":"IFERROR(AVERAGEIFS(tblPuntuacionesAsignatura[Puntuación],tblPuntuacionesAsignatura[Asignatura],Cálculos!$C10,tblPuntuacionesAsignatura[Tipo],Cálculos!AE$5)*Configuración!G13,\"\")","v":""},{"$f":"IFERROR(AVERAGEIFS(tblPuntuacionesAsignatura[Puntuación],tblPuntuacionesAsignatura[Asignatura],Cálculos!$C10,tblPuntuacionesAsignatura[Tipo],Cálculos!AF$5)*Configuración!H13,\"\")","v":""},{"$f":"IFERROR(AVERAGEIFS(tblPuntuacionesAsignatura[Puntuación],tblPuntuacionesAsignatura[Asignatura],Cálculos!$C10,tblPuntuacionesAsignatura[Tipo],Cálculos!AG$5)*Configuración!I13,\"\")","v":0.15000000000000002},{"$f":"IFERROR(AVERAGEIFS(tblPuntuacionesAsignatura[Puntuación],tblPuntuacionesAsignatura[Asignatura],Cálculos!$C10,tblPuntuacionesAsignatura[Tipo],Cálculos!AH$5)*Configuración!J13,\"\")","v":""},{"$f":"IFERROR(AVERAGEIFS(tblPuntuacionesAsignatura[Puntuación],tblPuntuacionesAsignatura[Asignatura],Cálculos!$C10,tblPuntuacionesAsignatura[Tipo],Cálculos!AI$5)*Configuración!K13,\"\")","v":""},0.15000000000000002,{"$f":"SUMIFS(Configuración!E13:K13,Cálculos!AC10:AI10,\">0\")","v":0.2},{"v":0.7500000000000001,"d":"75%"},2,"Aprobado"]
[null,null,{"$f":"IF(Configuración!C14=\"\",\"\",Configuración!C14)","v":"Español"},{"v":0.5,"d":"50%"},"","","","","","","","","","","","","","","","","","","","","","","","",{"$f":"IFERROR(AVERAGEIFS(tblPuntuacionesAsignatura[Puntuación],tblPuntuacionesAsignatura[Asignatura],Cálculos!$C11,tblPuntuacionesAsignatura[Tipo],Cálculos!AC$5)*Configuración!E14,\"\")","v":0.05},{"$f":"IFERROR(AVERAGEIFS(tblPuntuacionesAsignatura[Puntuación],tblPuntuacionesAsignatura[Asignatura],Cálculos!$C11,tblPuntuacionesAsignatura[Tipo],Cálculos!AD$5)*Configuración!F14,\"\")","v":""},{"$f":"IFERROR(AVERAGEIFS(tblPuntuacionesAsignatura[Puntuación],tblPuntuacionesAsignatura[Asignatura],Cálculos!$C11,tblPuntuacionesAsignatura[Tipo],Cálculos!AE$5)*Configuración!G14,\"\")","v":""},{"$f":"IFERROR(AVERAGEIFS(tblPuntuacionesAsignatura[Puntuación],tblPuntuacionesAsignatura[Asignatura],Cálculos!$C11,tblPuntuacionesAsignatura[Tipo],Cálculos!AF$5)*Configuración!H14,\"\")","v":""},{"$f":"IFERROR(AVERAGEIFS(tblPuntuacionesAsignatura[Puntuación],tblPuntuacionesAsignatura[Asignatura],Cálculos!$C11,tblPuntuacionesAsignatura[Tipo],Cálculos!AG$5)*Configuración!I14,\"\")","v":""},{"$f":"IFERROR(AVERAGEIFS(tblPuntuacionesAsignatura[Puntuación],tblPuntuacionesAsignatura[Asignatura],Cálculos!$C11,tblPuntuacionesAsignatura[Tipo],Cálculos!AH$5)*Configuración!J14,\"\")","v":""},{"$f":"IFERROR(AVERAGEIFS(tblPuntuacionesAsignatura[Puntuación],tblPuntuacionesAsignatura[Asignatura],Cálculos!$C11,tblPuntuacionesAsignatura[Tipo],Cálculos!AI$5)*Configuración!K14,\"\")","v":""},0.05,{"$f":"SUMIFS(Configuración!E14:K14,Cálculos!AC11:AI11,\">0\")","v":0.1},{"v":0.5,"d":"50%"},0,"Suspenso"]
[null,null,{"$f":"IF(Configuración!C15=\"\",\"\",Configuración!C15)","v":"Redacción"},{"v":0.95,"d":"95%"},"","","","","","","","","","","","","","","","","","","","","","","","",{"$f":"IFERROR(AVERAGEIFS(tblPuntuacionesAsignatura[Puntuación],tblPuntuacionesAsignatura[Asignatura],Cálculos!$C12,tblPuntuacionesAsignatura[Tipo],Cálculos!AC$5)*Configuración!E15,\"\")","v":""},{"$f":"IFERROR(AVERAGEIFS(tblPuntuacionesAsignatura[Puntuación],tblPuntuacionesAsignatura[Asignatura],Cálculos!$C12,tblPuntuacionesAsignatura[Tipo],Cálculos!AD$5)*Configuración!F15,\"\")","v":0.1425},{"$f":"IFERROR(AVERAGEIFS(tblPuntuacionesAsignatura[Puntuación],tblPuntuacionesAsignatura[Asignatura],Cálculos!$C12,tblPuntuacionesAsignatura[Tipo],Cálculos!AE$5)*Configuración!G15,\"\")","v":""},{"$f":"IFERROR(AVERAGEIFS(tblPuntuacionesAsignatura[Puntuación],tblPuntuacionesAsignatura[Asignatura],Cálculos!$C12,tblPuntuacionesAsignatura[Tipo],Cálculos!AF$5)*Configuración!H15,\"\")","v":""},{"$f":"IFERROR(AVERAGEIFS(tblPuntuacionesAsignatura[Puntuación],tblPuntuacionesAsignatura[Asignatura],Cálculos!$C12,tblPuntuacionesAsignatura[Tipo],Cálculos!AG$5)*Configuración!I15,\"\")","v":""},{"$f":"IFERROR(AVERAGEIFS(tblPuntuacionesAsignatura[Puntuación],tblPuntuacionesAsignatura[Asignatura],Cálculos!$C12,tblPuntuacionesAsignatura[Tipo],Cálculos!AH$5)*Configuración!J15,\"\")","v":""},{"$f":"IFERROR(AVERAGEIFS(tblPuntuacionesAsignatura[Puntuación],tblPuntuacionesAsignatura[Asignatura],Cálculos!$C12,tblPuntuacionesAsignatura[Tipo],Cálculos!AI$5)*Configuración!K15,\"\")","v":""},0.1425,{"$f":"SUMIFS(Configuración!E15:K15,Cálculos!AC12:AI12,\">0\")","v":0.15},{"v":0.95,"d":"95%"},4,"Sobresaliente"]
[null,null,{"$f":"IF(Configuración!C16=\"\",\"\",Configuración!C16)","v":""},"","","","","","","","","","","","","","","","","","","","","","","","","",{"$f":"IFERROR(AVERAGEIFS(tblPuntuacionesAsignatura[Puntuación],tblPuntuacionesAsignatura[Asignatura],Cálculos!$C13,tblPuntuacionesAsignatura[Tipo],Cálculos!AC$5)*Configuración!E16,\"\")","v":""},{"$f":"IFERROR(AVERAGEIFS(tblPuntuacionesAsignatura[Puntuación],tblPuntuacionesAsignatura[Asignatura],Cálculos!$C13,tblPuntuacionesAsignatura[Tipo],Cálculos!AD$5)*Configuración!F16,\"\")","v":""},{"$f":"IFERROR(AVERAGEIFS(tblPuntuacionesAsignatura[Puntuación],tblPuntuacionesAsignatura[Asignatura],Cálculos!$C13,tblPuntuacionesAsignatura[Tipo],Cálculos!AE$5)*Configuración!G16,\"\")","v":""},{"$f":"IFERROR(AVERAGEIFS(tblPuntuacionesAsignatura[Puntuación],tblPuntuacionesAsignatura[Asignatura],Cálculos!$C13,tblPuntuacionesAsignatura[Tipo],Cálculos!AF$5)*Configuración!H16,\"\")","v":""},{"$f":"IFERROR(AVERAGEIFS(tblPuntuacionesAsignatura[Puntuación],tblPuntuacionesAsignatura[Asignatura],Cálculos!$C13,tblPuntuacionesAsignatura[Tipo],Cálculos!AG$5)*Configuración!I16,\"\")","v":""},{"$f":"IFERROR(AVERAGEIFS(tblPuntuacionesAsignatura[Puntuación],tblPuntuacionesAsignatura[Asignatura],Cálculos!$C13,tblPuntuacionesAsignatura[Tipo],Cálculos!AH$5)*Configuración!J16,\"\")","v":""},{"$f":"IFERROR(AVERAGEIFS(tblPuntuacionesAsignatura[Puntuación],tblPuntuacionesAsignatura[Asignatura],Cálculos!$C13,tblPuntuacionesAsignatura[Tipo],Cálculos!AI$5)*Configuración!K16,\"\")","v":""},0,{"$f":"SUMIFS(Configuración!E16:K16,Cálculos!AC13:AI13,\">0\")","v":0},"","",""]
[null,null,{"$f":"IF(Configuración!C17=\"\",\"\",Configuración!C17)","v":""},"","","","","","","","","","","","","","","","","","","","","","","","","",{"$f":"IFERROR(AVERAGEIFS(tblPuntuacionesAsignatura[Puntuación],tblPuntuacionesAsignatura[Asignatura],Cálculos!$C14,tblPuntuacionesAsignatura[Tipo],Cálculos!AC$5)*Configuración!E17,\"\")","v":""},{"$f":"IFERROR(AVERAGEIFS(tblPuntuacionesAsignatura[Puntuación],tblPuntuacionesAsignatura[Asignatura],Cálculos!$C14,tblPuntuacionesAsignatura[Tipo],Cálculos!AD$5)*Configuración!F17,\"\")","v":""},{"$f":"IFERROR(AVERAGEIFS(tblPuntuacionesAsignatura[Puntuación],tblPuntuacionesAsignatura[Asignatura],Cálculos!$C14,tblPuntuacionesAsignatura[Tipo],Cálculos!AE$5)*Configuración!G17,\"\")","v":""},{"$f":"IFERROR(AVERAGEIFS(tblPuntuacionesAsignatura[Puntuación],tblPuntuacionesAsignatura[Asignatura],Cálculos!$C14,tblPuntuacionesAsignatura[Tipo],Cálculos!AF$5)*Configuración!H17,\"\")","v":""},{"$f":"IFERROR(AVERAGEIFS(tblPuntuacionesAsignatura[Puntuación],tblPuntuacionesAsignatura[Asignatura],Cálculos!$C14,tblPuntuacionesAsignatura[Tipo],Cálculos!AG$5)*Configuración!I17,\"\")","v":""},{"$f":"IFERROR(AVERAGEIFS(tblPuntuacionesAsignatura[Puntuación],tblPuntuacionesAsignatura[Asignatura],Cálculos!$C14,tblPuntuacionesAsignatura[Tipo],Cálculos!AH$5)*Configuración!J17,\"\")","v":""},{"$f":"IFERROR(AVERAGEIFS(tblPuntuacionesAsignatura[Puntuación],tblPuntuacionesAsignatura[Asignatura],Cálculos!$C14,tblPuntuacionesAsignatura[Tipo],Cálculos!AI$5)*Configuración!K17,\"\")","v":""},0,{"$f":"SUMIFS(Configuración!E17:K17,Cálculos!AC14:AI14,\">0\")","v":0},"","",""]
[null,null,{"$f":"IF(Configuración!C18=\"\",\"\",Configuración!C18)","v":""},"","","","","","","","","","","","","","","","","","","","","","","","","",{"$f":"IFERROR(AVERAGEIFS(tblPuntuacionesAsignatura[Puntuación],tblPuntuacionesAsignatura[Asignatura],Cálculos!$C15,tblPuntuacionesAsignatura[Tipo],Cálculos!AC$5)*Configuración!E18,\"\")","v":""},{"$f":"IFERROR(AVERAGEIFS(tblPuntuacionesAsignatura[Puntuación],tblPuntuacionesAsignatura[Asignatura],Cálculos!$C15,tblPuntuacionesAsignatura[Tipo],Cálculos!AD$5)*Configuración!F18,\"\")","v":""},{"$f":"IFERROR(AVERAGEIFS(tblPuntuacionesAsignatura[Puntuación],tblPuntuacionesAsignatura[Asignatura],Cálculos!$C15,tblPuntuacionesAsignatura[Tipo],Cálculos!AE$5)*Configuración!G18,\"\")","v":""},{"$f":"IFERROR(AVERAGEIFS(tblPuntuacionesAsignatura[Puntuación],tblPuntuacionesAsignatura[Asignatura],Cálculos!$C15,tblPuntuacionesAsignatura[Tipo],Cálculos!AF$5)*Configuración!H18,\"\")","v":""},{"$f":"IFERROR(AVERAGEIFS(tblPuntuacionesAsignatura[Puntuación],tblPuntuacionesAsignatura[Asignatura],Cálculos!$C15,tblPuntuacionesAsignatura[Tipo],Cálculos!AG$5)*Configuración!I18,\"\")","v":""},{"$f":"IFERROR(AVERAGEIFS(tblPuntuacionesAsignatura[Puntuación],tblPuntuacionesAsignatura[Asignatura],Cálculos!$C15,tblPuntuacionesAsignatura[Tipo],Cálculos!AH$5)*Configuración!J18,\"\")","v":""},{"$f":"IFERROR(AVERAGEIFS(tblPuntuacionesAsignatura[Puntuación],tblPuntuacionesAsignatura[Asignatura],Cálculos!$C15,tblPuntuacionesAsignatura[Tipo],Cálculos!AI$5)*Configuración!K18,\"\")","v":""},0,{"$f":"SUMIFS(Configuración!E18:K18,Cálculos!AC15:AI15,\">0\")","v":0},"","",""]
[null,null,{"$f":"IF(Configuración!C19=\"\",\"\",Configuración!C19)","v":""},"","","","","","","","","","","","","","","","","","","","","","","","","",{"$f":"IFERROR(AVERAGEIFS(tblPuntuacionesAsignatura[Puntuación],tblPuntuacionesAsignatura[Asignatura],Cálculos!$C16,tblPuntuacionesAsignatura[Tipo],Cálculos!AC$5)*Configuración!E19,\"\")","v":""},{"$f":"IFERROR(AVERAGEIFS(tblPuntuacionesAsignatura[Puntuación],tblPuntuacionesAsignatura[Asignatura],Cálculos!$C16,tblPuntuacionesAsignatura[Tipo],Cálculos!AD$5)*Configuración!F19,\"\")","v":""},{"$f":"IFERROR(AVERAGEIFS(tblPuntuacionesAsignatura[Puntuación],tblPuntuacionesAsignatura[Asignatura],Cálculos!$C16,tblPuntuacionesAsignatura[Tipo],Cálculos!AE$5)*Configuración!G19,\"\")","v":""},{"$f":"IFERROR(AVERAGEIFS(tblPuntuacionesAsignatura[Puntuación],tblPuntuacionesAsignatura[Asignatura],Cálculos!$C16,tblPuntuacionesAsignatura[Tipo],Cálculos!AF$5)*Configuración!H19,\"\")","v":""},{"$f":"IFERROR(AVERAGEIFS(tblPuntuacionesAsignatura[Puntuación],tblPuntuacionesAsignatura[Asignatura],Cálculos!$C16,tblPuntuacionesAsignatura[Tipo],Cálculos!AG$5)*Configuración!I19,\"\")","v":""},{"$f":"IFERROR(AVERAGEIFS(tblPuntuacionesAsignatura[Puntuación],tblPuntuacionesAsignatura[Asignatura],Cálculos!$C16,tblPuntuacionesAsignatura[Tipo],Cálculos!AH$5)*Configuración!J19,\"\")","v":""},{"$f":"IFERROR(AVERAGEIFS(tblPuntuacionesAsignatura[Puntuación],tblPuntuacionesAsignatura[Asignatura],Cálculos!$C16,tblPuntuacionesAsignatura[Tipo],Cálculos!AI$5)*Configuración!K19,\"\")","v":""},0,{"$f":"SUMIFS(Configuración!E19:K19,Cálculos!AC16:AI16,\">0\")","v":0},"","",""]
[null,null,{"$f":"IF(Configuración!C20=\"\",\"\",Configuración!C20)","v":""},"","","","","","","","","","","","","","","","","","","","","","","","","",{"$f":"IFERROR(AVERAGEIFS(tblPuntuacionesAsignatura[Puntuación],tblPuntuacionesAsignatura[Asignatura],Cálculos!$C17,tblPuntuacionesAsignatura[Tipo],Cálculos!AC$5)*Configuración!E20,\"\")","v":""},{"$f":"IFERROR(AVERAGEIFS(tblPuntuacionesAsignatura[Puntuación],tblPuntuacionesAsignatura[Asignatura],Cálculos!$C17,tblPuntuacionesAsignatura[Tipo],Cálculos!AD$5)*Configuración!F20,\"\")","v":""},{"$f":"IFERROR(AVERAGEIFS(tblPuntuacionesAsignatura[Puntuación],tblPuntuacionesAsignatura[Asignatura],Cálculos!$C17,tblPuntuacionesAsignatura[Tipo],Cálculos!AE$5)*Configuración!G20,\"\")","v":""},{"$f":"IFERROR(AVERAGEIFS(tblPuntuacionesAsignatura[Puntuación],tblPuntuacionesAsignatura[Asignatura],Cálculos!$C17,tblPuntuacionesAsignatura[Tipo],Cálculos!AF$5)*Configuración!H20,\"\")","v":""},{"$f":"IFERROR(AVERAGEIFS(tblPuntuacionesAsignatura[Puntuación],tblPuntuacionesAsignatura[Asignatura],Cálculos!$C17,tblPuntuacionesAsignatura[Tipo],Cálculos!AG$5)*Configuración!I20,\"\")","v":""},{"$f":"IFERROR(AVERAGEIFS(tblPuntuacionesAsignatura[Puntuación],tblPuntuacionesAsignatura[Asignatura],Cálculos!$C17,tblPuntuacionesAsignatura[Tipo],Cálculos!AH$5)*Configuración!J20,\"\")","v":""},{"$f":"IFERROR(AVERAGEIFS(tblPuntuacionesAsignatura[Puntuación],tblPuntuacionesAsignatura[Asignatura],Cálculos!$C17,tblPuntuacionesAsignatura[Tipo],Cálculos!AI$5)*Configuración!K20,\"\")","v":""},0,{"$f":"SUMIFS(Configuración!E20:K20,Cálculos!AC17:AI17,\">0\")","v":0},"","",""]
[null,null,{"$f":"IF(Configuración!C21=\"\",\"\",Configuración!C21)","v":""},"","","","","","","","","","","","","","","","","","","","","","","","","",{"$f":"IFERROR(AVERAGEIFS(tblPuntuacionesAsignatura[Puntuación],tblPuntuacionesAsignatura[Asignatura],Cálculos!$C18,tblPuntuacionesAsignatura[Tipo],Cálculos!AC$5)*Configuración!E21,\"\")","v":""},{"$f":"IFERROR(AVERAGEIFS(tblPuntuacionesAsignatura[Puntuación],tblPuntuacionesAsignatura[Asignatura],Cálculos!$C18,tblPuntuacionesAsignatura[Tipo],Cálculos!AD$5)*Configuración!F21,\"\")","v":""},{"$f":"IFERROR(AVERAGEIFS(tblPuntuacionesAsignatura[Puntuación],tblPuntuacionesAsignatura[Asignatura],Cálculos!$C18,tblPuntuacionesAsignatura[Tipo],Cálculos!AE$5)*Configuración!G21,\"\")","v":""},{"$f":"IFERROR(AVERAGEIFS(tblPuntuacionesAsignatura[Puntuación],tblPuntuacionesAsignatura[Asignatura],Cálculos!$C18,tblPuntuacionesAsignatura[Tipo],Cálculos!AF$5)*Configuración!H21,\"\")","v":""},{"$f":"IFERROR(AVERAGEIFS(tblPuntuacionesAsignatura[Puntuación],tblPuntuacionesAsignatura[Asignatura],Cálculos!$C18,tblPuntuacionesAsignatura[Tipo],Cálculos!AG$5)*Configuración!I21,\"\")","v":""},{"$f":"IFERROR(AVERAGEIFS(tblPuntuacionesAsignatura[Puntuación],tblPuntuacionesAsignatura[Asignatura],Cálculos!$C18,tblPuntuacionesAsignatura[Tipo],Cálculos!AH$5)*Configuración!J21,\"\")","v":""},{"$f":"IFERROR(AVERAGEIFS(tblPuntuacionesAsignatura[Puntuación],tblPuntuacionesAsignatura[Asignatura],Cálculos!$C18,tblPuntuacionesAsignatura[Tipo],Cálculos!AI$5)*Configuración!K21,\"\")","v":""},0,{"$f":"SUMIFS(Configuración!E21:K21,Cálculos!AC18:AI18,\">0\")","v":0},"","",""]
[null,null,{"$f":"IF(Configuración!C22=\"\",\"\",Configuración!C22)","v":""},"","","","","","","","","","","","","","","","","","","","","","","","","",{"$f":"IFERROR(AVERAGEIFS(tblPuntuacionesAsignatura[Puntuación],tblPuntuacionesAsignatura[Asignatura],Cálculos!$C19,tblPuntuacionesAsignatura[Tipo],Cálculos!AC$5)*Configuración!E22,\"\")","v":""},{"$f":"IFERROR(AVERAGEIFS(tblPuntuacionesAsignatura[Puntuación],tblPuntuacionesAsignatura[Asignatura],Cálculos!$C19,tblPuntuacionesAsignatura[Tipo],Cálculos!AD$5)*Configuración!F22,\"\")","v":""},{"$f":"IFERROR(AVERAGEIFS(tblPuntuacionesAsignatura[Puntuación],tblPuntuacionesAsignatura[Asignatura],Cálculos!$C19,tblPuntuacionesAsignatura[Tipo],Cálculos!AE$5)*Configuración!G22,\"\")","v":""},{"$f":"IFERROR(AVERAGEIFS(tblPuntuacionesAsignatura[Puntuación],tblPuntuacionesAsignatura[Asignatura],Cálculos!$C19,tblPuntuacionesAsignatura[Tipo],Cálculos!AF$5)*Configuración!H22,\"\")","v":""},{"$f":"IFERROR(AVERAGEIFS(tblPuntuacionesAsignatura[Puntuación],tblPuntuacionesAsignatura[Asignatura],Cálculos!$C19,tblPuntuacionesAsignatura[Tipo],Cálculos!AG$5)*Configuración!I22,\"\")","v":""},{"$f":"IFERROR(AVERAGEIFS(tblPuntuacionesAsignatura[Puntuación],tblPuntuacionesAsignatura[Asignatura],Cálculos!$C19,tblPuntuacionesAsignatura[Tipo],Cálculos!AH$5)*Configuración!J22,\"\")","v":""},{"$f":"IFERROR(AVERAGEIFS(tblPuntuacionesAsignatura[Puntuación],tblPuntuacionesAsignatura[Asignatura],Cálculos!$C19,tblPuntuacionesAsignatura[Tipo],Cálculos!AI$5)*Configuración!K22,\"\")","v":""},0,{"$f":"SUMIFS(Configuración!E22:K22,Cálculos!AC19:AI19,\">0\")","v":0},"","",""]
[null,null,{"$f":"IF(Configuración!C23=\"\",\"\",Configuración!C23)","v":""},"","","","","","","","","","","","","","","","","","","","","","","","","",{"$f":"IFERROR(AVERAGEIFS(tblPuntuacionesAsignatura[Puntuación],tblPuntuacionesAsignatura[Asignatura],Cálculos!$C20,tblPuntuacionesAsignatura[Tipo],Cálculos!AC$5)*Configuración!E23,\"\")","v":""},{"$f":"IFERROR(AVERAGEIFS(tblPuntuacionesAsignatura[Puntuación],tblPuntuacionesAsignatura[Asignatura],Cálculos!$C20,tblPuntuacionesAsignatura[Tipo],Cálculos!AD$5)*Configuración!F23,\"\")","v":""},{"$f":"IFERROR(AVERAGEIFS(tblPuntuacionesAsignatura[Puntuación],tblPuntuacionesAsignatura[Asignatura],Cálculos!$C20,tblPuntuacionesAsignatura[Tipo],Cálculos!AE$5)*Configuración!G23,\"\")","v":""},{"$f":"IFERROR(AVERAGEIFS(tblPuntuacionesAsignatura[Puntuación],tblPuntuacionesAsignatura[Asignatura],Cálculos!$C20,tblPuntuacionesAsignatura[Tipo],Cálculos!AF$5)*Configuración!H23,\"\")","v":""},{"$f":"IFERROR(AVERAGEIFS(tblPuntuacionesAsignatura[Puntuación],tblPuntuacionesAsignatura[Asignatura],Cálculos!$C20,tblPuntuacionesAsignatura[Tipo],Cálculos!AG$5)*Configuración!I23,\"\")","v":""},{"$f":"IFERROR(AVERAGEIFS(tblPuntuacionesAsignatura[Puntuación],tblPuntuacionesAsignatura[Asignatura],Cálculos!$C20,tblPuntuacionesAsignatura[Tipo],Cálculos!AH$5)*Configuración!J23,\"\")","v":""},{"$f":"IFERROR(AVERAGEIFS(tblPuntuacionesAsignatura[Puntuación],tblPuntuacionesAsignatura[Asignatura],Cálculos!$C20,tblPuntuacionesAsignatura[Tipo],Cálculos!AI$5)*Configuración!K23,\"\")","v":""},0,{"$f":"SUMIFS(Configuración!E23:K23,Cálculos!AC20:AI20,\">0\")","v":0},"","",""]
[null,null,{"$f":"IF(Configuración!C24=\"\",\"\",Configuración!C24)","v":""},"","","","","","","","","","","","","","","","","","","","","","","","","",{"$f":"IFERROR(AVERAGEIFS(tblPuntuacionesAsignatura[Puntuación],tblPuntuacionesAsignatura[Asignatura],Cálculos!$C21,tblPuntuacionesAsignatura[Tipo],Cálculos!AC$5)*Configuración!E24,\"\")","v":""},{"$f":"IFERROR(AVERAGEIFS(tblPuntuacionesAsignatura[Puntuación],tblPuntuacionesAsignatura[Asignatura],Cálculos!$C21,tblPuntuacionesAsignatura[Tipo],Cálculos!AD$5)*Configuración!F24,\"\")","v":""},{"$f":"IFERROR(AVERAGEIFS(tblPuntuacionesAsignatura[Puntuación],tblPuntuacionesAsignatura[Asignatura],Cálculos!$C21,tblPuntuacionesAsignatura[Tipo],Cálculos!AE$5)*Configuración!G24,\"\")","v":""},{"$f":"IFERROR(AVERAGEIFS(tblPuntuacionesAsignatura[Puntuación],tblPuntuacionesAsignatura[Asignatura],Cálculos!$C21,tblPuntuacionesAsignatura[Tipo],Cálculos!AF$5)*Configuración!H24,\"\")","v":""},{"$f":"IFERROR(AVERAGEIFS(tblPuntuacionesAsignatura[Puntuación],tblPuntuacionesAsignatura[Asignatura],Cálculos!$C21,tblPuntuacionesAsignatura[Tipo],Cálculos!AG$5)*Configuración!I24,\"\")","v":""},{"$f":"IFERROR(AVERAGEIFS(tblPuntuacionesAsignatura[Puntuación],tblPuntuacionesAsignatura[Asignatura],Cálculos!$C21,tblPuntuacionesAsignatura[Tipo],Cálculos!AH$5)*Configuración!J24,\"\")","v":""},{"$f":"IFERROR(AVERAGEIFS(tblPuntuacionesAsignatura[Puntuación],tblPuntuacionesAsignatura[Asignatura],Cálculos!$C21,tblPuntuacionesAsignatura[Tipo],Cálculos!AI$5)*Configuración!K24,\"\")","v":""},0,{"$f":"SUMIFS(Configuración!E24:K24,Cálculos!AC21:AI21,\">0\")","v":0},"","",""]
[null,null,{"$f":"IF(Configuración!C25=\"\",\"\",Configuración!C25)","v":""},"","","","","","","","","","","","","","","","","","","","","","","","","",{"$f":"IFERROR(AVERAGEIFS(tblPuntuacionesAsignatura[Puntuación],tblPuntuacionesAsignatura[Asignatura],Cálculos!$C22,tblPuntuacionesAsignatura[Tipo],Cálculos!AC$5)*Configuración!E25,\"\")","v":""},{"$f":"IFERROR(AVERAGEIFS(tblPuntuacionesAsignatura[Puntuación],tblPuntuacionesAsignatura[Asignatura],Cálculos!$C22,tblPuntuacionesAsignatura[Tipo],Cálculos!AD$5)*Configuración!F25,\"\")","v":""},{"$f":"IFERROR(AVERAGEIFS(tblPuntuacionesAsignatura[Puntuación],tblPuntuacionesAsignatura[Asignatura],Cálculos!$C22,tblPuntuacionesAsignatura[Tipo],Cálculos!AE$5)*Configuración!G25,\"\")","v":""},{"$f":"IFERROR(AVERAGEIFS(tblPuntuacionesAsignatura[Puntuación],tblPuntuacionesAsignatura[Asignatura],Cálculos!$C22,tblPuntuacionesAsignatura[Tipo],Cálculos!AF$5)*Configuración!H25,\"\")","v":""},{"$f":"IFERROR(AVERAGEIFS(tblPuntuacionesAsignatura[Puntuación],tblPuntuacionesAsignatura[Asignatura],Cálculos!$C22,tblPuntuacionesAsignatura[Tipo],Cálculos!AG$5)*Configuración!I25,\"\")","v":""},{"$f":"IFERROR(AVERAGEIFS(tblPuntuacionesAsignatura[Puntuación],tblPuntuacionesAsignatura[Asignatura],Cálculos!$C22,tblPuntuacionesAsignatura[Tipo],Cálculos!AH$5)*Configuración!J25,\"\")","v":""},{"$f":"IFERROR(AVERAGEIFS(tblPuntuacionesAsignatura[Puntuación],tblPuntuacionesAsignatura[Asignatura],Cálculos!$C22,tblPuntuacionesAsignatura[Tipo],Cálculos!AI$5)*Configuración!K25,\"\")","v":""},0,{"$f":"SUMIFS(Configuración!E25:K25,Cálculos!AC22:AI22,\">0\")","v":0},"","",""]
[null,null,{"$f":"IF(Configuración!C26=\"\",\"\",Configuración!C26)","v":""},"","","","","","","","","","","","","","","","","","","","","","","","","",{"$f":"IFERROR(AVERAGEIFS(tblPuntuacionesAsignatura[Puntuación],tblPuntuacionesAsignatura[Asignatura],Cálculos!$C23,tblPuntuacionesAsignatura[Tipo],Cálculos!AC$5)*Configuración!E26,\"\")","v":""},{"$f":"IFERROR(AVERAGEIFS(tblPuntuacionesAsignatura[Puntuación],tblPuntuacionesAsignatura[Asignatura],Cálculos!$C23,tblPuntuacionesAsignatura[Tipo],Cálculos!AD$5)*Configuración!F26,\"\")","v":""},{"$f":"IFERROR(AVERAGEIFS(tblPuntuacionesAsignatura[Puntuación],tblPuntuacionesAsignatura[Asignatura],Cálculos!$C23,tblPuntuacionesAsignatura[Tipo],Cálculos!AE$5)*Configuración!G26,\"\")","v":""},{"$f":"IFERROR(AVERAGEIFS(tblPuntuacionesAsignatura[Puntuación],tblPuntuacionesAsignatura[Asignatura],Cálculos!$C23,tblPuntuacionesAsignatura[Tipo],Cálculos!AF$5)*Configuración!H26,\"\")","v":""},{"$f":"IFERROR(AVERAGEIFS(tblPuntuacionesAsignatura[Puntuación],tblPuntuacionesAsignatura[Asignatura],Cálculos!$C23,tblPuntuacionesAsignatura[Tipo],Cálculos!AG$5)*Configuración!I26,\"\")","v":""},{"$f":"IFERROR(AVERAGEIFS(tblPuntuacionesAsignatura[Puntuación],tblPuntuacionesAsignatura[Asignatura],Cálculos!$C23,tblPuntuacionesAsignatura[Tipo],Cálculos!AH$5)*Configuración!J26,\"\")","v":""},{"$f":"IFERROR(AVERAGEIFS(tblPuntuacionesAsignatura[Puntuación],tblPuntuacionesAsignatura[Asignatura],Cálculos!$C23,tblPuntuacionesAsignatura[Tipo],Cálculos!AI$5)*Configuración!K26,\"\")","v":""},0,{"$f":"SUMIFS(Configuración!E26:K26,Cálculos!AC23:AI23,\">0\")","v":0},"","",""]
[null,null,{"$f":"IF(Configuración!C27=\"\",\"\",Configuración!C27)","v":""},"","","","","","","","","","","","","","","","","","","","","","","","","",{"$f":"IFERROR(AVERAGEIFS(tblPuntuacionesAsignatura[Puntuación],tblPuntuacionesAsignatura[Asignatura],Cálculos!$C24,tblPuntuacionesAsignatura[Tipo],Cálculos!AC$5)*Configuración!E27,\"\")","v":""},{"$f":"IFERROR(AVERAGEIFS(tblPuntuacionesAsignatura[Puntuación],tblPuntuacionesAsignatura[Asignatura],Cálculos!$C24,tblPuntuacionesAsignatura[Tipo],Cálculos!AD$5)*Configuración!F27,\"\")","v":""},{"$f":"IFERROR(AVERAGEIFS(tblPuntuacionesAsignatura[Puntuación],tblPuntuacionesAsignatura[Asignatura],Cálculos!$C24,tblPuntuacionesAsignatura[Tipo],Cálculos!AE$5)*Configuración!G27,\"\")","v":""},{"$f":"IFERROR(AVERAGEIFS(tblPuntuacionesAsignatura[Puntuación],tblPuntuacionesAsignatura[Asignatura],Cálculos!$C24,tblPuntuacionesAsignatura[Tipo],Cálculos!AF$5)*Configuración!H27,\"\")","v":""},{"$f":"IFERROR(AVERAGEIFS(tblPuntuacionesAsignatura[Puntuación],tblPuntuacionesAsignatura[Asignatura],Cálculos!$C24,tblPuntuacionesAsignatura[Tipo],Cálculos!AG$5)*Configuración!I27,\"\")","v":""},{"$f":"IFERROR(AVERAGEIFS(tblPuntuacionesAsignatura[Puntuación],tblPuntuacionesAsignatura[Asignatura],Cálculos!$C24,tblPuntuacionesAsignatura[Tipo],Cálculos!AH$5)*Configuración!J27,\"\")","v":""},{"$f":"IFERROR(AVERAGEIFS(tblPuntuacionesAsignatura[Puntuación],tblPuntuacionesAsignatura[Asignatura],Cálculos!$C24,tblPuntuacionesAsignatura[Tipo],Cálculos!AI$5)*Configuración!K27,\"\")","v":""},0,{"$f":"SUMIFS(Configuración!E27:K27,Cálculos!AC24:AI24,\">0\")","v":0},"","",""]
[null,null,{"$f":"IF(Configuración!C28=\"\",\"\",Configuración!C28)","v":""},"","","","","","","","","","","","","","","","","","","","","","","","","",{"$f":"IFERROR(AVERAGEIFS(tblPuntuacionesAsignatura[Puntuación],tblPuntuacionesAsignatura[Asignatura],Cálculos!$C25,tblPuntuacionesAsignatura[Tipo],Cálculos!AC$5)*Configuración!E28,\"\")","v":""},{"$f":"IFERROR(AVERAGEIFS(tblPuntuacionesAsignatura[Puntuación],tblPuntuacionesAsignatura[Asignatura],Cálculos!$C25,tblPuntuacionesAsignatura[Tipo],Cálculos!AD$5)*Configuración!F28,\"\")","v":""},{"$f":"IFERROR(AVERAGEIFS(tblPuntuacionesAsignatura[Puntuación],tblPuntuacionesAsignatura[Asignatura],Cálculos!$C25,tblPuntuacionesAsignatura[Tipo],Cálculos!AE$5)*Configuración!G28,\"\")","v":""},{"$f":"IFERROR(AVERAGEIFS(tblPuntuacionesAsignatura[Puntuación],tblPuntuacionesAsignatura[Asignatura],Cálculos!$C25,tblPuntuacionesAsignatura[Tipo],Cálculos!AF$5)*Configuración!H28,\"\")","v":""},{"$f":"IFERROR(AVERAGEIFS(tblPuntuacionesAsignatura[Puntuación],tblPuntuacionesAsignatura[Asignatura],Cálculos!$C25,tblPuntuacionesAsignatura[Tipo],Cálculos!AG$5)*Configuración!I28,\"\")","v":""},{"$f":"IFERROR(AVERAGEIFS(tblPuntuacionesAsignatura[Puntuación],tblPuntuacionesAsignatura[Asignatura],Cálculos!$C25,tblPuntuacionesAsignatura[Tipo],Cálculos!AH$5)*Configuración!J28,\"\")","v":""},{"$f":"IFERROR(AVERAGEIFS(tblPuntuacionesAsignatura[Puntuación],tblPuntuacionesAsignatura[Asignatura],Cálculos!$C25,tblPuntuacionesAsignatura[Tipo],Cálculos!AI$5)*Configuración!K28,\"\")","v":""},0,{"$f":"SUMIFS(Configuración!E28:K28,Cálculos!AC25:AI25,\">0\")","v":0},"","",""]
[null,null,{"$f":"IF(Configuración!C29=\"\",\"\",Configuración!C29)","v":""},"","","","","","","","","","","","","","","","","","","","","","","","","",{"$f":"IFERROR(AVERAGEIFS(tblPuntuacionesAsignatura[Puntuación],tblPuntuacionesAsignatura[Asignatura],Cálculos!$C26,tblPuntuacionesAsignatura[Tipo],Cálculos!AC$5)*Configuración!E29,\"\")","v":""},{"$f":"IFERROR(AVERAGEIFS(tblPuntuacionesAsignatura[Puntuación],tblPuntuacionesAsignatura[Asignatura],Cálculos!$C26,tblPuntuacionesAsignatura[Tipo],Cálculos!AD$5)*Configuración!F29,\"\")","v":""},{"$f":"IFERROR(AVERAGEIFS(tblPuntuacionesAsignatura[Puntuación],tblPuntuacionesAsignatura[Asignatura],Cálculos!$C26,tblPuntuacionesAsignatura[Tipo],Cálculos!AE$5)*Configuración!G29,\"\")","v":""},{"$f":"IFERROR(AVERAGEIFS(tblPuntuacionesAsignatura[Puntuación],tblPuntuacionesAsignatura[Asignatura],Cálculos!$C26,tblPuntuacionesAsignatura[Tipo],Cálculos!AF$5)*Configuración!H29,\"\")","v":""},{"$f":"IFERROR(AVERAGEIFS(tblPuntuacionesAsignatura[Puntuación],tblPuntuacionesAsignatura[Asignatura],Cálculos!$C26,tblPuntuacionesAsignatura[Tipo],Cálculos!AG$5)*Configuración!I29,\"\")","v":""},{"$f":"IFERROR(AVERAGEIFS(tblPuntuacionesAsignatura[Puntuación],tblPuntuacionesAsignatura[Asignatura],Cálculos!$C26,tblPuntuacionesAsignatura[Tipo],Cálculos!AH$5)*Configuración!J29,\"\")","v":""},{"$f":"IFERROR(AVERAGEIFS(tblPuntuacionesAsignatura[Puntuación],tblPuntuacionesAsignatura[Asignatura],Cálculos!$C26,tblPuntuacionesAsignatura[Tipo],Cálculos!AI$5)*Configuración!K29,\"\")","v":""},0,{"$f":"SUMIFS(Configuración!E29:K29,Cálculos!AC26:AI26,\">0\")","v":0},"","",""]
[null,null,{"$f":"IF(Configuración!C30=\"\",\"\",Configuración!C30)","v":""},"","","","","","","","","","","","","","","","","","","","","","","","","",{"$f":"IFERROR(AVERAGEIFS(tblPuntuacionesAsignatura[Puntuación],tblPuntuacionesAsignatura[Asignatura],Cálculos!$C27,tblPuntuacionesAsignatura[Tipo],Cálculos!AC$5)*Configuración!E30,\"\")","v":""},{"$f":"IFERROR(AVERAGEIFS(tblPuntuacionesAsignatura[Puntuación],tblPuntuacionesAsignatura[Asignatura],Cálculos!$C27,tblPuntuacionesAsignatura[Tipo],Cálculos!AD$5)*Configuración!F30,\"\")","v":""},{"$f":"IFERROR(AVERAGEIFS(tblPuntuacionesAsignatura[Puntuación],tblPuntuacionesAsignatura[Asignatura],Cálculos!$C27,tblPuntuacionesAsignatura[Tipo],Cálculos!AE$5)*Configuración!G30,\"\")","v":""},{"$f":"IFERROR(AVERAGEIFS(tblPuntuacionesAsignatura[Puntuación],tblPuntuacionesAsignatura[Asignatura],Cálculos!$C27,tblPuntuacionesAsignatura[Tipo],Cálculos!AF$5)*Configuración!H30,\"\")","v":""},{"$f":"IFERROR(AVERAGEIFS(tblPuntuacionesAsignatura[Puntuación],tblPuntuacionesAsignatura[Asignatura],Cálculos!$C27,tblPuntuacionesAsignatura[Tipo],Cálculos!AG$5)*Configuración!I30,\"\")","v":""},{"$f":"IFERROR(AVERAGEIFS(tblPuntuacionesAsignatura[Puntuación],tblPuntuacionesAsignatura[Asignatura],Cálculos!$C27,tblPuntuacionesAsignatura[Tipo],Cálculos!AH$5)*Configuración!J30,\"\")","v":""},{"$f":"IFERROR(AVERAGEIFS(tblPuntuacionesAsignatura[Puntuación],tblPuntuacionesAsignatura[Asignatura],Cálculos!$C27,tblPuntuacionesAsignatura[Tipo],Cálculos!AI$5)*Configuración!K30,\"\")","v":""},0,{"$f":"SUMIFS(Configuración!E30:K30,Cálculos!AC27:AI27,\">0\")","v":0},"","",""]
[null,null,{"$f":"IF(Configuración!C31=\"\",\"\",Configuración!C31)","v":""},"","","","","","","","","","","","","","","","","","","","","","","","","",{"$f":"IFERROR(AVERAGEIFS(tblPuntuacionesAsignatura[Puntuación],tblPuntuacionesAsignatura[Asignatura],Cálculos!$C28,tblPuntuacionesAsignatura[Tipo],Cálculos!AC$5)*Configuración!E31,\"\")","v":""},{"$f":"IFERROR(AVERAGEIFS(tblPuntuacionesAsignatura[Puntuación],tblPuntuacionesAsignatura[Asignatura],Cálculos!$C28,tblPuntuacionesAsignatura[Tipo],Cálculos!AD$5)*Configuración!F31,\"\")","v":""},{"$f":"IFERROR(AVERAGEIFS(tblPuntuacionesAsignatura[Puntuación],tblPuntuacionesAsignatura[Asignatura],Cálculos!$C28,tblPuntuacionesAsignatura[Tipo],Cálculos!AE$5)*Configuración!G31,\"\")","v":""},{"$f":"IFERROR(AVERAGEIFS(tblPuntuacionesAsignatura[Puntuación],tblPuntuacionesAsignatura[Asignatura],Cálculos!$C28,tblPuntuacionesAsignatura[Tipo],Cálculos!AF$5)*Configuración!H31,\"\")","v":""},{"$f":"IFERROR(AVERAGEIFS(tblPuntuacionesAsignatura[Puntuación],tblPuntuacionesAsignatura[Asignatura],Cálculos!$C28,tblPuntuacionesAsignatura[Tipo],Cálculos!AG$5)*Configuración!I31,\"\")","v":""},{"$f":"IFERROR(AVERAGEIFS(tblPuntuacionesAsignatura[Puntuación],tblPuntuacionesAsignatura[Asignatura],Cálculos!$C28,tblPuntuacionesAsignatura[Tipo],Cálculos!AH$5)*Configuración!J31,\"\")","v":""},{"$f":"IFERROR(AVERAGEIFS(tblPuntuacionesAsignatura[Puntuación],tblPuntuacionesAsignatura[Asignatura],Cálculos!$C28,tblPuntuacionesAsignatura[Tipo],Cálculos!AI$5)*Configuración!K31,\"\")","v":""},0,{"$f":"SUMIFS(Configuración!E31:K31,Cálculos!AC28:AI28,\">0\")","v":0},"","",""]
[null,null,{"$f":"IF(Configuración!C32=\"\",\"\",Configuración!C32)","v":""},"","","","","","","","","","","","","","","","","","","","","","","","","",{"$f":"IFERROR(AVERAGEIFS(tblPuntuacionesAsignatura[Puntuación],tblPuntuacionesAsignatura[Asignatura],Cálculos!$C29,tblPuntuacionesAsignatura[Tipo],Cálculos!AC$5)*Configuración!E32,\"\")","v":""},{"$f":"IFERROR(AVERAGEIFS(tblPuntuacionesAsignatura[Puntuación],tblPuntuacionesAsignatura[Asignatura],Cálculos!$C29,tblPuntuacionesAsignatura[Tipo],Cálculos!AD$5)*Configuración!F32,\"\")","v":""},{"$f":"IFERROR(AVERAGEIFS(tblPuntuacionesAsignatura[Puntuación],tblPuntuacionesAsignatura[Asignatura],Cálculos!$C29,tblPuntuacionesAsignatura[Tipo],Cálculos!AE$5)*Configuración!G32,\"\")","v":""},{"$f":"IFERROR(AVERAGEIFS(tblPuntuacionesAsignatura[Puntuación],tblPuntuacionesAsignatura[Asignatura],Cálculos!$C29,tblPuntuacionesAsignatura[Tipo],Cálculos!AF$5)*Configuración!H32,\"\")","v":""},{"$f":"IFERROR(AVERAGEIFS(tblPuntuacionesAsignatura[Puntuación],tblPuntuacionesAsignatura[Asignatura],Cálculos!$C29,tblPuntuacionesAsignatura[Tipo],Cálculos!AG$5)*Configuración!I32,\"\")","v":""},{"$f":"IFERROR(AVERAGEIFS(tblPuntuacionesAsignatura[Puntuación],tblPuntuacionesAsignatura[Asignatura],Cálculos!$C29,tblPuntuacionesAsignatura[Tipo],Cálculos!AH$5)*Configuración!J32,\"\")","v":""},{"$f":"IFERROR(AVERAGEIFS(tblPuntuacionesAsignatura[Puntuación],tblPuntuacionesAsignatura[Asignatura],Cálculos!$C29,tblPuntuacionesAsignatura[Tipo],Cálculos!AI$5)*Configuración!K32,\"\")","v":""},0,{"$f":"SUMIFS(Configuración!E32:K32,Cálculos!AC29:AI29,\">0\")","v":0},"","",""]
[null,null,{"$f":"IF(Configuración!C33=\"\",\"\",Configuración!C33)","v":""},"","","","","","","","","","","","","","","","","","","","","","","","","",{"$f":"IFERROR(AVERAGEIFS(tblPuntuacionesAsignatura[Puntuación],tblPuntuacionesAsignatura[Asignatura],Cálculos!$C30,tblPuntuacionesAsignatura[Tipo],Cálculos!AC$5)*Configuración!E33,\"\")","v":""},{"$f":"IFERROR(AVERAGEIFS(tblPuntuacionesAsignatura[Puntuación],tblPuntuacionesAsignatura[Asignatura],Cálculos!$C30,tblPuntuacionesAsignatura[Tipo],Cálculos!AD$5)*Configuración!F33,\"\")","v":""},{"$f":"IFERROR(AVERAGEIFS(tblPuntuacionesAsignatura[Puntuación],tblPuntuacionesAsignatura[Asignatura],Cálculos!$C30,tblPuntuacionesAsignatura[Tipo],Cálculos!AE$5)*Configuración!G33,\"\")","v":""},{"$f":"IFERROR(AVERAGEIFS(tblPuntuacionesAsignatura[Puntuación],tblPuntuacionesAsignatura[Asignatura],Cálculos!$C30,tblPuntuacionesAsignatura[Tipo],Cálculos!AF$5)*Configuración!H33,\"\")","v":""},{"$f":"IFERROR(AVERAGEIFS(tblPuntuacionesAsignatura[Puntuación],tblPuntuacionesAsignatura[Asignatura],Cálculos!$C30,tblPuntuacionesAsignatura[Tipo],Cálculos!AG$5)*Configuración!I33,\"\")","v":""},{"$f":"IFERROR(AVERAGEIFS(tblPuntuacionesAsignatura[Puntuación],tblPuntuacionesAsignatura[Asignatura],Cálculos!$C30,tblPuntuacionesAsignatura[Tipo],Cálculos!AH$5)*Configuración!J33,\"\")","v":""},{"$f":"IFERROR(AVERAGEIFS(tblPuntuacionesAsignatura[Puntuación],tblPuntuacionesAsignatura[Asignatura],Cálculos!$C30,tblPuntuacionesAsignatura[Tipo],Cálculos!AI$5)*Configuración!K33,\"\")","v":""},0,{"$f":"SUMIFS(Configuración!E33:K33,Cálculos!AC30:AI30,\">0\")","v":0},"","",""]
[]
[]
[null,1,{"$f":"'Seguimiento de las puntuaciones'!C4&COUNTIF('Seguimiento de las puntuaciones'!$C$4:C4,'Seguimiento de las puntuaciones'!C4)","v":"Francés moderno1"}]
[null,2,{"$f":"'Seguimiento de las puntuaciones'!C5&COUNTIF('Seguimiento de las puntuaciones'!$C$4:C5,'Seguimiento de las puntuaciones'!C5)","v":"Programación avanzada en Java1"}]
[null,3,{"$f":"'Seguimiento de las puntuaciones'!C6&COUNTIF('Seguimiento de las puntuaciones'!$C$4:C6,'Seguimiento de las puntuaciones'!C6)","v":"Español1"}]
[null,4,{"$f":"'Seguimiento de las puntuaciones'!C7&COUNTIF('Seguimiento de las puntuaciones'!$C$4:C7,'Seguimiento de las puntuaciones'!C7)","v":"Física teórica1"}]
[null,5,{"$f":"'Seguimiento de las puntuaciones'!C8&COUNTIF('Seguimiento de las puntuaciones'!$C$4:C8,'Seguimiento de las puntuaciones'!C8)","v":"Francés moderno2"}]
[null,6,{"$f":"'Seguimiento de las puntuaciones'!C9&COUNTIF('Seguimiento de las puntuaciones'!$C$4:C9,'Seguimiento de las puntuaciones'!C9)","v":"Francés moderno3"}]
[null,7,{"$f":"'Seguimiento de las puntuaciones'!C10&COUNTIF('Seguimiento de las puntuaciones'!$C$4:C10,'Seguimiento de las puntuaciones'!C10)","v":"Redacción1"}]
[null,8,{"$f":"'Seguimiento de las puntuaciones'!C11&COUNTIF('Seguimiento de las puntuaciones'!$C$4:C11,'Seguimiento de las puntuaciones'!C11)","v":"Matemáticas 11"}]
[null,9,{"$f":"'Seguimiento de las puntuaciones'!C12&COUNTIF('Seguimiento de las puntuaciones'!$C$4:C12,'Seguimiento de las puntuaciones'!C12)","v":"Matemáticas 21"}]
[null,10,{"$f":"'Seguimiento de las puntuaciones'!C13&COUNTIF('Seguimiento de las puntuaciones'!$C$4:C14,'Seguimiento de las puntuaciones'!C13)","v":"Matemáticas 12"}]
[null,11,{"$f":"'Seguimiento de las puntuaciones'!C14&COUNTIF('Seguimiento de las puntuaciones'!$C$4:C14,'Seguimiento de las puntuaciones'!C14)","v":"Matemáticas 22"}]
[null,12,{"$f":"'Seguimiento de las puntuaciones'!C15&COUNTIF('Seguimiento de las puntuaciones'!$C$4:C15,'Seguimiento de las puntuaciones'!C15)","v":"0"}]
[null,13,{"$f":"'Seguimiento de las puntuaciones'!C16&COUNTIF('Seguimiento de las puntuaciones'!$C$4:C16,'Seguimiento de las puntuaciones'!C16)","v":"0"}]
[null,14,{"$f":"'Seguimiento de las puntuaciones'!C17&COUNTIF('Seguimiento de las puntuaciones'!$C$4:C17,'Seguimiento de las puntuaciones'!C17)","v":"0"}]
[null,15,{"$f":"'Seguimiento de las puntuaciones'!C18&COUNTIF('Seguimiento de las puntuaciones'!$C$4:C18,'Seguimiento de las puntuaciones'!C18)","v":"0"}]
[null,16,{"$f":"'Seguimiento de las puntuaciones'!C19&COUNTIF('Seguimiento de las puntuaciones'!$C$4:C19,'Seguimiento de las puntuaciones'!C19)","v":"0"}]
[null,17,{"$f":"'Seguimiento de las puntuaciones'!C20&COUNTIF('Seguimiento de las puntuaciones'!$C$4:C20,'Seguimiento de las puntuaciones'!C20)","v":"0"}]
[null,18,{"$f":"'Seguimiento de las puntuaciones'!C21&COUNTIF('Seguimiento de las puntuaciones'!$C$4:C21,'Seguimiento de las puntuaciones'!C21)","v":"0"}]
[null,19,{"$f":"'Seguimiento de las puntuaciones'!C22&COUNTIF('Seguimiento de las puntuaciones'!$C$4:C22,'Seguimiento de las puntuaciones'!C22)","v":"0"}]
[null,20,{"$f":"'Seguimiento de las puntuaciones'!C23&COUNTIF('Seguimiento de las puntuaciones'!$C$4:C23,'Seguimiento de las puntuaciones'!C23)","v":"0"}]
[null,21,{"$f":"'Seguimiento de las puntuaciones'!C24&COUNTIF('Seguimiento de las puntuaciones'!$C$4:C24,'Seguimiento de las puntuaciones'!C24)","v":"0"}]
[null,22,{"$f":"'Seguimiento de las puntuaciones'!C25&COUNTIF('Seguimiento de las puntuaciones'!$C$4:C25,'Seguimiento de las puntuaciones'!C25)","v":"0"}]
[null,23,{"$f":"'Seguimiento de las puntuaciones'!C26&COUNTIF('Seguimiento de las puntuaciones'!$C$4:C26,'Seguimiento de las puntuaciones'!C26)","v":"0"}]
[null,24,{"$f":"'Seguimiento de las puntuaciones'!C27&COUNTIF('Seguimiento de las puntuaciones'!$C$4:C27,'Seguimiento de las puntuaciones'!C27)","v":"0"}]
[null,25,{"$f":"'Seguimiento de las puntuaciones'!C28&COUNTIF('Seguimiento de las puntuaciones'!$C$4:C28,'Seguimiento de las puntuaciones'!C28)","v":"0"}]
[null,26,{"$f":"'Seguimiento de las puntuaciones'!C29&COUNTIF('Seguimiento de las puntuaciones'!$C$4:C29,'Seguimiento de las puntuaciones'!C29)","v":"0"}]
[null,27,{"$f":"'Seguimiento de las puntuaciones'!C30&COUNTIF('Seguimiento de las puntuaciones'!$C$4:C30,'Seguimiento de las puntuaciones'!C30)","v":"0"}]
[null,28,{"$f":"'Seguimiento de las puntuaciones'!C31&COUNTIF('Seguimiento de las puntuaciones'!$C$4:C31,'Seguimiento de las puntuaciones'!C31)","v":"0"}]
[null,29,{"$f":"'Seguimiento de las puntuaciones'!C32&COUNTIF('Seguimiento de las puntuaciones'!$C$4:C32,'Seguimiento de las puntuaciones'!C32)","v":"0"}]
[null,30,{"$f":"'Seguimiento de las puntuaciones'!C33&COUNTIF('Seguimiento de las puntuaciones'!$C$4:C33,'Seguimiento de las puntuaciones'!C33)","v":"0"}]
[null,31,{"$f":"'Seguimiento de las puntuaciones'!C34&COUNTIF('Seguimiento de las puntuaciones'!$C$4:C34,'Seguimiento de las puntuaciones'!C34)","v":"0"}]
[null,32,{"$f":"'Seguimiento de las puntuaciones'!C35&COUNTIF('Seguimiento de las puntuaciones'!$C$4:C35,'Seguimiento de las puntuaciones'!C35)","v":"0"}]
[null,33,{"$f":"'Seguimiento de las puntuaciones'!C36&COUNTIF('Seguimiento de las puntuaciones'!$C$4:C36,'Seguimiento de las puntuaciones'!C36)","v":"0"}]
[null,34,{"$f":"'Seguimiento de las puntuaciones'!C37&COUNTIF('Seguimiento de las puntuaciones'!$C$4:C37,'Seguimiento de las puntuaciones'!C37)","v":"0"}]
[null,35,{"$f":"'Seguimiento de las puntuaciones'!C38&COUNTIF('Seguimiento de las puntuaciones'!$C$4:C38,'Seguimiento de las puntuaciones'!C38)","v":"0"}]
[null,36,{"$f":"'Seguimiento de las puntuaciones'!C39&COUNTIF('Seguimiento de las puntuaciones'!$C$4:C39,'Seguimiento de las puntuaciones'!C39)","v":"0"}]
[null,37,{"$f":"'Seguimiento de las puntuaciones'!C40&COUNTIF('Seguimiento de las puntuaciones'!$C$4:C40,'Seguimiento de las puntuaciones'!C40)","v":"0"}]
[null,38,{"$f":"'Seguimiento de las puntuaciones'!C41&COUNTIF('Seguimiento de las puntuaciones'!$C$4:C41,'Seguimiento de las puntuaciones'!C41)","v":"0"}]
[null,39,{"$f":"'Seguimiento de las puntuaciones'!C42&COUNTIF('Seguimiento de las puntuaciones'!$C$4:C42,'Seguimiento de las puntuaciones'!C42)","v":"0"}]
[null,40,{"$f":"'Seguimiento de las puntuaciones'!C43&COUNTIF('Seguimiento de las puntuaciones'!$C$4:C43,'Seguimiento de las puntuaciones'!C43)","v":"0"}]
[null,41,{"$f":"'Seguimiento de las puntuaciones'!C44&COUNTIF('Seguimiento de las puntuaciones'!$C$4:C44,'Seguimiento de las puntuaciones'!C44)","v":"0"}]
[null,42,{"$f":"'Seguimiento de las puntuaciones'!C45&COUNTIF('Seguimiento de las puntuaciones'!$C$4:C45,'Seguimiento de las puntuaciones'!C45)","v":"0"}]
[null,43,{"$f":"'Seguimiento de las puntuaciones'!C46&COUNTIF('Seguimiento de las puntuaciones'!$C$4:C46,'Seguimiento de las puntuaciones'!C46)","v":"0"}]
[null,44,{"$f":"'Seguimiento de las puntuaciones'!C47&COUNTIF('Seguimiento de las puntuaciones'!$C$4:C47,'Seguimiento de las puntuaciones'!C47)","v":"0"}]
[null,45,{"$f":"'Seguimiento de las puntuaciones'!C48&COUNTIF('Seguimiento de las puntuaciones'!$C$4:C48,'Seguimiento de las puntuaciones'!C48)","v":"0"}]
[null,46,{"$f":"'Seguimiento de las puntuaciones'!C49&COUNTIF('Seguimiento de las puntuaciones'!$C$4:C49,'Seguimiento de las puntuaciones'!C49)","v":"0"}]
[null,47,{"$f":"'Seguimiento de las puntuaciones'!C50&COUNTIF('Seguimiento de las puntuaciones'!$C$4:C50,'Seguimiento de las puntuaciones'!C50)","v":"0"}]
[null,48,{"$f":"'Seguimiento de las puntuaciones'!C51&COUNTIF('Seguimiento de las puntuaciones'!$C$4:C51,'Seguimiento de las puntuaciones'!C51)","v":"0"}]
[null,49,{"$f":"'Seguimiento de las puntuaciones'!C52&COUNTIF('Seguimiento de las puntuaciones'!$C$4:C52,'Seguimiento de las puntuaciones'!C52)","v":"0"}]
[null,50,{"$f":"'Seguimiento de las puntuaciones'!C53&COUNTIF('Seguimiento de las puntuaciones'!$C$4:C53,'Seguimiento de las puntuaciones'!C53)","v":"0"}]
[null,51,{"$f":"'Seguimiento de las puntuaciones'!C54&COUNTIF('Seguimiento de las puntuaciones'!$C$4:C54,'Seguimiento de las puntuaciones'!C54)","v":"0"}]
[null,52,{"$f":"'Seguimiento de las puntuaciones'!C55&COUNTIF('Seguimiento de las puntuaciones'!$C$4:C55,'Seguimiento de las puntuaciones'!C55)","v":"0"}]
[null,53,{"$f":"'Seguimiento de las puntuaciones'!C56&COUNTIF('Seguimiento de las puntuaciones'!$C$4:C56,'Seguimiento de las puntuaciones'!C56)","v":"0"}]
[null,54,{"$f":"'Seguimiento de las puntuaciones'!C57&COUNTIF('Seguimiento de las puntuaciones'!$C$4:C57,'Seguimiento de las puntuaciones'!C57)","v":"0"}]
[null,55,{"$f":"'Seguimiento de las puntuaciones'!C58&COUNTIF('Seguimiento de las puntuaciones'!$C$4:C58,'Seguimiento de las puntuaciones'!C58)","v":"0"}]
[null,56,{"$f":"'Seguimiento de las puntuaciones'!C59&COUNTIF('Seguimiento de las puntuaciones'!$C$4:C59,'Seguimiento de las puntuaciones'!C59)","v":"0"}]
[null,57,{"$f":"'Seguimiento de las puntuaciones'!C60&COUNTIF('Seguimiento de las puntuaciones'!$C$4:C60,'Seguimiento de las puntuaciones'!C60)","v":"0"}]
[null,58,{"$f":"'Seguimiento de las puntuaciones'!C61&COUNTIF('Seguimiento de las puntuaciones'!$C$4:C61,'Seguimiento de las puntuaciones'!C61)","v":"0"}]
[null,59,{"$f":"'Seguimiento de las puntuaciones'!C62&COUNTIF('Seguimiento de las puntuaciones'!$C$4:C62,'Seguimiento de las puntuaciones'!C62)","v":"0"}]
[null,60,{"$f":"'Seguimiento de las puntuaciones'!C63&COUNTIF('Seguimiento de las puntuaciones'!$C$4:C63,'Seguimiento de las puntuaciones'!C63)","v":"0"}]
[null,61,{"$f":"'Seguimiento de las puntuaciones'!C64&COUNTIF('Seguimiento de las puntuaciones'!$C$4:C64,'Seguimiento de las puntuaciones'!C64)","v":"0"}]
[null,62,{"$f":"'Seguimiento de las puntuaciones'!C65&COUNTIF('Seguimiento de las puntuaciones'!$C$4:C65,'Seguimiento de las puntuaciones'!C65)","v":"0"}]
[null,63,{"$f":"'Seguimiento de las puntuaciones'!C66&COUNTIF('Seguimiento de las puntuaciones'!$C$4:C66,'Seguimiento de las puntuaciones'!C66)","v":"0"}]
[null,64,{"$f":"'Seguimiento de las puntuaciones'!C67&COUNTIF('Seguimiento de las puntuaciones'!$C$4:C67,'Seguimiento de las puntuaciones'!C67)","v":"0"}]
[null,65,{"$f":"'Seguimiento de las puntuaciones'!C68&COUNTIF('Seguimiento de las puntuaciones'!$C$4:C68,'Seguimiento de las puntuaciones'!C68)","v":"0"}]
[null,66,{"$f":"'Seguimiento de las puntuaciones'!C69&COUNTIF('Seguimiento de las puntuaciones'!$C$4:C69,'Seguimiento de las puntuaciones'!C69)","v":"0"}]
[null,67,{"$f":"'Seguimiento de las puntuaciones'!C70&COUNTIF('Seguimiento de las puntuaciones'!$C$4:C70,'Seguimiento de las puntuaciones'!C70)","v":"0"}]
[null,68,{"$f":"'Seguimiento de las puntuaciones'!C71&COUNTIF('Seguimiento de las puntuaciones'!$C$4:C71,'Seguimiento de las puntuaciones'!C71)","v":"0"}]
[null,69,{"$f":"'Seguimiento de las puntuaciones'!C72&COUNTIF('Seguimiento de las puntuaciones'!$C$4:C72,'Seguimiento de las puntuaciones'!C72)","v":"0"}]
[null,70,{"$f":"'Seguimiento de las puntuaciones'!C73&COUNTIF('Seguimiento de las puntuaciones'!$C$4:C73,'Seguimiento de las puntuaciones'!C73)","v":"0"}]
[null,71,{"$f":"'Seguimiento de las puntuaciones'!C74&COUNTIF('Seguimiento de las puntuaciones'!$C$4:C74,'Seguimiento de las puntuaciones'!C74)","v":"0"}]
[null,72,{"$f":"'Seguimiento de las puntuaciones'!C75&COUNTIF('Seguimiento de las puntuaciones'!$C$4:C75,'Seguimiento de las puntuaciones'!C75)","v":"0"}]
[null,73,{"$f":"'Seguimiento de las puntuaciones'!C76&COUNTIF('Seguimiento de las puntuaciones'!$C$4:C76,'Seguimiento de las puntuaciones'!C76)","v":"0"}]
[null,74,{"$f":"'Seguimiento de las puntuaciones'!C77&COUNTIF('Seguimiento de las puntuaciones'!$C$4:C77,'Seguimiento de las puntuaciones'!C77)","v":"0"}]
[null,75,{"$f":"'Seguimiento de las puntuaciones'!C78&COUNTIF('Seguimiento de las puntuaciones'!$C$4:C78,'Seguimiento de las puntuaciones'!C78)","v":"0"}]
[null,76,{"$f":"'Seguimiento de las puntuaciones'!C79&COUNTIF('Seguimiento de las puntuaciones'!$C$4:C79,'Seguimiento de las puntuaciones'!C79)","v":"0"}]
[null,77,{"$f":"'Seguimiento de las puntuaciones'!C80&COUNTIF('Seguimiento de las puntuaciones'!$C$4:C80,'Seguimiento de las puntuaciones'!C80)","v":"0"}]
[null,78,{"$f":"'Seguimiento de las puntuaciones'!C81&COUNTIF('Seguimiento de las puntuaciones'!$C$4:C81,'Seguimiento de las puntuaciones'!C81)","v":"0"}]
[null,79,{"$f":"'Seguimiento de las puntuaciones'!C82&COUNTIF('Seguimiento de las puntuaciones'!$C$4:C82,'Seguimiento de las puntuaciones'!C82)","v":"0"}]
[null,80,{"$f":"'Seguimiento de las puntuaciones'!C83&COUNTIF('Seguimiento de las puntuaciones'!$C$4:C83,'Seguimiento de las puntuaciones'!C83)","v":"0"}]
[null,81,{"$f":"'Seguimiento de las puntuaciones'!C84&COUNTIF('Seguimiento de las puntuaciones'!$C$4:C84,'Seguimiento de las puntuaciones'!C84)","v":"0"}]
[null,82,{"$f":"'Seguimiento de las puntuaciones'!C85&COUNTIF('Seguimiento de las puntuaciones'!$C$4:C85,'Seguimiento de las puntuaciones'!C85)","v":"0"}]
[null,83,{"$f":"'Seguimiento de las puntuaciones'!C86&COUNTIF('Seguimiento de las puntuaciones'!$C$4:C86,'Seguimiento de las puntuaciones'!C86)","v":"0"}]
[null,84,{"$f":"'Seguimiento de las puntuaciones'!C87&COUNTIF('Seguimiento de las puntuaciones'!$C$4:C87,'Seguimiento de las puntuaciones'!C87)","v":"0"}]
[null,85,{"$f":"'Seguimiento de las puntuaciones'!C88&COUNTIF('Seguimiento de las puntuaciones'!$C$4:C88,'Seguimiento de las puntuaciones'!C88)","v":"0"}]
[null,86,{"$f":"'Seguimiento de las puntuaciones'!C89&COUNTIF('Seguimiento de las puntuaciones'!$C$4:C89,'Seguimiento de las puntuaciones'!C89)","v":"0"}]
[null,87,{"$f":"'Seguimiento de las puntuaciones'!C90&COUNTIF('Seguimiento de las puntuaciones'!$C$4:C90,'Seguimiento de las puntuaciones'!C90)","v":"0"}]
[null,88,{"$f":"'Seguimiento de las puntuaciones'!C91&COUNTIF('Seguimiento de las puntuaciones'!$C$4:C91,'Seguimiento de las puntuaciones'!C91)","v":"0"}]
[null,89,{"$f":"'Seguimiento de las puntuaciones'!C92&COUNTIF('Seguimiento de las puntuaciones'!$C$4:C92,'Seguimiento de las puntuaciones'!C92)","v":"0"}]
[null,90,{"$f":"'Seguimiento de las puntuaciones'!C93&COUNTIF('Seguimiento de las puntuaciones'!$C$4:C93,'Seguimiento de las puntuaciones'!C93)","v":"0"}]
[null,91,{"$f":"'Seguimiento de las puntuaciones'!C94&COUNTIF('Seguimiento de las puntuaciones'!$C$4:C94,'Seguimiento de las puntuaciones'!C94)","v":"0"}]
[null,92,{"$f":"'Seguimiento de las puntuaciones'!C95&COUNTIF('Seguimiento de las puntuaciones'!$C$4:C95,'Seguimiento de las puntuaciones'!C95)","v":"0"}]
[null,93,{"$f":"'Seguimiento de las puntuaciones'!C96&COUNTIF('Seguimiento de las puntuaciones'!$C$4:C96,'Seguimiento de las puntuaciones'!C96)","v":"0"}]
[null,94,{"$f":"'Seguimiento de las puntuaciones'!C97&COUNTIF('Seguimiento de las puntuaciones'!$C$4:C97,'Seguimiento de las puntuaciones'!C97)","v":"0"}]
[null,95,{"$f":"'Seguimiento de las puntuaciones'!C98&COUNTIF('Seguimiento de las puntuaciones'!$C$4:C98,'Seguimiento de las puntuaciones'!C98)","v":"0"}]
[null,96,{"$f":"'Seguimiento de las puntuaciones'!C99&COUNTIF('Seguimiento de las puntuaciones'!$C$4:C99,'Seguimiento de las puntuaciones'!C99)","v":"0"}]
[null,97,{"$f":"'Seguimiento de las puntuaciones'!C100&COUNTIF('Seguimiento de las puntuaciones'!$C$4:C100,'Seguimiento de las puntuaciones'!C100)","v":"0"}]
[null,98,{"$f":"'Seguimiento de las puntuaciones'!C101&COUNTIF('Seguimiento de las puntuaciones'!$C$4:C101,'Seguimiento de las puntuaciones'!C101)","v":"0"}]
[null,99,{"$f":"'Seguimiento de las puntuaciones'!C102&COUNTIF('Seguimiento de las puntuaciones'!$C$4:C102,'Seguimiento de las puntuaciones'!C102)","v":"0"}]
[null,100,{"$f":"'Seguimiento de las puntuaciones'!C103&COUNTIF('Seguimiento de las puntuaciones'!$C$4:C103,'Seguimiento de las puntuaciones'!C103)","v":"0"}]
[null,101,{"$f":"'Seguimiento de las puntuaciones'!C104&COUNTIF('Seguimiento de las puntuaciones'!$C$4:C104,'Seguimiento de las puntuaciones'!C104)","v":"0"}]
[null,102,{"$f":"'Seguimiento de las puntuaciones'!C105&COUNTIF('Seguimiento de las puntuaciones'!$C$4:C105,'Seguimiento de las puntuaciones'!C105)","v":"0"}]
[null,103,{"$f":"'Seguimiento de las puntuaciones'!C106&COUNTIF('Seguimiento de las puntuaciones'!$C$4:C106,'Seguimiento de las puntuaciones'!C106)","v":"0"}]
[null,104,{"$f":"'Seguimiento de las puntuaciones'!C107&COUNTIF('Seguimiento de las puntuaciones'!$C$4:C107,'Seguimiento de las puntuaciones'!C107)","v":"0"}]
[null,105,{"$f":"'Seguimiento de las puntuaciones'!C108&COUNTIF('Seguimiento de las puntuaciones'!$C$4:C108,'Seguimiento de las puntuaciones'!C108)","v":"0"}]
[null,106,{"$f":"'Seguimiento de las puntuaciones'!C109&COUNTIF('Seguimiento de las puntuaciones'!$C$4:C109,'Seguimiento de las puntuaciones'!C109)","v":"0"}]
[null,107,{"$f":"'Seguimiento de las puntuaciones'!C110&COUNTIF('Seguimiento de las puntuaciones'!$C$4:C110,'Seguimiento de las puntuaciones'!C110)","v":"0"}]
[null,108,{"$f":"'Seguimiento de las puntuaciones'!C111&COUNTIF('Seguimiento de las puntuaciones'!$C$4:C111,'Seguimiento de las puntuaciones'!C111)","v":"0"}]
[null,109,{"$f":"'Seguimiento de las puntuaciones'!C112&COUNTIF('Seguimiento de las puntuaciones'!$C$4:C112,'Seguimiento de las puntuaciones'!C112)","v":"0"}]
[null,110,{"$f":"'Seguimiento de las puntuaciones'!C113&COUNTIF('Seguimiento de las puntuaciones'!$C$4:C113,'Seguimiento de las puntuaciones'!C113)","v":"0"}]
[null,111,{"$f":"'Seguimiento de las puntuaciones'!C114&COUNTIF('Seguimiento de las puntuaciones'!$C$4:C114,'Seguimiento de las puntuaciones'!C114)","v":"0"}]
[null,112,{"$f":"'Seguimiento de las puntuaciones'!C115&COUNTIF('Seguimiento de las puntuaciones'!$C$4:C115,'Seguimiento de las puntuaciones'!C115)","v":"0"}]
[null,113,{"$f":"'Seguimiento de las puntuaciones'!C116&COUNTIF('Seguimiento de las puntuaciones'!$C$4:C116,'Seguimiento de las puntuaciones'!C116)","v":"0"}]
[null,114,{"$f":"'Seguimiento de las puntuaciones'!C117&COUNTIF('Seguimiento de las puntuaciones'!$C$4:C117,'Seguimiento de las puntuaciones'!C117)","v":"0"}]
[null,115,{"$f":"'Seguimiento de las puntuaciones'!C118&COUNTIF('Seguimiento de las puntuaciones'!$C$4:C118,'Seguimiento de las puntuaciones'!C118)","v":"0"}]
[null,116,{"$f":"'Seguimiento de las puntuaciones'!C119&COUNTIF('Seguimiento de las puntuaciones'!$C$4:C119,'Seguimiento de las puntuaciones'!C119)","v":"0"}]
[null,117,{"$f":"'Seguimiento de las puntuaciones'!C120&COUNTIF('Seguimiento de las puntuaciones'!$C$4:C120,'Seguimiento de las puntuaciones'!C120)","v":"0"}]
[null,118,{"$f":"'Seguimiento de las puntuaciones'!C121&COUNTIF('Seguimiento de las puntuaciones'!$C$4:C121,'Seguimiento de las puntuaciones'!C121)","v":"0"}]
[null,119,{"$f":"'Seguimiento de las puntuaciones'!C122&COUNTIF('Seguimiento de las puntuaciones'!$C$4:C122,'Seguimiento de las puntuaciones'!C122)","v":"0"}]
[null,120,{"$f":"'Seguimiento de las puntuaciones'!C123&COUNTIF('Seguimiento de las puntuaciones'!$C$4:C123,'Seguimiento de las puntuaciones'!C123)","v":"0"}]
[null,121,{"$f":"'Seguimiento de las puntuaciones'!C124&COUNTIF('Seguimiento de las puntuaciones'!$C$4:C124,'Seguimiento de las puntuaciones'!C124)","v":"0"}]
[null,122,{"$f":"'Seguimiento de las puntuaciones'!C125&COUNTIF('Seguimiento de las puntuaciones'!$C$4:C125,'Seguimiento de las puntuaciones'!C125)","v":"0"}]
[null,123,{"$f":"'Seguimiento de las puntuaciones'!C126&COUNTIF('Seguimiento de las puntuaciones'!$C$4:C126,'Seguimiento de las puntuaciones'!C126)","v":"0"}]
[null,124,{"$f":"'Seguimiento de las puntuaciones'!C127&COUNTIF('Seguimiento de las puntuaciones'!$C$4:C127,'Seguimiento de las puntuaciones'!C127)","v":"0"}]
[null,125,{"$f":"'Seguimiento de las puntuaciones'!C128&COUNTIF('Seguimiento de las puntuaciones'!$C$4:C128,'Seguimiento de las puntuaciones'!C128)","v":"0"}]
[null,126,{"$f":"'Seguimiento de las puntuaciones'!C129&COUNTIF('Seguimiento de las puntuaciones'!$C$4:C129,'Seguimiento de las puntuaciones'!C129)","v":"0"}]
[null,127,{"$f":"'Seguimiento de las puntuaciones'!C130&COUNTIF('Seguimiento de las puntuaciones'!$C$4:C130,'Seguimiento de las puntuaciones'!C130)","v":"0"}]
[null,128,{"$f":"'Seguimiento de las puntuaciones'!C131&COUNTIF('Seguimiento de las puntuaciones'!$C$4:C131,'Seguimiento de las puntuaciones'!C131)","v":"0"}]
[null,129,{"$f":"'Seguimiento de las puntuaciones'!C132&COUNTIF('Seguimiento de las puntuaciones'!$C$4:C132,'Seguimiento de las puntuaciones'!C132)","v":"0"}]
[null,130,{"$f":"'Seguimiento de las puntuaciones'!C133&COUNTIF('Seguimiento de las puntuaciones'!$C$4:C133,'Seguimiento de las puntuaciones'!C133)","v":"0"}]
[null,131,{"$f":"'Seguimiento de las puntuaciones'!C134&COUNTIF('Seguimiento de las puntuaciones'!$C$4:C134,'Seguimiento de las puntuaciones'!C134)","v":"0"}]
[null,132,{"$f":"'Seguimiento de las puntuaciones'!C135&COUNTIF('Seguimiento de las puntuaciones'!$C$4:C135,'Seguimiento de las puntuaciones'!C135)","v":"0"}]
[null,133,{"$f":"'Seguimiento de las puntuaciones'!C136&COUNTIF('Seguimiento de las puntuaciones'!$C$4:C136,'Seguimiento de las puntuaciones'!C136)","v":"0"}]
[null,134,{"$f":"'Seguimiento de las puntuaciones'!C137&COUNTIF('Seguimiento de las puntuaciones'!$C$4:C137,'Seguimiento de las puntuaciones'!C137)","v":"0"}]
[null,135,{"$f":"'Seguimiento de las puntuaciones'!C138&COUNTIF('Seguimiento de las puntuaciones'!$C$4:C138,'Seguimiento de las puntuaciones'!C138)","v":"0"}]
[null,136,{"$f":"'Seguimiento de las puntuaciones'!C139&COUNTIF('Seguimiento de las puntuaciones'!$C$4:C139,'Seguimiento de las puntuaciones'!C139)","v":"0"}]
[null,137,{"$f":"'Seguimiento de las puntuaciones'!C140&COUNTIF('Seguimiento de las puntuaciones'!$C$4:C140,'Seguimiento de las puntuaciones'!C140)","v":"0"}]
[null,138,{"$f":"'Seguimiento de las puntuaciones'!C141&COUNTIF('Seguimiento de las puntuaciones'!$C$4:C141,'Seguimiento de las puntuaciones'!C141)","v":"0"}]
[null,139,{"$f":"'Seguimiento de las puntuaciones'!C142&COUNTIF('Seguimiento de las puntuaciones'!$C$4:C142,'Seguimiento de las puntuaciones'!C142)","v":"0"}]
[null,140,{"$f":"'Seguimiento de las puntuaciones'!C143&COUNTIF('Seguimiento de las puntuaciones'!$C$4:C143,'Seguimiento de las puntuaciones'!C143)","v":"0"}]
[null,141,{"$f":"'Seguimiento de las puntuaciones'!C144&COUNTIF('Seguimiento de las puntuaciones'!$C$4:C144,'Seguimiento de las puntuaciones'!C144)","v":"0"}]
[null,142,{"$f":"'Seguimiento de las puntuaciones'!C145&COUNTIF('Seguimiento de las puntuaciones'!$C$4:C145,'Seguimiento de las puntuaciones'!C145)","v":"0"}]
[null,143,{"$f":"'Seguimiento de las puntuaciones'!C146&COUNTIF('Seguimiento de las puntuaciones'!$C$4:C146,'Seguimiento de las puntuaciones'!C146)","v":"0"}]
[null,144,{"$f":"'Seguimiento de las puntuaciones'!C147&COUNTIF('Seguimiento de las puntuaciones'!$C$4:C147,'Seguimiento de las puntuaciones'!C147)","v":"0"}]
[null,145,{"$f":"'Seguimiento de las puntuaciones'!C148&COUNTIF('Seguimiento de las puntuaciones'!$C$4:C148,'Seguimiento de las puntuaciones'!C148)","v":"0"}]
[null,146,{"$f":"'Seguimiento de las puntuaciones'!C149&COUNTIF('Seguimiento de las puntuaciones'!$C$4:C149,'Seguimiento de las puntuaciones'!C149)","v":"0"}]
[null,147,{"$f":"'Seguimiento de las puntuaciones'!C150&COUNTIF('Seguimiento de las puntuaciones'!$C$4:C150,'Seguimiento de las puntuaciones'!C150)","v":"0"}]
[null,148,{"$f":"'Seguimiento de las puntuaciones'!C151&COUNTIF('Seguimiento de las puntuaciones'!$C$4:C151,'Seguimiento de las puntuaciones'!C151)","v":"0"}]
[null,149,{"$f":"'Seguimiento de las puntuaciones'!C152&COUNTIF('Seguimiento de las puntuaciones'!$C$4:C152,'Seguimiento de las puntuaciones'!C152)","v":"0"}]
[null,150,{"$f":"'Seguimiento de las puntuaciones'!C153&COUNTIF('Seguimiento de las puntuaciones'!$C$4:C153,'Seguimiento de las puntuaciones'!C153)","v":"0"}]
[null,151,{"$f":"'Seguimiento de las puntuaciones'!C154&COUNTIF('Seguimiento de las puntuaciones'!$C$4:C154,'Seguimiento de las puntuaciones'!C154)","v":"0"}]
[null,152,{"$f":"'Seguimiento de las puntuaciones'!C155&COUNTIF('Seguimiento de las puntuaciones'!$C$4:C155,'Seguimiento de las puntuaciones'!C155)","v":"0"}]
[null,153,{"$f":"'Seguimiento de las puntuaciones'!C156&COUNTIF('Seguimiento de las puntuaciones'!$C$4:C156,'Seguimiento de las puntuaciones'!C156)","v":"0"}]
[null,154,{"$f":"'Seguimiento de las puntuaciones'!C157&COUNTIF('Seguimiento de las puntuaciones'!$C$4:C157,'Seguimiento de las puntuaciones'!C157)","v":"0"}]
[null,155,{"$f":"'Seguimiento de las puntuaciones'!C158&COUNTIF('Seguimiento de las puntuaciones'!$C$4:C158,'Seguimiento de las puntuaciones'!C158)","v":"0"}]
[null,156,{"$f":"'Seguimiento de las puntuaciones'!C159&COUNTIF('Seguimiento de las puntuaciones'!$C$4:C159,'Seguimiento de las puntuaciones'!C159)","v":"0"}]
[null,157,{"$f":"'Seguimiento de las puntuaciones'!C160&COUNTIF('Seguimiento de las puntuaciones'!$C$4:C160,'Seguimiento de las puntuaciones'!C160)","v":"0"}]
[null,158,{"$f":"'Seguimiento de las puntuaciones'!C161&COUNTIF('Seguimiento de las puntuaciones'!$C$4:C161,'Seguimiento de las puntuaciones'!C161)","v":"0"}]
[null,159,{"$f":"'Seguimiento de las puntuaciones'!C162&COUNTIF('Seguimiento de las puntuaciones'!$C$4:C162,'Seguimiento de las puntuaciones'!C162)","v":"0"}]
[null,160,{"$f":"'Seguimiento de las puntuaciones'!C163&COUNTIF('Seguimiento de las puntuaciones'!$C$4:C163,'Seguimiento de las puntuaciones'!C163)","v":"0"}]
[null,161,{"$f":"'Seguimiento de las puntuaciones'!C164&COUNTIF('Seguimiento de las puntuaciones'!$C$4:C164,'Seguimiento de las puntuaciones'!C164)","v":"0"}]
[null,162,{"$f":"'Seguimiento de las puntuaciones'!C165&COUNTIF('Seguimiento de las puntuaciones'!$C$4:C165,'Seguimiento de las puntuaciones'!C165)","v":"0"}]
[null,163,{"$f":"'Seguimiento de las puntuaciones'!C166&COUNTIF('Seguimiento de las puntuaciones'!$C$4:C166,'Seguimiento de las puntuaciones'!C166)","v":"0"}]
[null,164,{"$f":"'Seguimiento de las puntuaciones'!C167&COUNTIF('Seguimiento de las puntuaciones'!$C$4:C167,'Seguimiento de las puntuaciones'!C167)","v":"0"}]
[null,165,{"$f":"'Seguimiento de las puntuaciones'!C168&COUNTIF('Seguimiento de las puntuaciones'!$C$4:C168,'Seguimiento de las puntuaciones'!C168)","v":"0"}]
[null,166,{"$f":"'Seguimiento de las puntuaciones'!C169&COUNTIF('Seguimiento de las puntuaciones'!$C$4:C169,'Seguimiento de las puntuaciones'!C169)","v":"0"}]
[null,167,{"$f":"'Seguimiento de las puntuaciones'!C170&COUNTIF('Seguimiento de las puntuaciones'!$C$4:C170,'Seguimiento de las puntuaciones'!C170)","v":"0"}]
[null,168,{"$f":"'Seguimiento de las puntuaciones'!C171&COUNTIF('Seguimiento de las puntuaciones'!$C$4:C171,'Seguimiento de las puntuaciones'!C171)","v":"0"}]
[null,169,{"$f":"'Seguimiento de las puntuaciones'!C172&COUNTIF('Seguimiento de las puntuaciones'!$C$4:C172,'Seguimiento de las puntuaciones'!C172)","v":"0"}]
[null,170,{"$f":"'Seguimiento de las puntuaciones'!C173&COUNTIF('Seguimiento de las puntuaciones'!$C$4:C173,'Seguimiento de las puntuaciones'!C173)","v":"0"}]
[null,171,{"$f":"'Seguimiento de las puntuaciones'!C174&COUNTIF('Seguimiento de las puntuaciones'!$C$4:C174,'Seguimiento de las puntuaciones'!C174)","v":"0"}]
[null,172,{"$f":"'Seguimiento de las puntuaciones'!C175&COUNTIF('Seguimiento de las puntuaciones'!$C$4:C175,'Seguimiento de las puntuaciones'!C175)","v":"0"}]
[null,173,{"$f":"'Seguimiento de las puntuaciones'!C176&COUNTIF('Seguimiento de las puntuaciones'!$C$4:C176,'Seguimiento de las puntuaciones'!C176)","v":"0"}]
[null,174,{"$f":"'Seguimiento de las puntuaciones'!C177&COUNTIF('Seguimiento de las puntuaciones'!$C$4:C177,'Seguimiento de las puntuaciones'!C177)","v":"0"}]
[null,175,{"$f":"'Seguimiento de las puntuaciones'!C178&COUNTIF('Seguimiento de las puntuaciones'!$C$4:C178,'Seguimiento de las puntuaciones'!C178)","v":"0"}]
[null,176,{"$f":"'Seguimiento de las puntuaciones'!C179&COUNTIF('Seguimiento de las puntuaciones'!$C$4:C179,'Seguimiento de las puntuaciones'!C179)","v":"0"}]
[null,177,{"$f":"'Seguimiento de las puntuaciones'!C180&COUNTIF('Seguimiento de las puntuaciones'!$C$4:C180,'Seguimiento de las puntuaciones'!C180)","v":"0"}]
[null,178,{"$f":"'Seguimiento de las puntuaciones'!C181&COUNTIF('Seguimiento de las puntuaciones'!$C$4:C181,'Seguimiento de las puntuaciones'!C181)","v":"0"}]
[null,179,{"$f":"'Seguimiento de las puntuaciones'!C182&COUNTIF('Seguimiento de las puntuaciones'!$C$4:C182,'Seguimiento de las puntuaciones'!C182)","v":"0"}]
[null,180,{"$f":"'Seguimiento de las puntuaciones'!C183&COUNTIF('Seguimiento de las puntuaciones'!$C$4:C183,'Seguimiento de las puntuaciones'!C183)","v":"0"}]
[null,181,{"$f":"'Seguimiento de las puntuaciones'!C184&COUNTIF('Seguimiento de las puntuaciones'!$C$4:C184,'Seguimiento de las puntuaciones'!C184)","v":"0"}]
[null,182,{"$f":"'Seguimiento de las puntuaciones'!C185&COUNTIF('Seguimiento de las puntuaciones'!$C$4:C185,'Seguimiento de las puntuaciones'!C185)","v":"0"}]
[null,183,{"$f":"'Seguimiento de las puntuaciones'!C186&COUNTIF('Seguimiento de las puntuaciones'!$C$4:C186,'Seguimiento de las puntuaciones'!C186)","v":"0"}]
[null,184,{"$f":"'Seguimiento de las puntuaciones'!C187&COUNTIF('Seguimiento de las puntuaciones'!$C$4:C187,'Seguimiento de las puntuaciones'!C187)","v":"0"}]
[null,185,{"$f":"'Seguimiento de las puntuaciones'!C188&COUNTIF('Seguimiento de las puntuaciones'!$C$4:C188,'Seguimiento de las puntuaciones'!C188)","v":"0"}]
[null,186,{"$f":"'Seguimiento de las puntuaciones'!C189&COUNTIF('Seguimiento de las puntuaciones'!$C$4:C189,'Seguimiento de las puntuaciones'!C189)","v":"0"}]
[null,187,{"$f":"'Seguimiento de las puntuaciones'!C190&COUNTIF('Seguimiento de las puntuaciones'!$C$4:C190,'Seguimiento de las puntuaciones'!C190)","v":"0"}]
[null,188,{"$f":"'Seguimiento de las puntuaciones'!C191&COUNTIF('Seguimiento de las puntuaciones'!$C$4:C191,'Seguimiento de las puntuaciones'!C191)","v":"0"}]
[null,189,{"$f":"'Seguimiento de las puntuaciones'!C192&COUNTIF('Seguimiento de las puntuaciones'!$C$4:C192,'Seguimiento de las puntuaciones'!C192)","v":"0"}]
[null,190,{"$f":"'Seguimiento de las puntuaciones'!C193&COUNTIF('Seguimiento de las puntuaciones'!$C$4:C193,'Seguimiento de las puntuaciones'!C193)","v":"0"}]
[null,191,{"$f":"'Seguimiento de las puntuaciones'!C194&COUNTIF('Seguimiento de las puntuaciones'!$C$4:C194,'Seguimiento de las puntuaciones'!C194)","v":"0"}]
[null,192,{"$f":"'Seguimiento de las puntuaciones'!C195&COUNTIF('Seguimiento de las puntuaciones'!$C$4:C195,'Seguimiento de las puntuaciones'!C195)","v":"0"}]
[null,193,{"$f":"'Seguimiento de las puntuaciones'!C196&COUNTIF('Seguimiento de las puntuaciones'!$C$4:C196,'Seguimiento de las puntuaciones'!C196)","v":"0"}]
[null,194,{"$f":"'Seguimiento de las puntuaciones'!C197&COUNTIF('Seguimiento de las puntuaciones'!$C$4:C197,'Seguimiento de las puntuaciones'!C197)","v":"0"}]
[null,195,{"$f":"'Seguimiento de las puntuaciones'!C198&COUNTIF('Seguimiento de las puntuaciones'!$C$4:C198,'Seguimiento de las puntuaciones'!C198)","v":"0"}]
[null,196,{"$f":"'Seguimiento de las puntuaciones'!C199&COUNTIF('Seguimiento de las puntuaciones'!$C$4:C199,'Seguimiento de las puntuaciones'!C199)","v":"0"}]
[null,197,{"$f":"'Seguimiento de las puntuaciones'!C200&COUNTIF('Seguimiento de las puntuaciones'!$C$4:C200,'Seguimiento de las puntuaciones'!C200)","v":"0"}]
[null,198,{"$f":"'Seguimiento de las puntuaciones'!C201&COUNTIF('Seguimiento de las puntuaciones'!$C$4:C201,'Seguimiento de las puntuaciones'!C201)","v":"0"}]
[null,199,{"$f":"'Seguimiento de las puntuaciones'!C202&COUNTIF('Seguimiento de las puntuaciones'!$C$4:C202,'Seguimiento de las puntuaciones'!C202)","v":"0"}]
[null,200,{"$f":"'Seguimiento de las puntuaciones'!C203&COUNTIF('Seguimiento de las puntuaciones'!$C$4:C203,'Seguimiento de las puntuaciones'!C203)","v":"0"}]
[null,201,{"$f":"'Seguimiento de las puntuaciones'!C204&COUNTIF('Seguimiento de las puntuaciones'!$C$4:C204,'Seguimiento de las puntuaciones'!C204)","v":"0"}]
[null,202,{"$f":"'Seguimiento de las puntuaciones'!C205&COUNTIF('Seguimiento de las puntuaciones'!$C$4:C205,'Seguimiento de las puntuaciones'!C205)","v":"0"}]
[null,203,{"$f":"'Seguimiento de las puntuaciones'!C206&COUNTIF('Seguimiento de las puntuaciones'!$C$4:C206,'Seguimiento de las puntuaciones'!C206)","v":"0"}]
[null,204,{"$f":"'Seguimiento de las puntuaciones'!C207&COUNTIF('Seguimiento de las puntuaciones'!$C$4:C207,'Seguimiento de las puntuaciones'!C207)","v":"0"}]
[null,205,{"$f":"'Seguimiento de las puntuaciones'!C208&COUNTIF('Seguimiento de las puntuaciones'!$C$4:C208,'Seguimiento de las puntuaciones'!C208)","v":"0"}]
[null,206,{"$f":"'Seguimiento de las puntuaciones'!C209&COUNTIF('Seguimiento de las puntuaciones'!$C$4:C209,'Seguimiento de las puntuaciones'!C209)","v":"0"}]
[null,207,{"$f":"'Seguimiento de las puntuaciones'!C210&COUNTIF('Seguimiento de las puntuaciones'!$C$4:C210,'Seguimiento de las puntuaciones'!C210)","v":"0"}]
[null,208,{"$f":"'Seguimiento de las puntuaciones'!C211&COUNTIF('Seguimiento de las puntuaciones'!$C$4:C211,'Seguimiento de las puntuaciones'!C211)","v":"0"}]
[null,209,{"$f":"'Seguimiento de las puntuaciones'!C212&COUNTIF('Seguimiento de las puntuaciones'!$C$4:C212,'Seguimiento de las puntuaciones'!C212)","v":"0"}]
[null,210,{"$f":"'Seguimiento de las puntuaciones'!C213&COUNTIF('Seguimiento de las puntuaciones'!$C$4:C213,'Seguimiento de las puntuaciones'!C213)","v":"0"}]
[null,211,{"$f":"'Seguimiento de las puntuaciones'!C214&COUNTIF('Seguimiento de las puntuaciones'!$C$4:C214,'Seguimiento de las puntuaciones'!C214)","v":"0"}]
[null,212,{"$f":"'Seguimiento de las puntuaciones'!C215&COUNTIF('Seguimiento de las puntuaciones'!$C$4:C215,'Seguimiento de las puntuaciones'!C215)","v":"0"}]
[null,213,{"$f":"'Seguimiento de las puntuaciones'!C216&COUNTIF('Seguimiento de las puntuaciones'!$C$4:C216,'Seguimiento de las puntuaciones'!C216)","v":"0"}]
[null,214,{"$f":"'Seguimiento de las puntuaciones'!C217&COUNTIF('Seguimiento de las puntuaciones'!$C$4:C217,'Seguimiento de las puntuaciones'!C217)","v":"0"}]
[null,215,{"$f":"'Seguimiento de las puntuaciones'!C218&COUNTIF('Seguimiento de las puntuaciones'!$C$4:C218,'Seguimiento de las puntuaciones'!C218)","v":"0"}]
[null,216,{"$f":"'Seguimiento de las puntuaciones'!C219&COUNTIF('Seguimiento de las puntuaciones'!$C$4:C219,'Seguimiento de las puntuaciones'!C219)","v":"0"}]
[null,217,{"$f":"'Seguimiento de las puntuaciones'!C220&COUNTIF('Seguimiento de las puntuaciones'!$C$4:C220,'Seguimiento de las puntuaciones'!C220)","v":"0"}]
[null,218,{"$f":"'Seguimiento de las puntuaciones'!C221&COUNTIF('Seguimiento de las puntuaciones'!$C$4:C221,'Seguimiento de las puntuaciones'!C221)","v":"0"}]
[null,219,{"$f":"'Seguimiento de las puntuaciones'!C222&COUNTIF('Seguimiento de las puntuaciones'!$C$4:C222,'Seguimiento de las puntuaciones'!C222)","v":"0"}]
[null,220,{"$f":"'Seguimiento de las puntuaciones'!C223&COUNTIF('Seguimiento de las puntuaciones'!$C$4:C223,'Seguimiento de las puntuaciones'!C223)","v":"0"}]
[null,221,{"$f":"'Seguimiento de las puntuaciones'!C224&COUNTIF('Seguimiento de las puntuaciones'!$C$4:C224,'Seguimiento de las puntuaciones'!C224)","v":"0"}]
[null,222,{"$f":"'Seguimiento de las puntuaciones'!C225&COUNTIF('Seguimiento de las puntuaciones'!$C$4:C225,'Seguimiento de las puntuaciones'!C225)","v":"0"}]
[null,223,{"$f":"'Seguimiento de las puntuaciones'!C226&COUNTIF('Seguimiento de las puntuaciones'!$C$4:C226,'Seguimiento de las puntuaciones'!C226)","v":"0"}]
[null,224,{"$f":"'Seguimiento de las puntuaciones'!C227&COUNTIF('Seguimiento de las puntuaciones'!$C$4:C227,'Seguimiento de las puntuaciones'!C227)","v":"0"}]
[null,225,{"$f":"'Seguimiento de las puntuaciones'!C228&COUNTIF('Seguimiento de las puntuaciones'!$C$4:C228,'Seguimiento de las puntuaciones'!C228)","v":"0"}]
[null,226,{"$f":"'Seguimiento de las puntuaciones'!C229&COUNTIF('Seguimiento de las puntuaciones'!$C$4:C229,'Seguimiento de las puntuaciones'!C229)","v":"0"}]
[null,227,{"$f":"'Seguimiento de las puntuaciones'!C230&COUNTIF('Seguimiento de las puntuaciones'!$C$4:C230,'Seguimiento de las puntuaciones'!C230)","v":"0"}]
[null,228,{"$f":"'Seguimiento de las puntuaciones'!C231&COUNTIF('Seguimiento de las puntuaciones'!$C$4:C231,'Seguimiento de las puntuaciones'!C231)","v":"0"}]
[null,229,{"$f":"'Seguimiento de las puntuaciones'!C232&COUNTIF('Seguimiento de las puntuaciones'!$C$4:C232,'Seguimiento de las puntuaciones'!C232)","v":"0"}]
[null,230,{"$f":"'Seguimiento de las puntuaciones'!C233&COUNTIF('Seguimiento de las puntuaciones'!$C$4:C233,'Seguimiento de las puntuaciones'!C233)","v":"0"}]
[null,231,{"$f":"'Seguimiento de las puntuaciones'!C234&COUNTIF('Seguimiento de las puntuaciones'!$C$4:C234,'Seguimiento de las puntuaciones'!C234)","v":"0"}]
[null,232,{"$f":"'Seguimiento de las puntuaciones'!C235&COUNTIF('Seguimiento de las puntuaciones'!$C$4:C235,'Seguimiento de las puntuaciones'!C235)","v":"0"}]
[null,233,{"$f":"'Seguimiento de las puntuaciones'!C236&COUNTIF('Seguimiento de las puntuaciones'!$C$4:C236,'Seguimiento de las puntuaciones'!C236)","v":"0"}]
[null,234,{"$f":"'Seguimiento de las puntuaciones'!C237&COUNTIF('Seguimiento de las puntuaciones'!$C$4:C237,'Seguimiento de las puntuaciones'!C237)","v":"0"}]
[null,235,{"$f":"'Seguimiento de las puntuaciones'!C238&COUNTIF('Seguimiento de las puntuaciones'!$C$4:C238,'Seguimiento de las puntuaciones'!C238)","v":"0"}]
[null,236,{"$f":"'Seguimiento de las puntuaciones'!C239&COUNTIF('Seguimiento de las puntuaciones'!$C$4:C239,'Seguimiento de las puntuaciones'!C239)","v":"0"}]
[null,237,{"$f":"'Seguimiento de las puntuaciones'!C240&COUNTIF('Seguimiento de las puntuaciones'!$C$4:C240,'Seguimiento de las puntuaciones'!C240)","v":"0"}]
[null,238,{"$f":"'Seguimiento de las puntuaciones'!C241&COUNTIF('Seguimiento de las puntuaciones'!$C$4:C241,'Seguimiento de las puntuaciones'!C241)","v":"0"}]
[null,239,{"$f":"'Seguimiento de las puntuaciones'!C242&COUNTIF('Seguimiento de las puntuaciones'!$C$4:C242,'Seguimiento de las puntuaciones'!C242)","v":"0"}]
[null,240,{"$f":"'Seguimiento de las puntuaciones'!C243&COUNTIF('Seguimiento de las puntuaciones'!$C$4:C243,'Seguimiento de las puntuaciones'!C243)","v":"0"}]
[null,241,{"$f":"'Seguimiento de las puntuaciones'!C244&COUNTIF('Seguimiento de las puntuaciones'!$C$4:C244,'Seguimiento de las puntuaciones'!C244)","v":"0"}]
[null,242,{"$f":"'Seguimiento de las puntuaciones'!C245&COUNTIF('Seguimiento de las puntuaciones'!$C$4:C245,'Seguimiento de las puntuaciones'!C245)","v":"0"}]
[null,243,{"$f":"'Seguimiento de las puntuaciones'!C246&COUNTIF('Seguimiento de las puntuaciones'!$C$4:C246,'Seguimiento de las puntuaciones'!C246)","v":"0"}]
[null,244,{"$f":"'Seguimiento de las puntuaciones'!C247&COUNTIF('Seguimiento de las puntuaciones'!$C$4:C247,'Seguimiento de las puntuaciones'!C247)","v":"0"}]
[null,245,{"$f":"'Seguimiento de las puntuaciones'!C248&COUNTIF('Seguimiento de las puntuaciones'!$C$4:C248,'Seguimiento de las puntuaciones'!C248)","v":"0"}]
[null,246,{"$f":"'Seguimiento de las puntuaciones'!C249&COUNTIF('Seguimiento de las puntuaciones'!$C$4:C249,'Seguimiento de las puntuaciones'!C249)","v":"0"}]
[null,247,{"$f":"'Seguimiento de las puntuaciones'!C250&COUNTIF('Seguimiento de las puntuaciones'!$C$4:C250,'Seguimiento de las puntuaciones'!C250)","v":"0"}]
[null,248,{"$f":"'Seguimiento de las puntuaciones'!C251&COUNTIF('Seguimiento de las puntuaciones'!$C$4:C251,'Seguimiento de las puntuaciones'!C251)","v":"0"}]
[null,249,{"$f":"'Seguimiento de las puntuaciones'!C252&COUNTIF('Seguimiento de las puntuaciones'!$C$4:C252,'Seguimiento de las puntuaciones'!C252)","v":"0"}]
[null,250,{"$f":"'Seguimiento de las puntuaciones'!C253&COUNTIF('Seguimiento de las puntuaciones'!$C$4:C253,'Seguimiento de las puntuaciones'!C253)","v":"0"}]
[null,251,{"$f":"'Seguimiento de las puntuaciones'!C254&COUNTIF('Seguimiento de las puntuaciones'!$C$4:C254,'Seguimiento de las puntuaciones'!C254)","v":"0"}]
[null,252,{"$f":"'Seguimiento de las puntuaciones'!C255&COUNTIF('Seguimiento de las puntuaciones'!$C$4:C255,'Seguimiento de las puntuaciones'!C255)","v":"0"}]
[null,253,{"$f":"'Seguimiento de las puntuaciones'!C256&COUNTIF('Seguimiento de las puntuaciones'!$C$4:C256,'Seguimiento de las puntuaciones'!C256)","v":"0"}]
[null,254,{"$f":"'Seguimiento de las puntuaciones'!C257&COUNTIF('Seguimiento de las puntuaciones'!$C$4:C257,'Seguimiento de las puntuaciones'!C257)","v":"0"}]
[null,255,{"$f":"'Seguimiento de las puntuaciones'!C258&COUNTIF('Seguimiento de las puntuaciones'!$C$4:C258,'Seguimiento de las puntuaciones'!C258)","v":"0"}]
[null,256,{"$f":"'Seguimiento de las puntuaciones'!C259&COUNTIF('Seguimiento de las puntuaciones'!$C$4:C259,'Seguimiento de las puntuaciones'!C259)","v":"0"}]
[null,257,{"$f":"'Seguimiento de las puntuaciones'!C260&COUNTIF('Seguimiento de las puntuaciones'!$C$4:C260,'Seguimiento de las puntuaciones'!C260)","v":"0"}]
[null,258,{"$f":"'Seguimiento de las puntuaciones'!C261&COUNTIF('Seguimiento de las puntuaciones'!$C$4:C261,'Seguimiento de las puntuaciones'!C261)","v":"0"}]
[null,259,{"$f":"'Seguimiento de las puntuaciones'!C262&COUNTIF('Seguimiento de las puntuaciones'!$C$4:C262,'Seguimiento de las puntuaciones'!C262)","v":"0"}]
[null,260,{"$f":"'Seguimiento de las puntuaciones'!C263&COUNTIF('Seguimiento de las puntuaciones'!$C$4:C263,'Seguimiento de las puntuaciones'!C263)","v":"0"}]
[null,261,{"$f":"'Seguimiento de las puntuaciones'!C264&COUNTIF('Seguimiento de las puntuaciones'!$C$4:C264,'Seguimiento de las puntuaciones'!C264)","v":"0"}]
[null,262,{"$f":"'Seguimiento de las puntuaciones'!C265&COUNTIF('Seguimiento de las puntuaciones'!$C$4:C265,'Seguimiento de las puntuaciones'!C265)","v":"0"}]
[null,263,{"$f":"'Seguimiento de las puntuaciones'!C266&COUNTIF('Seguimiento de las puntuaciones'!$C$4:C266,'Seguimiento de las puntuaciones'!C266)","v":"0"}]
[null,264,{"$f":"'Seguimiento de las puntuaciones'!C267&COUNTIF('Seguimiento de las puntuaciones'!$C$4:C267,'Seguimiento de las puntuaciones'!C267)","v":"0"}]
[null,265,{"$f":"'Seguimiento de las puntuaciones'!C268&COUNTIF('Seguimiento de las puntuaciones'!$C$4:C268,'Seguimiento de las puntuaciones'!C268)","v":"0"}]
[null,266,{"$f":"'Seguimiento de las puntuaciones'!C269&COUNTIF('Seguimiento de las puntuaciones'!$C$4:C269,'Seguimiento de las puntuaciones'!C269)","v":"0"}]
[null,267,{"$f":"'Seguimiento de las puntuaciones'!C270&COUNTIF('Seguimiento de las puntuaciones'!$C$4:C270,'Seguimiento de las puntuaciones'!C270)","v":"0"}]
[null,268,{"$f":"'Seguimiento de las puntuaciones'!C271&COUNTIF('Seguimiento de las puntuaciones'!$C$4:C271,'Seguimiento de las puntuaciones'!C271)","v":"0"}]
[null,269,{"$f":"'Seguimiento de las puntuaciones'!C272&COUNTIF('Seguimiento de las puntuaciones'!$C$4:C272,'Seguimiento de las puntuaciones'!C272)","v":"0"}]
[null,270,{"$f":"'Seguimiento de las puntuaciones'!C273&COUNTIF('Seguimiento de las puntuaciones'!$C$4:C273,'Seguimiento de las puntuaciones'!C273)","v":"0"}]
[null,271,{"$f":"'Seguimiento de las puntuaciones'!C274&COUNTIF('Seguimiento de las puntuaciones'!$C$4:C274,'Seguimiento de las puntuaciones'!C274)","v":"0"}]
[null,272,{"$f":"'Seguimiento de las puntuaciones'!C275&COUNTIF('Seguimiento de las puntuaciones'!$C$4:C275,'Seguimiento de las puntuaciones'!C275)","v":"0"}]
[null,273,{"$f":"'Seguimiento de las puntuaciones'!C276&COUNTIF('Seguimiento de las puntuaciones'!$C$4:C276,'Seguimiento de las puntuaciones'!C276)","v":"0"}]
[null,274,{"$f":"'Seguimiento de las puntuaciones'!C277&COUNTIF('Seguimiento de las puntuaciones'!$C$4:C277,'Seguimiento de las puntuaciones'!C277)","v":"0"}]
[null,275,{"$f":"'Seguimiento de las puntuaciones'!C278&COUNTIF('Seguimiento de las puntuaciones'!$C$4:C278,'Seguimiento de las puntuaciones'!C278)","v":"0"}]
[null,276,{"$f":"'Seguimiento de las puntuaciones'!C279&COUNTIF('Seguimiento de las puntuaciones'!$C$4:C279,'Seguimiento de las puntuaciones'!C279)","v":"0"}]
[null,277,{"$f":"'Seguimiento de las puntuaciones'!C280&COUNTIF('Seguimiento de las puntuaciones'!$C$4:C280,'Seguimiento de las puntuaciones'!C280)","v":"0"}]
[null,278,{"$f":"'Seguimiento de las puntuaciones'!C281&COUNTIF('Seguimiento de las puntuaciones'!$C$4:C281,'Seguimiento de las puntuaciones'!C281)","v":"0"}]
[null,279,{"$f":"'Seguimiento de las puntuaciones'!C282&COUNTIF('Seguimiento de las puntuaciones'!$C$4:C282,'Seguimiento de las puntuaciones'!C282)","v":"0"}]
[null,280,{"$f":"'Seguimiento de las puntuaciones'!C283&COUNTIF('Seguimiento de las puntuaciones'!$C$4:C283,'Seguimiento de las puntuaciones'!C283)","v":"0"}]
[null,281,{"$f":"'Seguimiento de las puntuaciones'!C284&COUNTIF('Seguimiento de las puntuaciones'!$C$4:C284,'Seguimiento de las puntuaciones'!C284)","v":"0"}]
[null,282,{"$f":"'Seguimiento de las puntuaciones'!C285&COUNTIF('Seguimiento de las puntuaciones'!$C$4:C285,'Seguimiento de las puntuaciones'!C285)","v":"0"}]
[null,283,{"$f":"'Seguimiento de las puntuaciones'!C286&COUNTIF('Seguimiento de las puntuaciones'!$C$4:C286,'Seguimiento de las puntuaciones'!C286)","v":"0"}]
[null,284,{"$f":"'Seguimiento de las puntuaciones'!C287&COUNTIF('Seguimiento de las puntuaciones'!$C$4:C287,'Seguimiento de las puntuaciones'!C287)","v":"0"}]
[null,285,{"$f":"'Seguimiento de las puntuaciones'!C288&COUNTIF('Seguimiento de las puntuaciones'!$C$4:C288,'Seguimiento de las puntuaciones'!C288)","v":"0"}]
[null,286,{"$f":"'Seguimiento de las puntuaciones'!C289&COUNTIF('Seguimiento de las puntuaciones'!$C$4:C289,'Seguimiento de las puntuaciones'!C289)","v":"0"}]
[null,287,{"$f":"'Seguimiento de las puntuaciones'!C290&COUNTIF('Seguimiento de las puntuaciones'!$C$4:C290,'Seguimiento de las puntuaciones'!C290)","v":"0"}]
[null,288,{"$f":"'Seguimiento de las puntuaciones'!C291&COUNTIF('Seguimiento de las puntuaciones'!$C$4:C291,'Seguimiento de las puntuaciones'!C291)","v":"0"}]
[null,289,{"$f":"'Seguimiento de las puntuaciones'!C292&COUNTIF('Seguimiento de las puntuaciones'!$C$4:C292,'Seguimiento de las puntuaciones'!C292)","v":"0"}]
[null,290,{"$f":"'Seguimiento de las puntuaciones'!C293&COUNTIF('Seguimiento de las puntuaciones'!$C$4:C293,'Seguimiento de las puntuaciones'!C293)","v":"0"}]
[null,291,{"$f":"'Seguimiento de las puntuaciones'!C294&COUNTIF('Seguimiento de las puntuaciones'!$C$4:C294,'Seguimiento de las puntuaciones'!C294)","v":"0"}]
[null,292,{"$f":"'Seguimiento de las puntuaciones'!C295&COUNTIF('Seguimiento de las puntuaciones'!$C$4:C295,'Seguimiento de las puntuaciones'!C295)","v":"0"}]
[null,293,{"$f":"'Seguimiento de las puntuaciones'!C296&COUNTIF('Seguimiento de las puntuaciones'!$C$4:C296,'Seguimiento de las puntuaciones'!C296)","v":"0"}]
[null,294,{"$f":"'Seguimiento de las puntuaciones'!C297&COUNTIF('Seguimiento de las puntuaciones'!$C$4:C297,'Seguimiento de las puntuaciones'!C297)","v":"0"}]
[null,295,{"$f":"'Seguimiento de las puntuaciones'!C298&COUNTIF('Seguimiento de las puntuaciones'!$C$4:C298,'Seguimiento de las puntuaciones'!C298)","v":"0"}]
[null,296,{"$f":"'Seguimiento de las puntuaciones'!C299&COUNTIF('Seguimiento de las puntuaciones'!$C$4:C299,'Seguimiento de las puntuaciones'!C299)","v":"0"}]
[null,297,{"$f":"'Seguimiento de las puntuaciones'!C300&COUNTIF('Seguimiento de las puntuaciones'!$C$4:C300,'Seguimiento de las puntuaciones'!C300)","v":"0"}]
[null,298,{"$f":"'Seguimiento de las puntuaciones'!C301&COUNTIF('Seguimiento de las puntuaciones'!$C$4:C301,'Seguimiento de las puntuaciones'!C301)","v":"0"}]
[null,299,{"$f":"'Seguimiento de las puntuaciones'!C302&COUNTIF('Seguimiento de las puntuaciones'!$C$4:C302,'Seguimiento de las puntuaciones'!C302)","v":"0"}]
[null,300,{"$f":"'Seguimiento de las puntuaciones'!C303&COUNTIF('Seguimiento de las puntuaciones'!$C$4:C303,'Seguimiento de las puntuaciones'!C303)","v":"0"}]
[null,301,{"$f":"'Seguimiento de las puntuaciones'!C304&COUNTIF('Seguimiento de las puntuaciones'!$C$4:C304,'Seguimiento de las puntuaciones'!C304)","v":"0"}]
[null,302,{"$f":"'Seguimiento de las puntuaciones'!C305&COUNTIF('Seguimiento de las puntuaciones'!$C$4:C305,'Seguimiento de las puntuaciones'!C305)","v":"0"}]
[null,303,{"$f":"'Seguimiento de las puntuaciones'!C306&COUNTIF('Seguimiento de las puntuaciones'!$C$4:C306,'Seguimiento de las puntuaciones'!C306)","v":"0"}]
[null,304,{"$f":"'Seguimiento de las puntuaciones'!C307&COUNTIF('Seguimiento de las puntuaciones'!$C$4:C307,'Seguimiento de las puntuaciones'!C307)","v":"0"}]
[null,305,{"$f":"'Seguimiento de las puntuaciones'!C308&COUNTIF('Seguimiento de las puntuaciones'!$C$4:C308,'Seguimiento de las puntuaciones'!C308)","v":"0"}]
[null,306,{"$f":"'Seguimiento de las puntuaciones'!C309&COUNTIF('Seguimiento de las puntuaciones'!$C$4:C309,'Seguimiento de las puntuaciones'!C309)","v":"0"}]
[null,307,{"$f":"'Seguimiento de las puntuaciones'!C310&COUNTIF('Seguimiento de las puntuaciones'!$C$4:C310,'Seguimiento de las puntuaciones'!C310)","v":"0"}]
[null,308,{"$f":"'Seguimiento de las puntuaciones'!C311&COUNTIF('Seguimiento de las puntuaciones'!$C$4:C311,'Seguimiento de las puntuaciones'!C311)","v":"0"}]
[null,309,{"$f":"'Seguimiento de las puntuaciones'!C312&COUNTIF('Seguimiento de las puntuaciones'!$C$4:C312,'Seguimiento de las puntuaciones'!C312)","v":"0"}]
[null,310,{"$f":"'Seguimiento de las puntuaciones'!C313&COUNTIF('Seguimiento de las puntuaciones'!$C$4:C313,'Seguimiento de las puntuaciones'!C313)","v":"0"}]
[null,311,{"$f":"'Seguimiento de las puntuaciones'!C314&COUNTIF('Seguimiento de las puntuaciones'!$C$4:C314,'Seguimiento de las puntuaciones'!C314)","v":"0"}]
[null,312,{"$f":"'Seguimiento de las puntuaciones'!C315&COUNTIF('Seguimiento de las puntuaciones'!$C$4:C315,'Seguimiento de las puntuaciones'!C315)","v":"0"}]
[null,313,{"$f":"'Seguimiento de las puntuaciones'!C316&COUNTIF('Seguimiento de las puntuaciones'!$C$4:C316,'Seguimiento de las puntuaciones'!C316)","v":"0"}]
[null,314,{"$f":"'Seguimiento de las puntuaciones'!C317&COUNTIF('Seguimiento de las puntuaciones'!$C$4:C317,'Seguimiento de las puntuaciones'!C317)","v":"0"}]
[null,315,{"$f":"'Seguimiento de las puntuaciones'!C318&COUNTIF('Seguimiento de las puntuaciones'!$C$4:C318,'Seguimiento de las puntuaciones'!C318)","v":"0"}]
[null,316,{"$f":"'Seguimiento de las puntuaciones'!C319&COUNTIF('Seguimiento de las puntuaciones'!$C$4:C319,'Seguimiento de las puntuaciones'!C319)","v":"0"}]
[null,317,{"$f":"'Seguimiento de las puntuaciones'!C320&COUNTIF('Seguimiento de las puntuaciones'!$C$4:C320,'Seguimiento de las puntuaciones'!C320)","v":"0"}]
[null,318,{"$f":"'Seguimiento de las puntuaciones'!C321&COUNTIF('Seguimiento de las puntuaciones'!$C$4:C321,'Seguimiento de las puntuaciones'!C321)","v":"0"}]
[null,319,{"$f":"'Seguimiento de las puntuaciones'!C322&COUNTIF('Seguimiento de las puntuaciones'!$C$4:C322,'Seguimiento de las puntuaciones'!C322)","v":"0"}]
[null,320,{"$f":"'Seguimiento de las puntuaciones'!C323&COUNTIF('Seguimiento de las puntuaciones'!$C$4:C323,'Seguimiento de las puntuaciones'!C323)","v":"0"}]
[null,321,{"$f":"'Seguimiento de las puntuaciones'!C324&COUNTIF('Seguimiento de las puntuaciones'!$C$4:C324,'Seguimiento de las puntuaciones'!C324)","v":"0"}]
[null,322,{"$f":"'Seguimiento de las puntuaciones'!C325&COUNTIF('Seguimiento de las puntuaciones'!$C$4:C325,'Seguimiento de las puntuaciones'!C325)","v":"0"}]
[null,323,{"$f":"'Seguimiento de las puntuaciones'!C326&COUNTIF('Seguimiento de las puntuaciones'!$C$4:C326,'Seguimiento de las puntuaciones'!C326)","v":"0"}]
[null,324,{"$f":"'Seguimiento de las puntuaciones'!C327&COUNTIF('Seguimiento de las puntuaciones'!$C$4:C327,'Seguimiento de las puntuaciones'!C327)","v":"0"}]
[null,325,{"$f":"'Seguimiento de las puntuaciones'!C328&COUNTIF('Seguimiento de las puntuaciones'!$C$4:C328,'Seguimiento de las puntuaciones'!C328)","v":"0"}]
[null,326,{"$f":"'Seguimiento de las puntuaciones'!C329&COUNTIF('Seguimiento de las puntuaciones'!$C$4:C329,'Seguimiento de las puntuaciones'!C329)","v":"0"}]
[null,327,{"$f":"'Seguimiento de las puntuaciones'!C330&COUNTIF('Seguimiento de las puntuaciones'!$C$4:C330,'Seguimiento de las puntuaciones'!C330)","v":"0"}]
[null,328,{"$f":"'Seguimiento de las puntuaciones'!C331&COUNTIF('Seguimiento de las puntuaciones'!$C$4:C331,'Seguimiento de las puntuaciones'!C331)","v":"0"}]
[null,329,{"$f":"'Seguimiento de las puntuaciones'!C332&COUNTIF('Seguimiento de las puntuaciones'!$C$4:C332,'Seguimiento de las puntuaciones'!C332)","v":"0"}]
[null,330,{"$f":"'Seguimiento de las puntuaciones'!C333&COUNTIF('Seguimiento de las puntuaciones'!$C$4:C333,'Seguimiento de las puntuaciones'!C333)","v":"0"}]
[null,331,{"$f":"'Seguimiento de las puntuaciones'!C334&COUNTIF('Seguimiento de las puntuaciones'!$C$4:C334,'Seguimiento de las puntuaciones'!C334)","v":"0"}]
[null,332,{"$f":"'Seguimiento de las puntuaciones'!C335&COUNTIF('Seguimiento de las puntuaciones'!$C$4:C335,'Seguimiento de las puntuaciones'!C335)","v":"0"}]
[null,333,{"$f":"'Seguimiento de las puntuaciones'!C336&COUNTIF('Seguimiento de las puntuaciones'!$C$4:C336,'Seguimiento de las puntuaciones'!C336)","v":"0"}]
[null,334,{"$f":"'Seguimiento de las puntuaciones'!C337&COUNTIF('Seguimiento de las puntuaciones'!$C$4:C337,'Seguimiento de las puntuaciones'!C337)","v":"0"}]
[null,335,{"$f":"'Seguimiento de las puntuaciones'!C338&COUNTIF('Seguimiento de las puntuaciones'!$C$4:C338,'Seguimiento de las puntuaciones'!C338)","v":"0"}]
[null,336,{"$f":"'Seguimiento de las puntuaciones'!C339&COUNTIF('Seguimiento de las puntuaciones'!$C$4:C339,'Seguimiento de las puntuaciones'!C339)","v":"0"}]
[null,337,{"$f":"'Seguimiento de las puntuaciones'!C340&COUNTIF('Seguimiento de las puntuaciones'!$C$4:C340,'Seguimiento de las puntuaciones'!C340)","v":"0"}]
[null,338,{"$f":"'Seguimiento de las puntuaciones'!C341&COUNTIF('Seguimiento de las puntuaciones'!$C$4:C341,'Seguimiento de las puntuaciones'!C341)","v":"0"}]
[null,339,{"$f":"'Seguimiento de las puntuaciones'!C342&COUNTIF('Seguimiento de las puntuaciones'!$C$4:C342,'Seguimiento de las puntuaciones'!C342)","v":"0"}]
[null,340,{"$f":"'Seguimiento de las puntuaciones'!C343&COUNTIF('Seguimiento de las puntuaciones'!$C$4:C343,'Seguimiento de las puntuaciones'!C343)","v":"0"}]
[null,341,{"$f":"'Seguimiento de las puntuaciones'!C344&COUNTIF('Seguimiento de las puntuaciones'!$C$4:C344,'Seguimiento de las puntuaciones'!C344)","v":"0"}]
[null,342,{"$f":"'Seguimiento de las puntuaciones'!C345&COUNTIF('Seguimiento de las puntuaciones'!$C$4:C345,'Seguimiento de las puntuaciones'!C345)","v":"0"}]
[null,343,{"$f":"'Seguimiento de las puntuaciones'!C346&COUNTIF('Seguimiento de las puntuaciones'!$C$4:C346,'Seguimiento de las puntuaciones'!C346)","v":"0"}]
[null,344,{"$f":"'Seguimiento de las puntuaciones'!C347&COUNTIF('Seguimiento de las puntuaciones'!$C$4:C347,'Seguimiento de las puntuaciones'!C347)","v":"0"}]
[null,345,{"$f":"'Seguimiento de las puntuaciones'!C348&COUNTIF('Seguimiento de las puntuaciones'!$C$4:C348,'Seguimiento de las puntuaciones'!C348)","v":"0"}]
[null,346,{"$f":"'Seguimiento de las puntuaciones'!C349&COUNTIF('Seguimiento de las puntuaciones'!$C$4:C349,'Seguimiento de las puntuaciones'!C349)","v":"0"}]
[null,347,{"$f":"'Seguimiento de las puntuaciones'!C350&COUNTIF('Seguimiento de las puntuaciones'!$C$4:C350,'Seguimiento de las puntuaciones'!C350)","v":"0"}]
[null,348,{"$f":"'Seguimiento de las puntuaciones'!C351&COUNTIF('Seguimiento de las puntuaciones'!$C$4:C351,'Seguimiento de las puntuaciones'!C351)","v":"0"}]
[null,349,{"$f":"'Seguimiento de las puntuaciones'!C352&COUNTIF('Seguimiento de las puntuaciones'!$C$4:C352,'Seguimiento de las puntuaciones'!C352)","v":"0"}]
[null,350,{"$f":"'Seguimiento de las puntuaciones'!C353&COUNTIF('Seguimiento de las puntuaciones'!$C$4:C353,'Seguimiento de las puntuaciones'!C353)","v":"0"}]
[null,351,{"$f":"'Seguimiento de las puntuaciones'!C354&COUNTIF('Seguimiento de las puntuaciones'!$C$4:C354,'Seguimiento de las puntuaciones'!C354)","v":"0"}]
[null,352,{"$f":"'Seguimiento de las puntuaciones'!C355&COUNTIF('Seguimiento de las puntuaciones'!$C$4:C355,'Seguimiento de las puntuaciones'!C355)","v":"0"}]
[null,353,{"$f":"'Seguimiento de las puntuaciones'!C356&COUNTIF('Seguimiento de las puntuaciones'!$C$4:C356,'Seguimiento de las puntuaciones'!C356)","v":"0"}]
[null,354,{"$f":"'Seguimiento de las puntuaciones'!C357&COUNTIF('Seguimiento de las puntuaciones'!$C$4:C357,'Seguimiento de las puntuaciones'!C357)","v":"0"}]
[null,355,{"$f":"'Seguimiento de las puntuaciones'!C358&COUNTIF('Seguimiento de las puntuaciones'!$C$4:C358,'Seguimiento de las puntuaciones'!C358)","v":"0"}]
[null,356,{"$f":"'Seguimiento de las puntuaciones'!C359&COUNTIF('Seguimiento de las puntuaciones'!$C$4:C359,'Seguimiento de las puntuaciones'!C359)","v":"0"}]
[null,357,{"$f":"'Seguimiento de las puntuaciones'!C360&COUNTIF('Seguimiento de las puntuaciones'!$C$4:C360,'Seguimiento de las puntuaciones'!C360)","v":"0"}]
[null,358,{"$f":"'Seguimiento de las puntuaciones'!C361&COUNTIF('Seguimiento de las puntuaciones'!$C$4:C361,'Seguimiento de las puntuaciones'!C361)","v":"0"}]
[null,359,{"$f":"'Seguimiento de las puntuaciones'!C362&COUNTIF('Seguimiento de las puntuaciones'!$C$4:C362,'Seguimiento de las puntuaciones'!C362)","v":"0"}]
[null,360,{"$f":"'Seguimiento de las puntuaciones'!C363&COUNTIF('Seguimiento de las puntuaciones'!$C$4:C363,'Seguimiento de las puntuaciones'!C363)","v":"0"}]
[null,361,{"$f":"'Seguimiento de las puntuaciones'!C364&COUNTIF('Seguimiento de las puntuaciones'!$C$4:C364,'Seguimiento de las puntuaciones'!C364)","v":"0"}]
[null,362,{"$f":"'Seguimiento de las puntuaciones'!C365&COUNTIF('Seguimiento de las puntuaciones'!$C$4:C365,'Seguimiento de las puntuaciones'!C365)","v":"0"}]
[null,363,{"$f":"'Seguimiento de las puntuaciones'!C366&COUNTIF('Seguimiento de las puntuaciones'!$C$4:C366,'Seguimiento de las puntuaciones'!C366)","v":"0"}]
[null,364,{"$f":"'Seguimiento de las puntuaciones'!C367&COUNTIF('Seguimiento de las puntuaciones'!$C$4:C367,'Seguimiento de las puntuaciones'!C367)","v":"0"}]
[null,365,{"$f":"'Seguimiento de las puntuaciones'!C368&COUNTIF('Seguimiento de las puntuaciones'!$C$4:C368,'Seguimiento de las puntuaciones'!C368)","v":"0"}]
[null,366,{"$f":"'Seguimiento de las puntuaciones'!C369&COUNTIF('Seguimiento de las puntuaciones'!$C$4:C369,'Seguimiento de las puntuaciones'!C369)","v":"0"}]
[null,367,{"$f":"'Seguimiento de las puntuaciones'!C370&COUNTIF('Seguimiento de las puntuaciones'!$C$4:C370,'Seguimiento de las puntuaciones'!C370)","v":"0"}]
[null,368,{"$f":"'Seguimiento de las puntuaciones'!C371&COUNTIF('Seguimiento de las puntuaciones'!$C$4:C371,'Seguimiento de las puntuaciones'!C371)","v":"0"}]
[null,369,{"$f":"'Seguimiento de las puntuaciones'!C372&COUNTIF('Seguimiento de las puntuaciones'!$C$4:C372,'Seguimiento de las puntuaciones'!C372)","v":"0"}]
[null,370,{"$f":"'Seguimiento de las puntuaciones'!C373&COUNTIF('Seguimiento de las puntuaciones'!$C$4:C373,'Seguimiento de las puntuaciones'!C373)","v":"0"}]
[null,371,{"$f":"'Seguimiento de las puntuaciones'!C374&COUNTIF('Seguimiento de las puntuaciones'!$C$4:C374,'Seguimiento de las puntuaciones'!C374)","v":"0"}]
[null,372,{"$f":"'Seguimiento de las puntuaciones'!C375&COUNTIF('Seguimiento de las puntuaciones'!$C$4:C375,'Seguimiento de las puntuaciones'!C375)","v":"0"}]
[null,373,{"$f":"'Seguimiento de las puntuaciones'!C376&COUNTIF('Seguimiento de las puntuaciones'!$C$4:C376,'Seguimiento de las puntuaciones'!C376)","v":"0"}]
[null,374,{"$f":"'Seguimiento de las puntuaciones'!C377&COUNTIF('Seguimiento de las puntuaciones'!$C$4:C377,'Seguimiento de las puntuaciones'!C377)","v":"0"}]
[null,375,{"$f":"'Seguimiento de las puntuaciones'!C378&COUNTIF('Seguimiento de las puntuaciones'!$C$4:C378,'Seguimiento de las puntuaciones'!C378)","v":"0"}]
[null,376,{"$f":"'Seguimiento de las puntuaciones'!C379&COUNTIF('Seguimiento de las puntuaciones'!$C$4:C379,'Seguimiento de las puntuaciones'!C379)","v":"0"}]
[null,377,{"$f":"'Seguimiento de las puntuaciones'!C380&COUNTIF('Seguimiento de las puntuaciones'!$C$4:C380,'Seguimiento de las puntuaciones'!C380)","v":"0"}]
[null,378,{"$f":"'Seguimiento de las puntuaciones'!C381&COUNTIF('Seguimiento de las puntuaciones'!$C$4:C381,'Seguimiento de las puntuaciones'!C381)","v":"0"}]
[null,379,{"$f":"'Seguimiento de las puntuaciones'!C382&COUNTIF('Seguimiento de las puntuaciones'!$C$4:C382,'Seguimiento de las puntuaciones'!C382)","v":"0"}]
[null,380,{"$f":"'Seguimiento de las puntuaciones'!C383&COUNTIF('Seguimiento de las puntuaciones'!$C$4:C383,'Seguimiento de las puntuaciones'!C383)","v":"0"}]
[null,381,{"$f":"'Seguimiento de las puntuaciones'!C384&COUNTIF('Seguimiento de las puntuaciones'!$C$4:C384,'Seguimiento de las puntuaciones'!C384)","v":"0"}]
[null,382,{"$f":"'Seguimiento de las puntuaciones'!C385&COUNTIF('Seguimiento de las puntuaciones'!$C$4:C385,'Seguimiento de las puntuaciones'!C385)","v":"0"}]
[null,383,{"$f":"'Seguimiento de las puntuaciones'!C386&COUNTIF('Seguimiento de las puntuaciones'!$C$4:C386,'Seguimiento de las puntuaciones'!C386)","v":"0"}]
[null,384,{"$f":"'Seguimiento de las puntuaciones'!C387&COUNTIF('Seguimiento de las puntuaciones'!$C$4:C387,'Seguimiento de las puntuaciones'!C387)","v":"0"}]
[null,385,{"$f":"'Seguimiento de las puntuaciones'!C388&COUNTIF('Seguimiento de las puntuaciones'!$C$4:C388,'Seguimiento de las puntuaciones'!C388)","v":"0"}]
[null,386,{"$f":"'Seguimiento de las puntuaciones'!C389&COUNTIF('Seguimiento de las puntuaciones'!$C$4:C389,'Seguimiento de las puntuaciones'!C389)","v":"0"}]
[null,387,{"$f":"'Seguimiento de las puntuaciones'!C390&COUNTIF('Seguimiento de las puntuaciones'!$C$4:C390,'Seguimiento de las puntuaciones'!C390)","v":"0"}]
[null,388,{"$f":"'Seguimiento de las puntuaciones'!C391&COUNTIF('Seguimiento de las puntuaciones'!$C$4:C391,'Seguimiento de las puntuaciones'!C391)","v":"0"}]
[null,389,{"$f":"'Seguimiento de las puntuaciones'!C392&COUNTIF('Seguimiento de las puntuaciones'!$C$4:C392,'Seguimiento de las puntuaciones'!C392)","v":"0"}]
[null,390,{"$f":"'Seguimiento de las puntuaciones'!C393&COUNTIF('Seguimiento de las puntuaciones'!$C$4:C393,'Seguimiento de las puntuaciones'!C393)","v":"0"}]
[null,391,{"$f":"'Seguimiento de las puntuaciones'!C394&COUNTIF('Seguimiento de las puntuaciones'!$C$4:C394,'Seguimiento de las puntuaciones'!C394)","v":"0"}]
[null,392,{"$f":"'Seguimiento de las puntuaciones'!C395&COUNTIF('Seguimiento de las puntuaciones'!$C$4:C395,'Seguimiento de las puntuaciones'!C395)","v":"0"}]
[null,393,{"$f":"'Seguimiento de las puntuaciones'!C396&COUNTIF('Seguimiento de las puntuaciones'!$C$4:C396,'Seguimiento de las puntuaciones'!C396)","v":"0"}]
[null,394,{"$f":"'Seguimiento de las puntuaciones'!C397&COUNTIF('Seguimiento de las puntuaciones'!$C$4:C397,'Seguimiento de las puntuaciones'!C397)","v":"0"}]
[null,395,{"$f":"'Seguimiento de las puntuaciones'!C398&COUNTIF('Seguimiento de las puntuaciones'!$C$4:C398,'Seguimiento de las puntuaciones'!C398)","v":"0"}]
[null,396,{"$f":"'Seguimiento de las puntuaciones'!C399&COUNTIF('Seguimiento de las puntuaciones'!$C$4:C399,'Seguimiento de las puntuaciones'!C399)","v":"0"}]
[null,397,{"$f":"'Seguimiento de las puntuaciones'!C400&COUNTIF('Seguimiento de las puntuaciones'!$C$4:C400,'Seguimiento de las puntuaciones'!C400)","v":"0"}]
[null,398,{"$f":"'Seguimiento de las puntuaciones'!C401&COUNTIF('Seguimiento de las puntuaciones'!$C$4:C401,'Seguimiento de las puntuaciones'!C401)","v":"0"}]
[null,399,{"$f":"'Seguimiento de las puntuaciones'!C402&COUNTIF('Seguimiento de las puntuaciones'!$C$4:C402,'Seguimiento de las puntuaciones'!C402)","v":"0"}]
[null,400,{"$f":"'Seguimiento de las puntuaciones'!C403&COUNTIF('Seguimiento de las puntuaciones'!$C$4:C403,'Seguimiento de las puntuaciones'!C403)","v":"0"}]
[null,401,{"$f":"'Seguimiento de las puntuaciones'!C404&COUNTIF('Seguimiento de las puntuaciones'!$C$4:C404,'Seguimiento de las puntuaciones'!C404)","v":"0"}]
[null,402,{"$f":"'Seguimiento de las puntuaciones'!C405&COUNTIF('Seguimiento de las puntuaciones'!$C$4:C405,'Seguimiento de las puntuaciones'!C405)","v":"0"}]
[null,403,{"$f":"'Seguimiento de las puntuaciones'!C406&COUNTIF('Seguimiento de las puntuaciones'!$C$4:C406,'Seguimiento de las puntuaciones'!C406)","v":"0"}]
[null,404,{"$f":"'Seguimiento de las puntuaciones'!C407&COUNTIF('Seguimiento de las puntuaciones'!$C$4:C407,'Seguimiento de las puntuaciones'!C407)","v":"0"}]
[null,405,{"$f":"'Seguimiento de las puntuaciones'!C408&COUNTIF('Seguimiento de las puntuaciones'!$C$4:C408,'Seguimiento de las puntuaciones'!C408)","v":"0"}]
[null,406,{"$f":"'Seguimiento de las puntuaciones'!C409&COUNTIF('Seguimiento de las puntuaciones'!$C$4:C409,'Seguimiento de las puntuaciones'!C409)","v":"0"}]
[null,407,{"$f":"'Seguimiento de las puntuaciones'!C410&COUNTIF('Seguimiento de las puntuaciones'!$C$4:C410,'Seguimiento de las puntuaciones'!C410)","v":"0"}]
[null,408,{"$f":"'Seguimiento de las puntuaciones'!C411&COUNTIF('Seguimiento de las puntuaciones'!$C$4:C411,'Seguimiento de las puntuaciones'!C411)","v":"0"}]
[null,409,{"$f":"'Seguimiento de las puntuaciones'!C412&COUNTIF('Seguimiento de las puntuaciones'!$C$4:C412,'Seguimiento de las puntuaciones'!C412)","v":"0"}]
[null,410,{"$f":"'Seguimiento de las puntuaciones'!C413&COUNTIF('Seguimiento de las puntuaciones'!$C$4:C413,'Seguimiento de las puntuaciones'!C413)","v":"0"}]
[null,411,{"$f":"'Seguimiento de las puntuaciones'!C414&COUNTIF('Seguimiento de las puntuaciones'!$C$4:C414,'Seguimiento de las puntuaciones'!C414)","v":"0"}]
[null,412,{"$f":"'Seguimiento de las puntuaciones'!C415&COUNTIF('Seguimiento de las puntuaciones'!$C$4:C415,'Seguimiento de las puntuaciones'!C415)","v":"0"}]
[null,413,{"$f":"'Seguimiento de las puntuaciones'!C416&COUNTIF('Seguimiento de las puntuaciones'!$C$4:C416,'Seguimiento de las puntuaciones'!C416)","v":"0"}]
[null,414,{"$f":"'Seguimiento de las puntuaciones'!C417&COUNTIF('Seguimiento de las puntuaciones'!$C$4:C417,'Seguimiento de las puntuaciones'!C417)","v":"0"}]
[null,415,{"$f":"'Seguimiento de las puntuaciones'!C418&COUNTIF('Seguimiento de las puntuaciones'!$C$4:C418,'Seguimiento de las puntuaciones'!C418)","v":"0"}]
[null,416,{"$f":"'Seguimiento de las puntuaciones'!C419&COUNTIF('Seguimiento de las puntuaciones'!$C$4:C419,'Seguimiento de las puntuaciones'!C419)","v":"0"}]
[null,417,{"$f":"'Seguimiento de las puntuaciones'!C420&COUNTIF('Seguimiento de las puntuaciones'!$C$4:C420,'Seguimiento de las puntuaciones'!C420)","v":"0"}]
[null,418,{"$f":"'Seguimiento de las puntuaciones'!C421&COUNTIF('Seguimiento de las puntuaciones'!$C$4:C421,'Seguimiento de las puntuaciones'!C421)","v":"0"}]
[null,419,{"$f":"'Seguimiento de las puntuaciones'!C422&COUNTIF('Seguimiento de las puntuaciones'!$C$4:C422,'Seguimiento de las puntuaciones'!C422)","v":"0"}]
[null,420,{"$f":"'Seguimiento de las puntuaciones'!C423&COUNTIF('Seguimiento de las puntuaciones'!$C$4:C423,'Seguimiento de las puntuaciones'!C423)","v":"0"}]
[null,421,{"$f":"'Seguimiento de las puntuaciones'!C424&COUNTIF('Seguimiento de las puntuaciones'!$C$4:C424,'Seguimiento de las puntuaciones'!C424)","v":"0"}]
[null,422,{"$f":"'Seguimiento de las puntuaciones'!C425&COUNTIF('Seguimiento de las puntuaciones'!$C$4:C425,'Seguimiento de las puntuaciones'!C425)","v":"0"}]
[null,423,{"$f":"'Seguimiento de las puntuaciones'!C426&COUNTIF('Seguimiento de las puntuaciones'!$C$4:C426,'Seguimiento de las puntuaciones'!C426)","v":"0"}]
[null,424,{"$f":"'Seguimiento de las puntuaciones'!C427&COUNTIF('Seguimiento de las puntuaciones'!$C$4:C427,'Seguimiento de las puntuaciones'!C427)","v":"0"}]
[null,425,{"$f":"'Seguimiento de las puntuaciones'!C428&COUNTIF('Seguimiento de las puntuaciones'!$C$4:C428,'Seguimiento de las puntuaciones'!C428)","v":"0"}]
[null,426,{"$f":"'Seguimiento de las puntuaciones'!C429&COUNTIF('Seguimiento de las puntuaciones'!$C$4:C429,'Seguimiento de las puntuaciones'!C429)","v":"0"}]
[null,427,{"$f":"'Seguimiento de las puntuaciones'!C430&COUNTIF('Seguimiento de las puntuaciones'!$C$4:C430,'Seguimiento de las puntuaciones'!C430)","v":"0"}]
[null,428,{"$f":"'Seguimiento de las puntuaciones'!C431&COUNTIF('Seguimiento de las puntuaciones'!$C$4:C431,'Seguimiento de las puntuaciones'!C431)","v":"0"}]
[null,429,{"$f":"'Seguimiento de las puntuaciones'!C432&COUNTIF('Seguimiento de las puntuaciones'!$C$4:C432,'Seguimiento de las puntuaciones'!C432)","v":"0"}]
[null,430,{"$f":"'Seguimiento de las puntuaciones'!C433&COUNTIF('Seguimiento de las puntuaciones'!$C$4:C433,'Seguimiento de las puntuaciones'!C433)","v":"0"}]
[null,431,{"$f":"'Seguimiento de las puntuaciones'!C434&COUNTIF('Seguimiento de las puntuaciones'!$C$4:C434,'Seguimiento de las puntuaciones'!C434)","v":"0"}]
[null,432,{"$f":"'Seguimiento de las puntuaciones'!C435&COUNTIF('Seguimiento de las puntuaciones'!$C$4:C435,'Seguimiento de las puntuaciones'!C435)","v":"0"}]
[null,433,{"$f":"'Seguimiento de las puntuaciones'!C436&COUNTIF('Seguimiento de las puntuaciones'!$C$4:C436,'Seguimiento de las puntuaciones'!C436)","v":"0"}]
[null,434,{"$f":"'Seguimiento de las puntuaciones'!C437&COUNTIF('Seguimiento de las puntuaciones'!$C$4:C437,'Seguimiento de las puntuaciones'!C437)","v":"0"}]
[null,435,{"$f":"'Seguimiento de las puntuaciones'!C438&COUNTIF('Seguimiento de las puntuaciones'!$C$4:C438,'Seguimiento de las puntuaciones'!C438)","v":"0"}]
[null,436,{"$f":"'Seguimiento de las puntuaciones'!C439&COUNTIF('Seguimiento de las puntuaciones'!$C$4:C439,'Seguimiento de las puntuaciones'!C439)","v":"0"}]
[null,437,{"$f":"'Seguimiento de las puntuaciones'!C440&COUNTIF('Seguimiento de las puntuaciones'!$C$4:C440,'Seguimiento de las puntuaciones'!C440)","v":"0"}]
[null,438,{"$f":"'Seguimiento de las puntuaciones'!C441&COUNTIF('Seguimiento de las puntuaciones'!$C$4:C441,'Seguimiento de las puntuaciones'!C441)","v":"0"}]
[null,439,{"$f":"'Seguimiento de las puntuaciones'!C442&COUNTIF('Seguimiento de las puntuaciones'!$C$4:C442,'Seguimiento de las puntuaciones'!C442)","v":"0"}]
[null,440,{"$f":"'Seguimiento de las puntuaciones'!C443&COUNTIF('Seguimiento de las puntuaciones'!$C$4:C443,'Seguimiento de las puntuaciones'!C443)","v":"0"}]
[null,441,{"$f":"'Seguimiento de las puntuaciones'!C444&COUNTIF('Seguimiento de las puntuaciones'!$C$4:C444,'Seguimiento de las puntuaciones'!C444)","v":"0"}]
[null,442,{"$f":"'Seguimiento de las puntuaciones'!C445&COUNTIF('Seguimiento de las puntuaciones'!$C$4:C445,'Seguimiento de las puntuaciones'!C445)","v":"0"}]
[null,443,{"$f":"'Seguimiento de las puntuaciones'!C446&COUNTIF('Seguimiento de las puntuaciones'!$C$4:C446,'Seguimiento de las puntuaciones'!C446)","v":"0"}]
[null,444,{"$f":"'Seguimiento de las puntuaciones'!C447&COUNTIF('Seguimiento de las puntuaciones'!$C$4:C447,'Seguimiento de las puntuaciones'!C447)","v":"0"}]
[null,445,{"$f":"'Seguimiento de las puntuaciones'!C448&COUNTIF('Seguimiento de las puntuaciones'!$C$4:C448,'Seguimiento de las puntuaciones'!C448)","v":"0"}]
[null,446,{"$f":"'Seguimiento de las puntuaciones'!C449&COUNTIF('Seguimiento de las puntuaciones'!$C$4:C449,'Seguimiento de las puntuaciones'!C449)","v":"0"}]
[null,447,{"$f":"'Seguimiento de las puntuaciones'!C450&COUNTIF('Seguimiento de las puntuaciones'!$C$4:C450,'Seguimiento de las puntuaciones'!C450)","v":"0"}]
[null,448,{"$f":"'Seguimiento de las puntuaciones'!C451&COUNTIF('Seguimiento de las puntuaciones'!$C$4:C451,'Seguimiento de las puntuaciones'!C451)","v":"0"}]
[null,449,{"$f":"'Seguimiento de las puntuaciones'!C452&COUNTIF('Seguimiento de las puntuaciones'!$C$4:C452,'Seguimiento de las puntuaciones'!C452)","v":"0"}]
[null,450,{"$f":"'Seguimiento de las puntuaciones'!C453&COUNTIF('Seguimiento de las puntuaciones'!$C$4:C453,'Seguimiento de las puntuaciones'!C453)","v":"0"}]
[null,451,{"$f":"'Seguimiento de las puntuaciones'!C454&COUNTIF('Seguimiento de las puntuaciones'!$C$4:C454,'Seguimiento de las puntuaciones'!C454)","v":"0"}]
[null,452,{"$f":"'Seguimiento de las puntuaciones'!C455&COUNTIF('Seguimiento de las puntuaciones'!$C$4:C455,'Seguimiento de las puntuaciones'!C455)","v":"0"}]
[null,453,{"$f":"'Seguimiento de las puntuaciones'!C456&COUNTIF('Seguimiento de las puntuaciones'!$C$4:C456,'Seguimiento de las puntuaciones'!C456)","v":"0"}]
[null,454,{"$f":"'Seguimiento de las puntuaciones'!C457&COUNTIF('Seguimiento de las puntuaciones'!$C$4:C457,'Seguimiento de las puntuaciones'!C457)","v":"0"}]
[null,455,{"$f":"'Seguimiento de las puntuaciones'!C458&COUNTIF('Seguimiento de las puntuaciones'!$C$4:C458,'Seguimiento de las puntuaciones'!C458)","v":"0"}]
[null,456,{"$f":"'Seguimiento de las puntuaciones'!C459&COUNTIF('Seguimiento de las puntuaciones'!$C$4:C459,'Seguimiento de las puntuaciones'!C459)","v":"0"}]
[null,457,{"$f":"'Seguimiento de las puntuaciones'!C460&COUNTIF('Seguimiento de las puntuaciones'!$C$4:C460,'Seguimiento de las puntuaciones'!C460)","v":"0"}]
[null,458,{"$f":"'Seguimiento de las puntuaciones'!C461&COUNTIF('Seguimiento de las puntuaciones'!$C$4:C461,'Seguimiento de las puntuaciones'!C461)","v":"0"}]
[null,459,{"$f":"'Seguimiento de las puntuaciones'!C462&COUNTIF('Seguimiento de las puntuaciones'!$C$4:C462,'Seguimiento de las puntuaciones'!C462)","v":"0"}]
[null,460,{"$f":"'Seguimiento de las puntuaciones'!C463&COUNTIF('Seguimiento de las puntuaciones'!$C$4:C463,'Seguimiento de las puntuaciones'!C463)","v":"0"}]
[null,461,{"$f":"'Seguimiento de las puntuaciones'!C464&COUNTIF('Seguimiento de las puntuaciones'!$C$4:C464,'Seguimiento de las puntuaciones'!C464)","v":"0"}]
[null,462,{"$f":"'Seguimiento de las puntuaciones'!C465&COUNTIF('Seguimiento de las puntuaciones'!$C$4:C465,'Seguimiento de las puntuaciones'!C465)","v":"0"}]
[null,463,{"$f":"'Seguimiento de las puntuaciones'!C466&COUNTIF('Seguimiento de las puntuaciones'!$C$4:C466,'Seguimiento de las puntuaciones'!C466)","v":"0"}]
[null,464,{"$f":"'Seguimiento de las puntuaciones'!C467&COUNTIF('Seguimiento de las puntuaciones'!$C$4:C467,'Seguimiento de las puntuaciones'!C467)","v":"0"}]
[null,465,{"$f":"'Seguimiento de las puntuaciones'!C468&COUNTIF('Seguimiento de las puntuaciones'!$C$4:C468,'Seguimiento de las puntuaciones'!C468)","v":"0"}]
[null,466,{"$f":"'Seguimiento de las puntuaciones'!C469&COUNTIF('Seguimiento de las puntuaciones'!$C$4:C469,'Seguimiento de las puntuaciones'!C469)","v":"0"}]
[null,467,{"$f":"'Seguimiento de las puntuaciones'!C470&COUNTIF('Seguimiento de las puntuaciones'!$C$4:C470,'Seguimiento de las puntuaciones'!C470)","v":"0"}]
[null,468,{"$f":"'Seguimiento de las puntuaciones'!C471&COUNTIF('Seguimiento de las puntuaciones'!$C$4:C471,'Seguimiento de las puntuaciones'!C471)","v":"0"}]
[null,469,{"$f":"'Seguimiento de las puntuaciones'!C472&COUNTIF('Seguimiento de las puntuaciones'!$C$4:C472,'Seguimiento de las puntuaciones'!C472)","v":"0"}]
[null,470,{"$f":"'Seguimiento de las puntuaciones'!C473&COUNTIF('Seguimiento de las puntuaciones'!$C$4:C473,'Seguimiento de las puntuaciones'!C473)","v":"0"}]
[null,471,{"$f":"'Seguimiento de las puntuaciones'!C474&COUNTIF('Seguimiento de las puntuaciones'!$C$4:C474,'Seguimiento de las puntuaciones'!C474)","v":"0"}]
[null,472,{"$f":"'Seguimiento de las puntuaciones'!C475&COUNTIF('Seguimiento de las puntuaciones'!$C$4:C475,'Seguimiento de las puntuaciones'!C475)","v":"0"}]
[null,473,{"$f":"'Seguimiento de las puntuaciones'!C476&COUNTIF('Seguimiento de las puntuaciones'!$C$4:C476,'Seguimiento de las puntuaciones'!C476)","v":"0"}]
[null,474,{"$f":"'Seguimiento de las puntuaciones'!C477&COUNTIF('Seguimiento de las puntuaciones'!$C$4:C477,'Seguimiento de las puntuaciones'!C477)","v":"0"}]
[null,475,{"$f":"'Seguimiento de las puntuaciones'!C478&COUNTIF('Seguimiento de las puntuaciones'!$C$4:C478,'Seguimiento de las puntuaciones'!C478)","v":"0"}]
[null,476,{"$f":"'Seguimiento de las puntuaciones'!C479&COUNTIF('Seguimiento de las puntuaciones'!$C$4:C479,'Seguimiento de las puntuaciones'!C479)","v":"0"}]
[null,477,{"$f":"'Seguimiento de las puntuaciones'!C480&COUNTIF('Seguimiento de las puntuaciones'!$C$4:C480,'Seguimiento de las puntuaciones'!C480)","v":"0"}]
[null,478,{"$f":"'Seguimiento de las puntuaciones'!C481&COUNTIF('Seguimiento de las puntuaciones'!$C$4:C481,'Seguimiento de las puntuaciones'!C481)","v":"0"}]
[null,479,{"$f":"'Seguimiento de las puntuaciones'!C482&COUNTIF('Seguimiento de las puntuaciones'!$C$4:C482,'Seguimiento de las puntuaciones'!C482)","v":"0"}]
[null,480,{"$f":"'Seguimiento de las puntuaciones'!C483&COUNTIF('Seguimiento de las puntuaciones'!$C$4:C483,'Seguimiento de las puntuaciones'!C483)","v":"0"}]
[null,481,{"$f":"'Seguimiento de las puntuaciones'!C484&COUNTIF('Seguimiento de las puntuaciones'!$C$4:C484,'Seguimiento de las puntuaciones'!C484)","v":"0"}]
[null,482,{"$f":"'Seguimiento de las puntuaciones'!C485&COUNTIF('Seguimiento de las puntuaciones'!$C$4:C485,'Seguimiento de las puntuaciones'!C485)","v":"0"}]
[null,483,{"$f":"'Seguimiento de las puntuaciones'!C486&COUNTIF('Seguimiento de las puntuaciones'!$C$4:C486,'Seguimiento de las puntuaciones'!C486)","v":"0"}]
[null,484,{"$f":"'Seguimiento de las puntuaciones'!C487&COUNTIF('Seguimiento de las puntuaciones'!$C$4:C487,'Seguimiento de las puntuaciones'!C487)","v":"0"}]
[null,485,{"$f":"'Seguimiento de las puntuaciones'!C488&COUNTIF('Seguimiento de las puntuaciones'!$C$4:C488,'Seguimiento de las puntuaciones'!C488)","v":"0"}]
[null,486,{"$f":"'Seguimiento de las puntuaciones'!C489&COUNTIF('Seguimiento de las puntuaciones'!$C$4:C489,'Seguimiento de las puntuaciones'!C489)","v":"0"}]
[null,487,{"$f":"'Seguimiento de las puntuaciones'!C490&COUNTIF('Seguimiento de las puntuaciones'!$C$4:C490,'Seguimiento de las puntuaciones'!C490)","v":"0"}]
[null,488,{"$f":"'Seguimiento de las puntuaciones'!C491&COUNTIF('Seguimiento de las puntuaciones'!$C$4:C491,'Seguimiento de las puntuaciones'!C491)","v":"0"}]
[null,489,{"$f":"'Seguimiento de las puntuaciones'!C492&COUNTIF('Seguimiento de las puntuaciones'!$C$4:C492,'Seguimiento de las puntuaciones'!C492)","v":"0"}]
[null,490,{"$f":"'Seguimiento de las puntuaciones'!C493&COUNTIF('Seguimiento de las puntuaciones'!$C$4:C493,'Seguimiento de las puntuaciones'!C493)","v":"0"}]
[null,491,{"$f":"'Seguimiento de las puntuaciones'!C494&COUNTIF('Seguimiento de las puntuaciones'!$C$4:C494,'Seguimiento de las puntuaciones'!C494)","v":"0"}]
[null,492,{"$f":"'Seguimiento de las puntuaciones'!C495&COUNTIF('Seguimiento de las puntuaciones'!$C$4:C495,'Seguimiento de las puntuaciones'!C495)","v":"0"}]
[null,493,{"$f":"'Seguimiento de las puntuaciones'!C496&COUNTIF('Seguimiento de las puntuaciones'!$C$4:C496,'Seguimiento de las puntuaciones'!C496)","v":"0"}]
[null,494,{"$f":"'Seguimiento de las puntuaciones'!C497&COUNTIF('Seguimiento de las puntuaciones'!$C$4:C497,'Seguimiento de las puntuaciones'!C497)","v":"0"}]
[null,495,{"$f":"'Seguimiento de las puntuaciones'!C498&COUNTIF('Seguimiento de las puntuaciones'!$C$4:C498,'Seguimiento de las puntuaciones'!C498)","v":"0"}]
[null,496,{"$f":"'Seguimiento de las puntuaciones'!C499&COUNTIF('Seguimiento de las puntuaciones'!$C$4:C499,'Seguimiento de las puntuaciones'!C499)","v":"0"}]
[null,497,{"$f":"'Seguimiento de las puntuaciones'!C500&COUNTIF('Seguimiento de las puntuaciones'!$C$4:C500,'Seguimiento de las puntuaciones'!C500)","v":"0"}]
[null,498,{"$f":"'Seguimiento de las puntuaciones'!C501&COUNTIF('Seguimiento de las puntuaciones'!$C$4:C501,'Seguimiento de las puntuaciones'!C501)","v":"0"}]
[null,499,{"$f":"'Seguimiento de las puntuaciones'!C502&COUNTIF('Seguimiento de las puntuaciones'!$C$4:C502,'Seguimiento de las puntuaciones'!C502)","v":"0"}]
[null,500,{"$f":"'Seguimiento de las puntuaciones'!C503&COUNTIF('Seguimiento de las puntuaciones'!$C$4:C503,'Seguimiento de las puntuaciones'!C503)","v":"0"}]
[null,501,{"$f":"'Seguimiento de las puntuaciones'!C504&COUNTIF('Seguimiento de las puntuaciones'!$C$4:C504,'Seguimiento de las puntuaciones'!C504)","v":"0"}]
[null,502,{"$f":"'Seguimiento de las puntuaciones'!C505&COUNTIF('Seguimiento de las puntuaciones'!$C$4:C505,'Seguimiento de las puntuaciones'!C505)","v":"0"}]
[null,503,{"$f":"'Seguimiento de las puntuaciones'!C506&COUNTIF('Seguimiento de las puntuaciones'!$C$4:C506,'Seguimiento de las puntuaciones'!C506)","v":"0"}]
[null,504,{"$f":"'Seguimiento de las puntuaciones'!C507&COUNTIF('Seguimiento de las puntuaciones'!$C$4:C507,'Seguimiento de las puntuaciones'!C507)","v":"0"}]
[null,505,{"$f":"'Seguimiento de las puntuaciones'!C508&COUNTIF('Seguimiento de las puntuaciones'!$C$4:C508,'Seguimiento de las puntuaciones'!C508)","v":"0"}]
[null,506,{"$f":"'Seguimiento de las puntuaciones'!C509&COUNTIF('Seguimiento de las puntuaciones'!$C$4:C509,'Seguimiento de las puntuaciones'!C509)","v":"0"}]
[null,507,{"$f":"'Seguimiento de las puntuaciones'!C510&COUNTIF('Seguimiento de las puntuaciones'!$C$4:C510,'Seguimiento de las puntuaciones'!C510)","v":"0"}]
[null,508,{"$f":"'Seguimiento de las puntuaciones'!C511&COUNTIF('Seguimiento de las puntuaciones'!$C$4:C511,'Seguimiento de las puntuaciones'!C511)","v":"0"}]
[null,509,{"$f":"'Seguimiento de las puntuaciones'!C512&COUNTIF('Seguimiento de las puntuaciones'!$C$4:C512,'Seguimiento de las puntuaciones'!C512)","v":"0"}]
[null,510,{"$f":"'Seguimiento de las puntuaciones'!C513&COUNTIF('Seguimiento de las puntuaciones'!$C$4:C513,'Seguimiento de las puntuaciones'!C513)","v":"0"}]
[null,511,{"$f":"'Seguimiento de las puntuaciones'!C514&COUNTIF('Seguimiento de las puntuaciones'!$C$4:C514,'Seguimiento de las puntuaciones'!C514)","v":"0"}]
[null,512,{"$f":"'Seguimiento de las puntuaciones'!C515&COUNTIF('Seguimiento de las puntuaciones'!$C$4:C515,'Seguimiento de las puntuaciones'!C515)","v":"0"}]
[null,513,{"$f":"'Seguimiento de las puntuaciones'!C516&COUNTIF('Seguimiento de las puntuaciones'!$C$4:C516,'Seguimiento de las puntuaciones'!C516)","v":"0"}]
[null,514,{"$f":"'Seguimiento de las puntuaciones'!C517&COUNTIF('Seguimiento de las puntuaciones'!$C$4:C517,'Seguimiento de las puntuaciones'!C517)","v":"0"}]
[null,515,{"$f":"'Seguimiento de las puntuaciones'!C518&COUNTIF('Seguimiento de las puntuaciones'!$C$4:C518,'Seguimiento de las puntuaciones'!C518)","v":"0"}]
[null,516,{"$f":"'Seguimiento de las puntuaciones'!C519&COUNTIF('Seguimiento de las puntuaciones'!$C$4:C519,'Seguimiento de las puntuaciones'!C519)","v":"0"}]
[null,517,{"$f":"'Seguimiento de las puntuaciones'!C520&COUNTIF('Seguimiento de las puntuaciones'!$C$4:C520,'Seguimiento de las puntuaciones'!C520)","v":"0"}]
[null,518,{"$f":"'Seguimiento de las puntuaciones'!C521&COUNTIF('Seguimiento de las puntuaciones'!$C$4:C521,'Seguimiento de las puntuaciones'!C521)","v":"0"}]
[null,519,{"$f":"'Seguimiento de las puntuaciones'!C522&COUNTIF('Seguimiento de las puntuaciones'!$C$4:C522,'Seguimiento de las puntuaciones'!C522)","v":"0"}]
[null,520,{"$f":"'Seguimiento de las puntuaciones'!C523&COUNTIF('Seguimiento de las puntuaciones'!$C$4:C523,'Seguimiento de las puntuaciones'!C523)","v":"0"}]
[null,521,{"$f":"'Seguimiento de las puntuaciones'!C524&COUNTIF('Seguimiento de las puntuaciones'!$C$4:C524,'Seguimiento de las puntuaciones'!C524)","v":"0"}]
[null,522,{"$f":"'Seguimiento de las puntuaciones'!C525&COUNTIF('Seguimiento de las puntuaciones'!$C$4:C525,'Seguimiento de las puntuaciones'!C525)","v":"0"}]
[null,523,{"$f":"'Seguimiento de las puntuaciones'!C526&COUNTIF('Seguimiento de las puntuaciones'!$C$4:C526,'Seguimiento de las puntuaciones'!C526)","v":"0"}]
[null,524,{"$f":"'Seguimiento de las puntuaciones'!C527&COUNTIF('Seguimiento de las puntuaciones'!$C$4:C527,'Seguimiento de las puntuaciones'!C527)","v":"0"}]
[null,525,{"$f":"'Seguimiento de las puntuaciones'!C528&COUNTIF('Seguimiento de las puntuaciones'!$C$4:C528,'Seguimiento de las puntuaciones'!C528)","v":"0"}]
[null,526,{"$f":"'Seguimiento de las puntuaciones'!C529&COUNTIF('Seguimiento de las puntuaciones'!$C$4:C529,'Seguimiento de las puntuaciones'!C529)","v":"0"}]
[null,527,{"$f":"'Seguimiento de las puntuaciones'!C530&COUNTIF('Seguimiento de las puntuaciones'!$C$4:C530,'Seguimiento de las puntuaciones'!C530)","v":"0"}]
[null,528,{"$f":"'Seguimiento de las puntuaciones'!C531&COUNTIF('Seguimiento de las puntuaciones'!$C$4:C531,'Seguimiento de las puntuaciones'!C531)","v":"0"}]
[null,529,{"$f":"'Seguimiento de las puntuaciones'!C532&COUNTIF('Seguimiento de las puntuaciones'!$C$4:C532,'Seguimiento de las puntuaciones'!C532)","v":"0"}]
[null,530,{"$f":"'Seguimiento de las puntuaciones'!C533&COUNTIF('Seguimiento de las puntuaciones'!$C$4:C533,'Seguimiento de las puntuaciones'!C533)","v":"0"}]
[null,531,{"$f":"'Seguimiento de las puntuaciones'!C534&COUNTIF('Seguimiento de las puntuaciones'!$C$4:C534,'Seguimiento de las puntuaciones'!C534)","v":"0"}]
[null,532,{"$f":"'Seguimiento de las puntuaciones'!C535&COUNTIF('Seguimiento de las puntuaciones'!$C$4:C535,'Seguimiento de las puntuaciones'!C535)","v":"0"}]
[null,533,{"$f":"'Seguimiento de las puntuaciones'!C536&COUNTIF('Seguimiento de las puntuaciones'!$C$4:C536,'Seguimiento de las puntuaciones'!C536)","v":"0"}]
[null,534,{"$f":"'Seguimiento de las puntuaciones'!C537&COUNTIF('Seguimiento de las puntuaciones'!$C$4:C537,'Seguimiento de las puntuaciones'!C537)","v":"0"}]
[null,535,{"$f":"'Seguimiento de las puntuaciones'!C538&COUNTIF('Seguimiento de las puntuaciones'!$C$4:C538,'Seguimiento de las puntuaciones'!C538)","v":"0"}]
[null,536,{"$f":"'Seguimiento de las puntuaciones'!C539&COUNTIF('Seguimiento de las puntuaciones'!$C$4:C539,'Seguimiento de las puntuaciones'!C539)","v":"0"}]
[null,537,{"$f":"'Seguimiento de las puntuaciones'!C540&COUNTIF('Seguimiento de las puntuaciones'!$C$4:C540,'Seguimiento de las puntuaciones'!C540)","v":"0"}]
[null,538,{"$f":"'Seguimiento de las puntuaciones'!C541&COUNTIF('Seguimiento de las puntuaciones'!$C$4:C541,'Seguimiento de las puntuaciones'!C541)","v":"0"}]
[null,539,{"$f":"'Seguimiento de las puntuaciones'!C542&COUNTIF('Seguimiento de las puntuaciones'!$C$4:C542,'Seguimiento de las puntuaciones'!C542)","v":"0"}]
[null,540,{"$f":"'Seguimiento de las puntuaciones'!C543&COUNTIF('Seguimiento de las puntuaciones'!$C$4:C543,'Seguimiento de las puntuaciones'!C543)","v":"0"}]
[null,541,{"$f":"'Seguimiento de las puntuaciones'!C544&COUNTIF('Seguimiento de las puntuaciones'!$C$4:C544,'Seguimiento de las puntuaciones'!C544)","v":"0"}]
[null,542,{"$f":"'Seguimiento de las puntuaciones'!C545&COUNTIF('Seguimiento de las puntuaciones'!$C$4:C545,'Seguimiento de las puntuaciones'!C545)","v":"0"}]
[null,543,{"$f":"'Seguimiento de las puntuaciones'!C546&COUNTIF('Seguimiento de las puntuaciones'!$C$4:C546,'Seguimiento de las puntuaciones'!C546)","v":"0"}]
[null,544,{"$f":"'Seguimiento de las puntuaciones'!C547&COUNTIF('Seguimiento de las puntuaciones'!$C$4:C547,'Seguimiento de las puntuaciones'!C547)","v":"0"}]
[null,545,{"$f":"'Seguimiento de las puntuaciones'!C548&COUNTIF('Seguimiento de las puntuaciones'!$C$4:C548,'Seguimiento de las puntuaciones'!C548)","v":"0"}]
[null,546,{"$f":"'Seguimiento de las puntuaciones'!C549&COUNTIF('Seguimiento de las puntuaciones'!$C$4:C549,'Seguimiento de las puntuaciones'!C549)","v":"0"}]
[null,547,{"$f":"'Seguimiento de las puntuaciones'!C550&COUNTIF('Seguimiento de las puntuaciones'!$C$4:C550,'Seguimiento de las puntuaciones'!C550)","v":"0"}]
[null,548,{"$f":"'Seguimiento de las puntuaciones'!C551&COUNTIF('Seguimiento de las puntuaciones'!$C$4:C551,'Seguimiento de las puntuaciones'!C551)","v":"0"}]
[null,549,{"$f":"'Seguimiento de las puntuaciones'!C552&COUNTIF('Seguimiento de las puntuaciones'!$C$4:C552,'Seguimiento de las puntuaciones'!C552)","v":"0"}]
[null,550,{"$f":"'Seguimiento de las puntuaciones'!C553&COUNTIF('Seguimiento de las puntuaciones'!$C$4:C553,'Seguimiento de las puntuaciones'!C553)","v":"0"}]
[null,551,{"$f":"'Seguimiento de las puntuaciones'!C554&COUNTIF('Seguimiento de las puntuaciones'!$C$4:C554,'Seguimiento de las puntuaciones'!C554)","v":"0"}]
[null,552,{"$f":"'Seguimiento de las puntuaciones'!C555&COUNTIF('Seguimiento de las puntuaciones'!$C$4:C555,'Seguimiento de las puntuaciones'!C555)","v":"0"}]
[null,553,{"$f":"'Seguimiento de las puntuaciones'!C556&COUNTIF('Seguimiento de las puntuaciones'!$C$4:C556,'Seguimiento de las puntuaciones'!C556)","v":"0"}]
[null,554,{"$f":"'Seguimiento de las puntuaciones'!C557&COUNTIF('Seguimiento de las puntuaciones'!$C$4:C557,'Seguimiento de las puntuaciones'!C557)","v":"0"}]
[null,555,{"$f":"'Seguimiento de las puntuaciones'!C558&COUNTIF('Seguimiento de las puntuaciones'!$C$4:C558,'Seguimiento de las puntuaciones'!C558)","v":"0"}]
[null,556,{"$f":"'Seguimiento de las puntuaciones'!C559&COUNTIF('Seguimiento de las puntuaciones'!$C$4:C559,'Seguimiento de las puntuaciones'!C559)","v":"0"}]
[null,557,{"$f":"'Seguimiento de las puntuaciones'!C560&COUNTIF('Seguimiento de las puntuaciones'!$C$4:C560,'Seguimiento de las puntuaciones'!C560)","v":"0"}]
[null,558,{"$f":"'Seguimiento de las puntuaciones'!C561&COUNTIF('Seguimiento de las puntuaciones'!$C$4:C561,'Seguimiento de las puntuaciones'!C561)","v":"0"}]
[null,559,{"$f":"'Seguimiento de las puntuaciones'!C562&COUNTIF('Seguimiento de las puntuaciones'!$C$4:C562,'Seguimiento de las puntuaciones'!C562)","v":"0"}]
[null,560,{"$f":"'Seguimiento de las puntuaciones'!C563&COUNTIF('Seguimiento de las puntuaciones'!$C$4:C563,'Seguimiento de las puntuaciones'!C563)","v":"0"}]
[null,561,{"$f":"'Seguimiento de las puntuaciones'!C564&COUNTIF('Seguimiento de las puntuaciones'!$C$4:C564,'Seguimiento de las puntuaciones'!C564)","v":"0"}]
[null,562,{"$f":"'Seguimiento de las puntuaciones'!C565&COUNTIF('Seguimiento de las puntuaciones'!$C$4:C565,'Seguimiento de las puntuaciones'!C565)","v":"0"}]
[null,563,{"$f":"'Seguimiento de las puntuaciones'!C566&COUNTIF('Seguimiento de las puntuaciones'!$C$4:C566,'Seguimiento de las puntuaciones'!C566)","v":"0"}]
[null,564,{"$f":"'Seguimiento de las puntuaciones'!C567&COUNTIF('Seguimiento de las puntuaciones'!$C$4:C567,'Seguimiento de las puntuaciones'!C567)","v":"0"}]
[null,565,{"$f":"'Seguimiento de las puntuaciones'!C568&COUNTIF('Seguimiento de las puntuaciones'!$C$4:C568,'Seguimiento de las puntuaciones'!C568)","v":"0"}]
[null,566,{"$f":"'Seguimiento de las puntuaciones'!C569&COUNTIF('Seguimiento de las puntuaciones'!$C$4:C569,'Seguimiento de las puntuaciones'!C569)","v":"0"}]
[null,567,{"$f":"'Seguimiento de las puntuaciones'!C570&COUNTIF('Seguimiento de las puntuaciones'!$C$4:C570,'Seguimiento de las puntuaciones'!C570)","v":"0"}]
[null,568,{"$f":"'Seguimiento de las puntuaciones'!C571&COUNTIF('Seguimiento de las puntuaciones'!$C$4:C571,'Seguimiento de las puntuaciones'!C571)","v":"0"}]
[null,569,{"$f":"'Seguimiento de las puntuaciones'!C572&COUNTIF('Seguimiento de las puntuaciones'!$C$4:C572,'Seguimiento de las puntuaciones'!C572)","v":"0"}]
[null,570,{"$f":"'Seguimiento de las puntuaciones'!C573&COUNTIF('Seguimiento de las puntuaciones'!$C$4:C573,'Seguimiento de las puntuaciones'!C573)","v":"0"}]
[null,571,{"$f":"'Seguimiento de las puntuaciones'!C574&COUNTIF('Seguimiento de las puntuaciones'!$C$4:C574,'Seguimiento de las puntuaciones'!C574)","v":"0"}]
[null,572,{"$f":"'Seguimiento de las puntuaciones'!C575&COUNTIF('Seguimiento de las puntuaciones'!$C$4:C575,'Seguimiento de las puntuaciones'!C575)","v":"0"}]
[null,573,{"$f":"'Seguimiento de las puntuaciones'!C576&COUNTIF('Seguimiento de las puntuaciones'!$C$4:C576,'Seguimiento de las puntuaciones'!C576)","v":"0"}]
[null,574,{"$f":"'Seguimiento de las puntuaciones'!C577&COUNTIF('Seguimiento de las puntuaciones'!$C$4:C577,'Seguimiento de las puntuaciones'!C577)","v":"0"}]
[null,575,{"$f":"'Seguimiento de las puntuaciones'!C578&COUNTIF('Seguimiento de las puntuaciones'!$C$4:C578,'Seguimiento de las puntuaciones'!C578)","v":"0"}]
[null,576,{"$f":"'Seguimiento de las puntuaciones'!C579&COUNTIF('Seguimiento de las puntuaciones'!$C$4:C579,'Seguimiento de las puntuaciones'!C579)","v":"0"}]
[null,577,{"$f":"'Seguimiento de las puntuaciones'!C580&COUNTIF('Seguimiento de las puntuaciones'!$C$4:C580,'Seguimiento de las puntuaciones'!C580)","v":"0"}]
[null,578,{"$f":"'Seguimiento de las puntuaciones'!C581&COUNTIF('Seguimiento de las puntuaciones'!$C$4:C581,'Seguimiento de las puntuaciones'!C581)","v":"0"}]
[null,579,{"$f":"'Seguimiento de las puntuaciones'!C582&COUNTIF('Seguimiento de las puntuaciones'!$C$4:C582,'Seguimiento de las puntuaciones'!C582)","v":"0"}]
[null,580,{"$f":"'Seguimiento de las puntuaciones'!C583&COUNTIF('Seguimiento de las puntuaciones'!$C$4:C583,'Seguimiento de las puntuaciones'!C583)","v":"0"}]
[null,581,{"$f":"'Seguimiento de las puntuaciones'!C584&COUNTIF('Seguimiento de las puntuaciones'!$C$4:C584,'Seguimiento de las puntuaciones'!C584)","v":"0"}]
[null,582,{"$f":"'Seguimiento de las puntuaciones'!C585&COUNTIF('Seguimiento de las puntuaciones'!$C$4:C585,'Seguimiento de las puntuaciones'!C585)","v":"0"}]
[null,583,{"$f":"'Seguimiento de las puntuaciones'!C586&COUNTIF('Seguimiento de las puntuaciones'!$C$4:C586,'Seguimiento de las puntuaciones'!C586)","v":"0"}]
[null,584,{"$f":"'Seguimiento de las puntuaciones'!C587&COUNTIF('Seguimiento de las puntuaciones'!$C$4:C587,'Seguimiento de las puntuaciones'!C587)","v":"0"}]
[null,585,{"$f":"'Seguimiento de las puntuaciones'!C588&COUNTIF('Seguimiento de las puntuaciones'!$C$4:C588,'Seguimiento de las puntuaciones'!C588)","v":"0"}]
[null,586,{"$f":"'Seguimiento de las puntuaciones'!C589&COUNTIF('Seguimiento de las puntuaciones'!$C$4:C589,'Seguimiento de las puntuaciones'!C589)","v":"0"}]
[null,587,{"$f":"'Seguimiento de las puntuaciones'!C590&COUNTIF('Seguimiento de las puntuaciones'!$C$4:C590,'Seguimiento de las puntuaciones'!C590)","v":"0"}]
[null,588,{"$f":"'Seguimiento de las puntuaciones'!C591&COUNTIF('Seguimiento de las puntuaciones'!$C$4:C591,'Seguimiento de las puntuaciones'!C591)","v":"0"}]
[null,589,{"$f":"'Seguimiento de las puntuaciones'!C592&COUNTIF('Seguimiento de las puntuaciones'!$C$4:C592,'Seguimiento de las puntuaciones'!C592)","v":"0"}]
[null,590,{"$f":"'Seguimiento de las puntuaciones'!C593&COUNTIF('Seguimiento de las puntuaciones'!$C$4:C593,'Seguimiento de las puntuaciones'!C593)","v":"0"}]
[null,591,{"$f":"'Seguimiento de las puntuaciones'!C594&COUNTIF('Seguimiento de las puntuaciones'!$C$4:C594,'Seguimiento de las puntuaciones'!C594)","v":"0"}]
[null,592,{"$f":"'Seguimiento de las puntuaciones'!C595&COUNTIF('Seguimiento de las puntuaciones'!$C$4:C595,'Seguimiento de las puntuaciones'!C595)","v":"0"}]
[null,593,{"$f":"'Seguimiento de las puntuaciones'!C596&COUNTIF('Seguimiento de las puntuaciones'!$C$4:C596,'Seguimiento de las puntuaciones'!C596)","v":"0"}]
[null,594,{"$f":"'Seguimiento de las puntuaciones'!C597&COUNTIF('Seguimiento de las puntuaciones'!$C$4:C597,'Seguimiento de las puntuaciones'!C597)","v":"0"}]
[null,595,{"$f":"'Seguimiento de las puntuaciones'!C598&COUNTIF('Seguimiento de las puntuaciones'!$C$4:C598,'Seguimiento de las puntuaciones'!C598)","v":"0"}]
[null,596,{"$f":"'Seguimiento de las puntuaciones'!C599&COUNTIF('Seguimiento de las puntuaciones'!$C$4:C599,'Seguimiento de las puntuaciones'!C599)","v":"0"}]
[null,597,{"$f":"'Seguimiento de las puntuaciones'!C600&COUNTIF('Seguimiento de las puntuaciones'!$C$4:C600,'Seguimiento de las puntuaciones'!C600)","v":"0"}]
[null,598,{"$f":"'Seguimiento de las puntuaciones'!C601&COUNTIF('Seguimiento de las puntuaciones'!$C$4:C601,'Seguimiento de las puntuaciones'!C601)","v":"0"}]
[null,599,{"$f":"'Seguimiento de las puntuaciones'!C602&COUNTIF('Seguimiento de las puntuaciones'!$C$4:C602,'Seguimiento de las puntuaciones'!C602)","v":"0"}]
[null,600,{"$f":"'Seguimiento de las puntuaciones'!C603&COUNTIF('Seguimiento de las puntuaciones'!$C$4:C603,'Seguimiento de las puntuaciones'!C603)","v":"0"}]
[null,601,{"$f":"'Seguimiento de las puntuaciones'!C604&COUNTIF('Seguimiento de las puntuaciones'!$C$4:C604,'Seguimiento de las puntuaciones'!C604)","v":"0"}]
[null,602,{"$f":"'Seguimiento de las puntuaciones'!C605&COUNTIF('Seguimiento de las puntuaciones'!$C$4:C605,'Seguimiento de las puntuaciones'!C605)","v":"0"}]
[null,603,{"$f":"'Seguimiento de las puntuaciones'!C606&COUNTIF('Seguimiento de las puntuaciones'!$C$4:C606,'Seguimiento de las puntuaciones'!C606)","v":"0"}]
[null,604,{"$f":"'Seguimiento de las puntuaciones'!C607&COUNTIF('Seguimiento de las puntuaciones'!$C$4:C607,'Seguimiento de las puntuaciones'!C607)","v":"0"}]
[null,605,{"$f":"'Seguimiento de las puntuaciones'!C608&COUNTIF('Seguimiento de las puntuaciones'!$C$4:C608,'Seguimiento de las puntuaciones'!C608)","v":"0"}]
[null,606,{"$f":"'Seguimiento de las puntuaciones'!C609&COUNTIF('Seguimiento de las puntuaciones'!$C$4:C609,'Seguimiento de las puntuaciones'!C609)","v":"0"}]
[null,607,{"$f":"'Seguimiento de las puntuaciones'!C610&COUNTIF('Seguimiento de las puntuaciones'!$C$4:C610,'Seguimiento de las puntuaciones'!C610)","v":"0"}]
[null,608,{"$f":"'Seguimiento de las puntuaciones'!C611&COUNTIF('Seguimiento de las puntuaciones'!$C$4:C611,'Seguimiento de las puntuaciones'!C611)","v":"0"}]
[null,609,{"$f":"'Seguimiento de las puntuaciones'!C612&COUNTIF('Seguimiento de las puntuaciones'!$C$4:C612,'Seguimiento de las puntuaciones'!C612)","v":"0"}]
[null,610,{"$f":"'Seguimiento de las puntuaciones'!C613&COUNTIF('Seguimiento de las puntuaciones'!$C$4:C613,'Seguimiento de las puntuaciones'!C613)","v":"0"}]
[null,611,{"$f":"'Seguimiento de las puntuaciones'!C614&COUNTIF('Seguimiento de las puntuaciones'!$C$4:C614,'Seguimiento de las puntuaciones'!C614)","v":"0"}]
[null,612,{"$f":"'Seguimiento de las puntuaciones'!C615&COUNTIF('Seguimiento de las puntuaciones'!$C$4:C615,'Seguimiento de las puntuaciones'!C615)","v":"0"}]
[null,613,{"$f":"'Seguimiento de las puntuaciones'!C616&COUNTIF('Seguimiento de las puntuaciones'!$C$4:C616,'Seguimiento de las puntuaciones'!C616)","v":"0"}]
[null,614,{"$f":"'Seguimiento de las puntuaciones'!C617&COUNTIF('Seguimiento de las puntuaciones'!$C$4:C617,'Seguimiento de las puntuaciones'!C617)","v":"0"}]
[null,615,{"$f":"'Seguimiento de las puntuaciones'!C618&COUNTIF('Seguimiento de las puntuaciones'!$C$4:C618,'Seguimiento de las puntuaciones'!C618)","v":"0"}]
[null,616,{"$f":"'Seguimiento de las puntuaciones'!C619&COUNTIF('Seguimiento de las puntuaciones'!$C$4:C619,'Seguimiento de las puntuaciones'!C619)","v":"0"}]
[null,617,{"$f":"'Seguimiento de las puntuaciones'!C620&COUNTIF('Seguimiento de las puntuaciones'!$C$4:C620,'Seguimiento de las puntuaciones'!C620)","v":"0"}]
[null,618,{"$f":"'Seguimiento de las puntuaciones'!C621&COUNTIF('Seguimiento de las puntuaciones'!$C$4:C621,'Seguimiento de las puntuaciones'!C621)","v":"0"}]
[null,619,{"$f":"'Seguimiento de las puntuaciones'!C622&COUNTIF('Seguimiento de las puntuaciones'!$C$4:C622,'Seguimiento de las puntuaciones'!C622)","v":"0"}]
[null,620,{"$f":"'Seguimiento de las puntuaciones'!C623&COUNTIF('Seguimiento de las puntuaciones'!$C$4:C623,'Seguimiento de las puntuaciones'!C623)","v":"0"}]
[null,621,{"$f":"'Seguimiento de las puntuaciones'!C624&COUNTIF('Seguimiento de las puntuaciones'!$C$4:C624,'Seguimiento de las puntuaciones'!C624)","v":"0"}]
[null,622,{"$f":"'Seguimiento de las puntuaciones'!C625&COUNTIF('Seguimiento de las puntuaciones'!$C$4:C625,'Seguimiento de las puntuaciones'!C625)","v":"0"}]
[null,623,{"$f":"'Seguimiento de las puntuaciones'!C626&COUNTIF('Seguimiento de las puntuaciones'!$C$4:C626,'Seguimiento de las puntuaciones'!C626)","v":"0"}]
[null,624,{"$f":"'Seguimiento de las puntuaciones'!C627&COUNTIF('Seguimiento de las puntuaciones'!$C$4:C627,'Seguimiento de las puntuaciones'!C627)","v":"0"}]
[null,625,{"$f":"'Seguimiento de las puntuaciones'!C628&COUNTIF('Seguimiento de las puntuaciones'!$C$4:C628,'Seguimiento de las puntuaciones'!C628)","v":"0"}]